Workbook

Sheet 1. Information Sheet
U1: a | AA1: =IF(OR(F16="", F16="(if applicable)"), F14, F14 & " - " & F16) -> Hydro Hawkesbury Inc.
M12: Version | N12: 1.1
E14: Utility Name | F14: Hydro Hawkesbury Inc.
E16: Service Territory
E18: Assigned EB Number | F18: EB-2014-0082
E20: Name of Contact and Title | F20: Michel Poulin, General Manager
E22: Phone Number | F22: 613-632-6689
E24: Email Address | F24: MichelPoulin@HydroHawkesbury.ca
E26: We are applying for rates effective | F26: 2015-01-01
E28: Rate-Setting Method | F28: Price Cap IR
A30: Please indicate in which Rate Year the Group 1 accounts were last cleared1 | F30: 2014
A32: Please indicate the last Cost of Service Re-Basing Year | F32: 2014
B35: Notes
C37: Pale green cells represent input cells.
C39: Pale blue cells represent drop-down lists. The applicant should select the appropriate item from the drop-down list.
C41: White cells contain fixed values, automatically generated values or formulae.
A44: Note: 1. Rate year of application

Sheet 2. Related Links
A13: ● | B13: Ontario Energy Board's 2015 Electricity Distribution Rates Webpage
A15: ● | B15: An updated version of Chapter 3 of the Filing Requirements for Electricity Distribution Rate Applications for 2015 rates.

Sheet 3. Rate Class Selection
A12: Select the appropriate rate classes as they appear on your most recent Board-Approved Tariff of Rates and Charges, including the MicroFit Class.
A14: How many classes are on your most recent Board-Approved Tariff of Rates and Charges? | J14: 7
A16: Select Your Rate Classes from the Blue Cells below. Please ensure that a rate class is assigned to each shaded cell.
B18: Rate Class Classification | Q18: # of duplicates
A19: 1 | B19: RESIDENTIAL | P19: =COUNTIF($B$19:$J$40, B19) -> 1 | Q19: =COUNTIF(P19:P40, 2)/2 -> 0
A20: 2 | B20: GENERAL SERVICE LESS THAN 50 KW | P20: =COUNTIF($B$19:$J$40, B20) -> 1
A21: 3 | B21: GENERAL SERVICE 50 TO 4,999 KW | P21: 1
A22: 4 | B22: UNMETERED SCATTERED LOAD | P22: 1
A23: 5 | B23: SENTINEL LIGHTING | P23: 1
A24: 6 | B24: STREET LIGHTING | P24: 1
A25: 7 | B25: microFIT | P25: 1
P26: 0
P27: 0
P28: 0
P29: 0
P30: 0
P31: 0
P32: 0
P33: 0

Sheet 4. Current Tariff Schedule
Z1: 3 | AA1: January | AB1: ≥
AA2: February
AA3: March
AA4: April
AA5: May
AA6: June
AA7: July
AA8: August
AA9: September
AA10: October
AA11: November
B12: For each class, Applicants are required to copy and paste the class descriptions (located directly under the class name) and the description of the applicability of those rates (description is found under the class name and directly under the word "APPLICATION"). By using the drop-down lists located under the column labeled "Rate Description", please select the descriptions of the rates and charges that BEST MATCHES the descriptions on your most recent Board-Approved Tariff of Rates and Charges. If the description is not found in the drop-down list, please enter the description in the green cells under the correct class exactly as it appears on the tariff. Please do not enter more than one "Service Charge" for each class for which a base monthly fixed charge applies. | AA12: December
B21: =IF(ISBLANK('1. Information Sheet'!F14), "Please Choose Distributor Name on Sheet 1", '1. Information Sheet'!F14) -> Hydro Hawkesbury Inc.
B22: TARIFF OF RATES AND CHARGES
A24: RESIDENTIAL | B24: RESIDENTIAL Service Classification
A25: RESIDENTIAL
A26: RESIDENTIAL | B26: This classification refers to the supply of electrical energy to customers residing in residential dwelling units. Energy is generally supplied as single phase, 3-wire, 60-Hertz, having nominal voltage of 120/240 Volts and up to 400 amps. There shall be only one delivery point to a dwelling. The Basic Connection for Residential consumers is defined as 100 amp 120/240 volt overhead service. A Residential building is supplied at one service voltage per land parcel. Further servicing details are available in the distributor’s Conditions of Service. This classification refers to the supply of electrical energy to customers residing in residential dwelling units. Energy is generally supplied as single phase, 3-wire, 60-Hertz, having nominal voltage of 120/240 Volts and up to 400 amps. There shall be only one delivery point to a dwelling. The Basic Connection for Residential consumers is defined as 100 amp 120/240 volt overhead service. A Residential building is supplied at one service voltage per land parcel. Further servicing details are available in the distributor’s Conditions of Service.
A27: RESIDENTIAL
A28: RESIDENTIAL
A29: RESIDENTIAL
A30: RESIDENTIAL
A31: RESIDENTIAL
A32: RESIDENTIAL | B32: APPLICATION
A33: RESIDENTIAL
A34: RESIDENTIAL | B34: The application of these rates and charges shall be in accordance with the Licence of the Distributor and any Code or Order of the Board, and amendments thereto as approved by the Board, which may be applicable to the administration of this schedule.
A35: RESIDENTIAL
A36: RESIDENTIAL
A37: RESIDENTIAL | B37: No rates and charges for the distribution of electricity and charges to meet the costs of any work or service done or furnished for the purpose of the distribution of electricity shall be made except as permitted by this schedule, unless required by the Distributor’s Licence or a Code or Order of the Board, and amendments thereto as approved by the Board, or as specified herein
A38: RESIDENTIAL
A39: RESIDENTIAL
A40: RESIDENTIAL
A41: RESIDENTIAL | B41: Unless specifically noted, this schedule does not contain any charges for the electricity commodity, be it under the Regulated Price Plan, a contract with a retailer or the wholesale market price, as applicable. In addition, the charges in the MONTHLY RATES AND CHARGES – Regulatory Component of this schedule do not apply to a customer that is an embedded wholesale market participant.
A42: RESIDENTIAL
A43: RESIDENTIAL
A44: RESIDENTIAL | B44: It should be noted that this schedule does not list any charges, assessments or credits that are required by law to be invoiced by a distributor and that are not subject to Board approval, such as the Debt Retirement Charge, the Global Adjustment, the Ontario Clean Energy Benefit and the HST.
A45: RESIDENTIAL
A46: RESIDENTIAL
A47: RESIDENTIAL
A48: RESIDENTIAL | B48: MONTHLY RATES AND CHARGES - Delivery Component (If applicable, Effective Date MUST be included in rate description)
A49: RESIDENTIAL | B49: Service Charge | H49: $ | I49: 7.06 | K49: 1_C_MSC
A50: RESIDENTIAL | B50: Rate Rider for Disposition of Residual Historical Smart Meter Costs - effective until April 30, 2014 | H50: $ | I50: -1.35 | K50: 1_C_MSC_Rate_Rider_1 | L50: 2014-04-30
A51: RESIDENTIAL | B51: Rate Rider for Recovery of Stranded Meter Assets - effective until December 31, 2014 | H51: $ | I51: 1.06 | K51: 1_C_MSC_Rate_Rider_2 | L51: 2014-12-31
A52: RESIDENTIAL | B52: Rate Rider for Smart Metering Entity Charge - effective until October 31, 2018 | H52: $ | I52: 0.79 | K52: 1_C_SMEC | L52: 2018-10-31
A53: RESIDENTIAL | B53: Distribution Volumetric Rate | H53: $/kWh | I53: 0.0096 | K53: 1_C_VC_1
A54: RESIDENTIAL | B54: Low Voltage Service Rate | H54: $/kWh | I54: 0.0007 | K54: 1_C_LVrate
A55: RESIDENTIAL | B55: Rate Rider for Disposition of Global Adjustment Sub-Account (2013) - effective until April 30, 2014 Applicable only for Non-RPP Customers | H55: $/kWh | I55: 0.006 | K55: 1_C_VC_GA_Rate_Rider_kWh_1 | L55: 2014-04-30
A56: RESIDENTIAL | B56: Rate Rider for Disposition of Global Adjustment Sub-Account (2014) - effective until December 31, 2014. Applicable only for Non-RPP Customers | H56: $/kWh | I56: 0.0033 | K56: 1_C_VC_GA_Rate_Rider_kWh_2 | L56: 2014-12-31
A57: RESIDENTIAL | B57: Rate Rider for Disposition of Deferral/Variance Accounts (2013) - effective until April 30, 2014 | H57: $/kWh | I57: 0.0011 | K57: 1_C_VC_DEFVAR_kWh_1 | L57: 2014-04-30
A58: RESIDENTIAL | B58: Rate Rider for Recovery of Lost Revenue Adjustment Mechanism (2013) - effective until December 31, 2014 | H58: $/kWh | I58: 0.0001 | K58: 1_C_VC_Rate_Rider_kWh_2 | L58: 2014-12-31
A59: RESIDENTIAL
A60: RESIDENTIAL | B60: Retail Transmission Rate - Network Service Rate | H60: $/kWh | I60: 0.007 | K60: 1_C_RTSR_Network
A61: RESIDENTIAL | B61: Retail Transmission Rate - Line and Transformation Connection Service Rate | H61: $/kWh | I61: 0.0031 | K61: 1_C_RTSR_Connection
A62: RESIDENTIAL
A63: RESIDENTIAL
A64: RESIDENTIAL
A65: RESIDENTIAL
A66: RESIDENTIAL
A67: RESIDENTIAL
A68: RESIDENTIAL
A69: RESIDENTIAL
A70: RESIDENTIAL
A71: RESIDENTIAL
A72: RESIDENTIAL
A73: RESIDENTIAL | B73: Rate Rider for Disposition of Deferral/Variance Accounts (2014) - effective until December 31, 2014 | H73: $/kWh | I73: -0.0018 | K73: 1_C_VC_DEFVAR_kWh_2 | L73: 2014-12-31
A74: RESIDENTIAL | B74: Rate Rider for Disposition of Account 1576 - effective until December, 2014 | H74: $/kWh | I74: -0.0002 | K74: 1_C_VC_Rate_Rider_kWh_4 | L74: 2014-12-01
A75: RESIDENTIAL
A76: RESIDENTIAL | B76: Rate Rider to Refund Revenue from a Previous Approved ICM Rate Rider - effective until December 31, 2014 | H76: $/kWh | I76: -0.0032 | K76: 1_C_VC_Rate_Rider_kWh_5 | L76: 2014-12-31
A77: RESIDENTIAL
A78: RESIDENTIAL
A79: RESIDENTIAL | B79: MONTHLY RATES AND CHARGES - Regulatory Component
A80: RESIDENTIAL
A81: RESIDENTIAL | B81: Wholesale Market Service Rate | H81: $/kWh | I81: 0.0044 | K81: 1_C_WMSR
A82: RESIDENTIAL | B82: Rural or Remote Electricity Rate Protection Charge (RRRP) | H82: $/kWh | I82: 0.0013 | K82: 1_C_RRPC
A83: RESIDENTIAL | B83: Standard Supply Service - Administrative Charge (if applicable) | H83: $ | I83: 0.25 | K83: 1_C_SSS
A84: RESIDENTIAL
A87: GENERAL SERVICE LESS THAN 50 KW | B87: GENERAL SERVICE LESS THAN 50 KW Service Classification
A88: GENERAL SERVICE LESS THAN 50 KW
A89: GENERAL SERVICE LESS THAN 50 KW | B89: This classification refers to the supply of electrical energy to a non residential account whose average monthly maximum demand is less than, or is forecast to be less than, 50 kW, and Town Houses and Condominiums that require centralized bulk metering. Further servicing details are available in the distributor’s Conditions of Service
A90: GENERAL SERVICE LESS THAN 50 KW
A91: GENERAL SERVICE LESS THAN 50 KW
A92: GENERAL SERVICE LESS THAN 50 KW
A93: GENERAL SERVICE LESS THAN 50 KW
A94: GENERAL SERVICE LESS THAN 50 KW
A95: GENERAL SERVICE LESS THAN 50 KW | B95: APPLICATION
A96: GENERAL SERVICE LESS THAN 50 KW
A97: GENERAL SERVICE LESS THAN 50 KW | B97: The application of these rates and charges shall be in accordance with the Licence of the Distributor and any Code or Order of the Board, and amendments thereto as approved by the Board, which may be applicable to the administration of this schedule.
A98: GENERAL SERVICE LESS THAN 50 KW
A99: GENERAL SERVICE LESS THAN 50 KW
A100: GENERAL SERVICE LESS THAN 50 KW | B100: No rates and charges for the distribution of electricity and charges to meet the costs of any work or service done or furnished for the purpose of the distribution of electricity shall be made except as permitted by this schedule, unless required by the Distributor’s Licence or a Code or Order of the Board, and amendments thereto as approved by the Board, or as specified herein.
A101: GENERAL SERVICE LESS THAN 50 KW
A102: GENERAL SERVICE LESS THAN 50 KW
A103: GENERAL SERVICE LESS THAN 50 KW
A104: GENERAL SERVICE LESS THAN 50 KW | B104: Unless specifically noted, this schedule does not contain any charges for the electricity commodity, be it under the Regulated Price Plan, a contract with a retailer or the wholesale market price, as applicable. In addition, the charges in the MONTHLY RATES AND CHARGES – Regulatory Component of this schedule do not apply to a customer that is an embedded wholesale market participant.
A105: GENERAL SERVICE LESS THAN 50 KW
A106: GENERAL SERVICE LESS THAN 50 KW
A107: GENERAL SERVICE LESS THAN 50 KW | B107: It should be noted that this schedule does not list any charges, assessments or credits that are required by law to be invoiced by a distributor and that are not subject to Board approval, such as the Debt Retirement Charge, the Global Adjustment, the Ontario Clean Energy Benefit and the HST.
A108: GENERAL SERVICE LESS THAN 50 KW
A109: GENERAL SERVICE LESS THAN 50 KW
A110: GENERAL SERVICE LESS THAN 50 KW
A111: GENERAL SERVICE LESS THAN 50 KW | B111: MONTHLY RATES AND CHARGES - Delivery Component (If applicable, Effective Date MUST be included in rate description)
A112: GENERAL SERVICE LESS THAN 50 KW | B112: Service Charge | H112: $ | I112: 14.91 | K112: 2_C_MSC
A113: GENERAL SERVICE LESS THAN 50 KW
A114: GENERAL SERVICE LESS THAN 50 KW | B114: Rate Rider for Disposition of Residual Historical Smart Meter Costs - effective until April 30, 2014 | H114: $ | I114: -0.09 | K114: 2_C_MSC_Rate_Rider_1 | L114: 2014-04-30
A115: GENERAL SERVICE LESS THAN 50 KW | B115: Rate Rider for Recovery of Stranded Meter Assets - effective until December 31, 2014 | H115: $ | I115: 5.49 | K115: 2_C_MSC_Rate_Rider_2 | L115: 2014-12-31
A116: GENERAL SERVICE LESS THAN 50 KW | B116: Rate Rider for Smart Metering Entity Charge - effective until October 31, 2018 | H116: $ | I116: 0.79 | K116: 2_C_SMEC | L116: 2018-10-31
A117: GENERAL SERVICE LESS THAN 50 KW | B117: Distribution Volumetric Rate | H117: $/kWh | I117: 0.0059 | K117: 2_C_VC_1
A118: GENERAL SERVICE LESS THAN 50 KW | B118: Low Voltage Service Rate | H118: $/kWh | I118: 0.0006 | K118: 2_C_LVrate
A119: GENERAL SERVICE LESS THAN 50 KW | B119: Rate Rider for Disposition of Global Adjustment Sub-Account (2013) - effective until April 30, 2014 Applicable only for Non-RPP Customers | H119: $/kWh | I119: 0.006 | K119: 2_C_VC_GA_Rate_Rider_kWh_1 | L119: 2014-04-30
A120: GENERAL SERVICE LESS THAN 50 KW | B120: Rate Rider for Disposition of Global Adjustment Sub-Account (2014) - effective until December 31, 2014. Applicable only for Non-RPP Customers | H120: $/kWh | I120: 0.0033 | K120: 2_C_VC_GA_Rate_Rider_kWh_2 | L120: 2014-12-31
A121: GENERAL SERVICE LESS THAN 50 KW | B121: Rate Rider for Disposition of Deferral/Variance Accounts (2013) - effective until April 30, 2014 | H121: $/kWh | I121: 0.0011 | K121: 2_C_VC_DEFVAR_kWh_1 | L121: 2014-04-30
A122: GENERAL SERVICE LESS THAN 50 KW | B122: Rate Rider for Recovery of Lost Revenue Adjustment Mechanism (2013) - effective until December 31, 2014 | H122: $/kWh | I122: 0.0001 | K122: 2_C_VC_Rate_Rider_kWh_2 | L122: 2014-12-31
A123: GENERAL SERVICE LESS THAN 50 KW | B123: Retail Transmission Rate - Network Service Rate | H123: $/kWh | I123: 0.0064 | K123: 2_C_RTSR_Network
A124: GENERAL SERVICE LESS THAN 50 KW | B124: Retail Transmission Rate - Line and Transformation Connection Service Rate | H124: $/kWh | I124: 0.0027 | K124: 2_C_RTSR_Connection
A125: GENERAL SERVICE LESS THAN 50 KW
A126: GENERAL SERVICE LESS THAN 50 KW
A127: GENERAL SERVICE LESS THAN 50 KW
A128: GENERAL SERVICE LESS THAN 50 KW
A129: GENERAL SERVICE LESS THAN 50 KW
A130: GENERAL SERVICE LESS THAN 50 KW
A131: GENERAL SERVICE LESS THAN 50 KW
A132: GENERAL SERVICE LESS THAN 50 KW
A133: GENERAL SERVICE LESS THAN 50 KW
A134: GENERAL SERVICE LESS THAN 50 KW
A135: GENERAL SERVICE LESS THAN 50 KW
A136: GENERAL SERVICE LESS THAN 50 KW | B136: Rate Rider for Disposition of Deferral/Variance Accounts (2014) - effective until December 31, 2014 | H136: $/kWh | I136: -0.0015 | K136: 2_C_VC_DEFVAR_kWh_2 | L136: 2014-12-31
A137: GENERAL SERVICE LESS THAN 50 KW | B137: Rate Rider for Dispostion of Account 1576 - effective until December 31, 2014 | H137: $/kWh | I137: -0.0002 | K137: 2_C_VC_Rate_Rider_kWh_4 | L137: 2014-12-31
A138: GENERAL SERVICE LESS THAN 50 KW | B138: Rate Ride to Refund Revenue from a previous Approved ICM Rate Rider - Effective until December 31, 2014 | H138: $/kWh | I138: -0.0022 | K138: 2_C_VC_Rate_Rider_kWh_5 | L138: 2014-12-31
A139: GENERAL SERVICE LESS THAN 50 KW
A140: GENERAL SERVICE LESS THAN 50 KW
A141: GENERAL SERVICE LESS THAN 50 KW
A142: GENERAL SERVICE LESS THAN 50 KW | B142: MONTHLY RATES AND CHARGES - Regulatory Component
A143: GENERAL SERVICE LESS THAN 50 KW
A144: GENERAL SERVICE LESS THAN 50 KW | B144: Wholesale Market Service Rate | H144: $/kWh | I144: 0.0044 | K144: 2_C_WMSR
A145: GENERAL SERVICE LESS THAN 50 KW | B145: Rural or Remote Electricity Rate Protection Charge (RRRP) | H145: $/kWh | I145: 0.0013 | K145: 2_C_RRPC
A146: GENERAL SERVICE LESS THAN 50 KW | B146: Standard Supply Service - Administrative Charge (if applicable) | H146: $ | I146: 0.25 | K146: 2_C_SSS
A147: GENERAL SERVICE LESS THAN 50 KW
A150: GENERAL SERVICE 50 TO 4,999 KW | B150: GENERAL SERVICE 50 TO 4,999 KW Service Classification
A151: GENERAL SERVICE 50 TO 4,999 KW
A152: GENERAL SERVICE 50 TO 4,999 KW | B152: This classification applies to a non residential account whose average monthly maximum demand used for billing purposes is equal to or greater than, or is forecast to be equal to or greater than, 50 kW but less than 5,000 kW. Note that for the application of the Retail Transmission Rate – Network Service Rate and the Retail Transmission Rate – Line and Transformation Connection Service Rate the following sub-classifications apply: General Service 50 to 500 kW non-interval metered General Service 50 to 500 kW interval metered General Service greater than 500 to 5,000 kW interval metered. Further servicing details are available in the distributor’s Conditions of Service.
A153: GENERAL SERVICE 50 TO 4,999 KW
A154: GENERAL SERVICE 50 TO 4,999 KW
A155: GENERAL SERVICE 50 TO 4,999 KW
A156: GENERAL SERVICE 50 TO 4,999 KW
A157: GENERAL SERVICE 50 TO 4,999 KW
A158: GENERAL SERVICE 50 TO 4,999 KW | B158: APPLICATION
A159: GENERAL SERVICE 50 TO 4,999 KW
A160: GENERAL SERVICE 50 TO 4,999 KW | B160: The application of these rates and charges shall be in accordance with the Licence of the Distributor and any Code or Order of the Board, and amendments thereto as approved by the Board, which may be applicable to the administration of this schedule.
A161: GENERAL SERVICE 50 TO 4,999 KW
A162: GENERAL SERVICE 50 TO 4,999 KW
A163: GENERAL SERVICE 50 TO 4,999 KW | B163: No rates and charges for the distribution of electricity and charges to meet the costs of any work or service done or furnished for the purpose of the distribution of electricity shall be made except as permitted by this schedule, unless required by the Distributor’s Licence or a Code or Order of the Board, and amendments thereto as approved by the Board, or as specified herein.
A164: GENERAL SERVICE 50 TO 4,999 KW
A165: GENERAL SERVICE 50 TO 4,999 KW
A166: GENERAL SERVICE 50 TO 4,999 KW
A167: GENERAL SERVICE 50 TO 4,999 KW | B167: Unless specifically noted, this schedule does not contain any charges for the electricity commodity, be it under the Regulated Price Plan, a contract with a retailer or the wholesale market price, as applicable. In addition, the charges in the MONTHLY RATES AND CHARGES – Regulatory Component of this schedule do not apply to a customer that is an embedded wholesale market participant
A168: GENERAL SERVICE 50 TO 4,999 KW
A169: GENERAL SERVICE 50 TO 4,999 KW
A170: GENERAL SERVICE 50 TO 4,999 KW | B170: It should be noted that this schedule does not list any charges, assessments or credits that are required by law to be invoiced by a distributor and that are not subject to Board approval, such as the Debt Retirement Charge, the Global Adjustment, the Ontario Clean Energy Benefit and the HST.
A171: GENERAL SERVICE 50 TO 4,999 KW
A172: GENERAL SERVICE 50 TO 4,999 KW
A173: GENERAL SERVICE 50 TO 4,999 KW
A174: GENERAL SERVICE 50 TO 4,999 KW | B174: MONTHLY RATES AND CHARGES - Delivery Component (If applicable, Effective Date MUST be included in rate description)
A175: GENERAL SERVICE 50 TO 4,999 KW | B175: Service Charge | H175: $ | I175: 97.35 | K175: 3_C_MSC
A176: GENERAL SERVICE 50 TO 4,999 KW | B176: Distribution Volumetric Rate | H176: $/kW | I176: 1.9733 | K176: 3_C_VC_1
A177: GENERAL SERVICE 50 TO 4,999 KW | B177: Low Voltage Service Rate | H177: $/kW | I177: 0.2419 | K177: 3_C_LVrate
A178: GENERAL SERVICE 50 TO 4,999 KW | B178: Rate Rider for Disposition of Global Adjustment Sub-Account (2013) - effective until April 30, 2014 Applicable only for Non-RPP Customers | H178: $/kW | I178: 2.3612 | K178: 3_C_VC_GA_Rate_Rider_kW_1 | L178: 2014-04-30
A179: GENERAL SERVICE 50 TO 4,999 KW | B179: Rate Rider for Disposition of Global Adjustment Sub-Account (2014) - effective until December 31, 2014. Applicable only for Non-RPP Customers | H179: $/kW | I179: 1.2501 | K179: 3_C_VC_GA_Rate_Rider_kW_2 | L179: 2014-12-31
A180: GENERAL SERVICE 50 TO 4,999 KW | B180: Rate Rider for Disposition of Deferral/Variance Accounts (2013) - effective until April 30, 2014 | H180: $/kW | I180: 0.4219 | K180: 3_C_VC_DEFVAR_kW_1 | L180: 2014-04-30
A181: GENERAL SERVICE 50 TO 4,999 KW | B181: Rate Rider for Recovery of Lost Revenue Adjustment Mechanism (2013) - effective until December 31, 2014 | H181: $/kW | I181: 0.0022 | K181: 3_C_VC_Rate_Rider_kW_2 | L181: 2014-12-31
A182: GENERAL SERVICE 50 TO 4,999 KW | B182: Retail Transmission Rate - Network Service Rate | H182: $/kW | I182: 2.6063 | K182: 3_C_RTSR_Network
A183: GENERAL SERVICE 50 TO 4,999 KW | B183: Retail Transmission Rate - Line and Transformation Connection Service Rate | H183: $/kW | I183: 1.1229 | K183: 3_C_RTSR_Connection
A184: GENERAL SERVICE 50 TO 4,999 KW
A185: GENERAL SERVICE 50 TO 4,999 KW
A186: GENERAL SERVICE 50 TO 4,999 KW
A187: GENERAL SERVICE 50 TO 4,999 KW
A188: GENERAL SERVICE 50 TO 4,999 KW
A189: GENERAL SERVICE 50 TO 4,999 KW
A190: GENERAL SERVICE 50 TO 4,999 KW
A191: GENERAL SERVICE 50 TO 4,999 KW
A192: GENERAL SERVICE 50 TO 4,999 KW
A193: GENERAL SERVICE 50 TO 4,999 KW
A194: GENERAL SERVICE 50 TO 4,999 KW
A195: GENERAL SERVICE 50 TO 4,999 KW
A196: GENERAL SERVICE 50 TO 4,999 KW
A197: GENERAL SERVICE 50 TO 4,999 KW
A198: GENERAL SERVICE 50 TO 4,999 KW
A199: GENERAL SERVICE 50 TO 4,999 KW | B199: Rate Rider for Disposition of Deferral/Variance Accounts (2014) - effective until December 31, 2014 | H199: $/kW | I199: -0.1753 | K199: 3_C_VC_DEFVAR_kW_2 | L199: 2014-12-31
A200: GENERAL SERVICE 50 TO 4,999 KW | B200: Rate Rider for Dispostion of Account 1576 - effective until December 31, 2014 | H200: $/kW | I200: -0.0635 | K200: 3_C_VC_Rate_Rider_kW_4 | L200: 2014-12-31
A201: GENERAL SERVICE 50 TO 4,999 KW | B201: Rate Rider to Refund Revenue from a Previous Approved ICM Rate Rider - effective until December 31, 2014 | H201: $/kW | I201: -0.4319 | K201: 3_C_VC_Rate_Rider_kW_5 | L201: 2014-12-31
A202: GENERAL SERVICE 50 TO 4,999 KW
A203: GENERAL SERVICE 50 TO 4,999 KW
A204: GENERAL SERVICE 50 TO 4,999 KW
A205: GENERAL SERVICE 50 TO 4,999 KW | B205: MONTHLY RATES AND CHARGES - Regulatory Component
A206: GENERAL SERVICE 50 TO 4,999 KW
A207: GENERAL SERVICE 50 TO 4,999 KW | B207: Wholesale Market Service Rate | H207: $/kWh | I207: 0.0044 | K207: 3_C_WMSR
A208: GENERAL SERVICE 50 TO 4,999 KW | B208: Rural or Remote Electricity Rate Protection Charge (RRRP) | H208: $/kWh | I208: 0.0013 | K208: 3_C_RRPC
A209: GENERAL SERVICE 50 TO 4,999 KW | B209: Standard Supply Service - Administrative Charge (if applicable) | H209: $ | I209: 0.25 | K209: 3_C_SSS
A210: GENERAL SERVICE 50 TO 4,999 KW
A213: UNMETERED SCATTERED LOAD | B213: UNMETERED SCATTERED LOAD Service Classification
A214: UNMETERED SCATTERED LOAD
A215: UNMETERED SCATTERED LOAD | B215: This classification applies to an account taking electricity at 750 volts or less whose average monthly maximum demand is less than, or is forecast to be less than, 50 kW and the consumption is unmetered. Such connections include cable TV power packs, bus shelters, telephone booths, traffic lights, railway crossings, etc. The level of the consumption will be agreed to by the distributor and the customer, based on detailed manufacturer information/ documentation with regard to electrical consumption of the unmetered load or periodic monitoring of actual consumption. Further servicing details are available in the distributor’s Conditions of Service.
... 235 more rows

Sheet 4. Hidden (hidden)
M1: Current Rate Classes | N1: Changed to Rate Classes | O1: Values in A that are NOT in B | P1: Values in B that are Not in A | Q1: Count of A | R1: Count of B
M2: RESIDENTIAL | N2: RESIDENTIAL | Q2: 7 | R2: 7
M3: GENERAL SERVICE LESS THAN 50 KW | N3: GENERAL SERVICE LESS THAN 50 KW
M4: GENERAL SERVICE 50 TO 4,999 KW | N4: GENERAL SERVICE 50 TO 4,999 KW
M5: UNMETERED SCATTERED LOAD | N5: UNMETERED SCATTERED LOAD
M6: SENTINEL LIGHTING | N6: SENTINEL LIGHTING
M7: STREET LIGHTING | N7: STREET LIGHTING
M8: microFIT | N8: microFIT
A24: RESIDENTIAL | B24: RESIDENTIAL Service Classification
A25: RESIDENTIAL
A26: RESIDENTIAL | B26: This classification refers to the supply of electrical energy to customers residing in residential dwelling units. Energy is generally supplied as single phase, 3-wire, 60-Hertz, having nominal voltage of 120/240 Volts and up to 400 amps. There shall be only one delivery point to a dwelling. The Basic Connection for Residential consumers is defined as 100 amp 120/240 volt overhead service. A Residential building is supplied at one service voltage per land parcel. Further servicing details are available in the distributor’s Conditions of Service. This classification refers to the supply of electrical energy to customers residing in residential dwelling units. Energy is generally supplied as single phase, 3-wire, 60-Hertz, having nominal voltage of 120/240 Volts and up to 400 amps. There shall be only one delivery point to a dwelling. The Basic Connection for Residential consumers is defined as 100 amp 120/240 volt overhead service. A Residential building is supplied at one service voltage per land parcel. Further servicing details are available in the distributor’s Conditions of Service.
A27: RESIDENTIAL
A28: RESIDENTIAL
A29: RESIDENTIAL
A30: RESIDENTIAL
A31: RESIDENTIAL
A32: RESIDENTIAL | B32: APPLICATION
A33: RESIDENTIAL
A34: RESIDENTIAL | B34: The application of these rates and charges shall be in accordance with the Licence of the Distributor and any Code or Order of the Board, and amendments thereto as approved by the Board, which may be applicable to the administration of this schedule.
A35: RESIDENTIAL
A36: RESIDENTIAL
A37: RESIDENTIAL | B37: No rates and charges for the distribution of electricity and charges to meet the costs of any work or service done or furnished for the purpose of the distribution of electricity shall be made except as permitted by this schedule, unless required by the Distributor’s Licence or a Code or Order of the Board, and amendments thereto as approved by the Board, or as specified herein
A38: RESIDENTIAL
A39: RESIDENTIAL
A40: RESIDENTIAL
A41: RESIDENTIAL | B41: Unless specifically noted, this schedule does not contain any charges for the electricity commodity, be it under the Regulated Price Plan, a contract with a retailer or the wholesale market price, as applicable. In addition, the charges in the MONTHLY RATES AND CHARGES – Regulatory Component of this schedule do not apply to a customer that is an embedded wholesale market participant.
A42: RESIDENTIAL
A43: RESIDENTIAL
A44: RESIDENTIAL | B44: It should be noted that this schedule does not list any charges, assessments or credits that are required by law to be invoiced by a distributor and that are not subject to Board approval, such as the Debt Retirement Charge, the Global Adjustment, the Ontario Clean Energy Benefit and the HST.
A45: RESIDENTIAL
A46: RESIDENTIAL
A47: RESIDENTIAL
A48: RESIDENTIAL | B48: MONTHLY RATES AND CHARGES - Delivery Component (If applicable, Effective Date MUST be included in rate description)
A49: RESIDENTIAL | B49: Service Charge | H49: $ | I49: 7.06
A50: RESIDENTIAL | B50: Rate Rider for Disposition of Residual Historical Smart Meter Costs - effective until April 30, 2014 | H50: $ | I50: -1.35
A51: RESIDENTIAL | B51: Rate Rider for Recovery of Stranded Meter Assets - effective until December 31, 2014 | H51: $ | I51: 1.06
A52: RESIDENTIAL | B52: Rate Rider for Smart Metering Entity Charge - effective until October 31, 2018 | H52: $ | I52: 0.79
A53: RESIDENTIAL | B53: Distribution Volumetric Rate | H53: $/kWh | I53: 0.0096
A54: RESIDENTIAL | B54: Low Voltage Service Rate | H54: $/kWh | I54: 0.0007
A55: RESIDENTIAL | B55: Rate Rider for Disposition of Global Adjustment Sub-Account (2013) - effective until April 30, 2014 Applicable only for Non-RPP Customers | H55: $/kWh | I55: 0.006
A56: RESIDENTIAL | B56: Rate Rider for Disposition of Global Adjustment Sub-Account (2014) - effective until December 31, 2014. Applicable only for Non-RPP Customers | H56: $/kWh | I56: 0.0033
A57: RESIDENTIAL | B57: Rate Rider for Disposition of Deferral/Variance Accounts (2013) - effective until April 30, 2014 | H57: $/kWh | I57: 0.0011
A58: RESIDENTIAL | B58: Rate Rider for Recovery of Lost Revenue Adjustment Mechanism (2013) - effective until December 31, 2014 | H58: $/kWh | I58: 0.0001
A59: RESIDENTIAL
A60: RESIDENTIAL | B60: Retail Transmission Rate - Network Service Rate | H60: $/kWh | I60: 0.007
A61: RESIDENTIAL | B61: Retail Transmission Rate - Line and Transformation Connection Service Rate | H61: $/kWh | I61: 0.0031
A62: RESIDENTIAL
A63: RESIDENTIAL
A64: RESIDENTIAL
A65: RESIDENTIAL
A66: RESIDENTIAL
A67: RESIDENTIAL
A68: RESIDENTIAL
A69: RESIDENTIAL
A70: RESIDENTIAL
A71: RESIDENTIAL
A72: RESIDENTIAL
A73: RESIDENTIAL | B73: Rate Rider for Disposition of Deferral/Variance Accounts (2014) - effective until December 31, 2014 | H73: $/kWh | I73: -0.0018
A74: RESIDENTIAL | B74: Rate Rider for Disposition of Account 1576 - effective until December, 2014 | H74: $/kWh | I74: -0.0002
A75: RESIDENTIAL
A76: RESIDENTIAL | B76: Rate Rider to Refund Revenue from a Previous Approved ICM Rate Rider - effective until December 31, 2014 | H76: $/kWh | I76: -0.0032
A77: RESIDENTIAL | B77: Rural or Remote Electricity Rate Protection Charge (RRRP) -effective until April 30, 2014 | H77: $/kWh | I77: 0.0012
A78: RESIDENTIAL
A79: RESIDENTIAL | B79: MONTHLY RATES AND CHARGES - Regulatory Component
A80: RESIDENTIAL
A81: RESIDENTIAL | B81: Wholesale Market Service Rate | H81: $/kWh | I81: 0.0044
A82: RESIDENTIAL | B82: Rural or Remote Electricity Rate Protection Charge (RRRP) | H82: $/kWh | I82: 0.0013
A83: RESIDENTIAL | B83: Standard Supply Service - Administrative Charge (if applicable) | H83: $ | I83: 0.25
A84: RESIDENTIAL
A87: GENERAL SERVICE LESS THAN 50 KW | B87: GENERAL SERVICE LESS THAN 50 KW Service Classification
A88: GENERAL SERVICE LESS THAN 50 KW
A89: GENERAL SERVICE LESS THAN 50 KW | B89: This classification refers to the supply of electrical energy to a non residential account whose average monthly maximum demand is less than, or is forecast to be less than, 50 kW, and Town Houses and Condominiums that require centralized bulk metering. Further servicing details are available in the distributor’s Conditions of Service
A90: GENERAL SERVICE LESS THAN 50 KW
A91: GENERAL SERVICE LESS THAN 50 KW
A92: GENERAL SERVICE LESS THAN 50 KW
A93: GENERAL SERVICE LESS THAN 50 KW
A94: GENERAL SERVICE LESS THAN 50 KW
A95: GENERAL SERVICE LESS THAN 50 KW | B95: APPLICATION
A96: GENERAL SERVICE LESS THAN 50 KW
A97: GENERAL SERVICE LESS THAN 50 KW | B97: The application of these rates and charges shall be in accordance with the Licence of the Distributor and any Code or Order of the Board, and amendments thereto as approved by the Board, which may be applicable to the administration of this schedule.
A98: GENERAL SERVICE LESS THAN 50 KW
A99: GENERAL SERVICE LESS THAN 50 KW
A100: GENERAL SERVICE LESS THAN 50 KW | B100: No rates and charges for the distribution of electricity and charges to meet the costs of any work or service done or furnished for the purpose of the distribution of electricity shall be made except as permitted by this schedule, unless required by the Distributor’s Licence or a Code or Order of the Board, and amendments thereto as approved by the Board, or as specified herein.
A101: GENERAL SERVICE LESS THAN 50 KW
A102: GENERAL SERVICE LESS THAN 50 KW
A103: GENERAL SERVICE LESS THAN 50 KW
A104: GENERAL SERVICE LESS THAN 50 KW | B104: Unless specifically noted, this schedule does not contain any charges for the electricity commodity, be it under the Regulated Price Plan, a contract with a retailer or the wholesale market price, as applicable. In addition, the charges in the MONTHLY RATES AND CHARGES – Regulatory Component of this schedule do not apply to a customer that is an embedded wholesale market participant.
A105: GENERAL SERVICE LESS THAN 50 KW
A106: GENERAL SERVICE LESS THAN 50 KW
A107: GENERAL SERVICE LESS THAN 50 KW | B107: It should be noted that this schedule does not list any charges, assessments or credits that are required by law to be invoiced by a distributor and that are not subject to Board approval, such as the Debt Retirement Charge, the Global Adjustment, the Ontario Clean Energy Benefit and the HST.
A108: GENERAL SERVICE LESS THAN 50 KW
A109: GENERAL SERVICE LESS THAN 50 KW
A110: GENERAL SERVICE LESS THAN 50 KW
A111: GENERAL SERVICE LESS THAN 50 KW | B111: MONTHLY RATES AND CHARGES - Delivery Component (If applicable, Effective Date MUST be included in rate description)
A112: GENERAL SERVICE LESS THAN 50 KW | B112: Service Charge | H112: $ | I112: 14.91
A113: GENERAL SERVICE LESS THAN 50 KW
A114: GENERAL SERVICE LESS THAN 50 KW | B114: Rate Rider for Disposition of Residual Historical Smart Meter Costs - effective until April 30, 2014 | H114: $ | I114: -0.09
A115: GENERAL SERVICE LESS THAN 50 KW | B115: Rate Rider for Recovery of Stranded Meter Assets - effective until December 31, 2014 | H115: $ | I115: 5.49
A116: GENERAL SERVICE LESS THAN 50 KW | B116: Rate Rider for Smart Metering Entity Charge - effective until October 31, 2018 | H116: $ | I116: 0.79
A117: GENERAL SERVICE LESS THAN 50 KW | B117: Distribution Volumetric Rate | H117: $/kWh | I117: 0.0059
A118: GENERAL SERVICE LESS THAN 50 KW | B118: Low Voltage Service Rate | H118: $/kWh | I118: 0.0006
A119: GENERAL SERVICE LESS THAN 50 KW | B119: Rate Rider for Disposition of Global Adjustment Sub-Account (2013) - effective until April 30, 2014 Applicable only for Non-RPP Customers | H119: $/kWh | I119: 0.006
A120: GENERAL SERVICE LESS THAN 50 KW | B120: Rate Rider for Disposition of Global Adjustment Sub-Account (2014) - effective until December 31, 2014. Applicable only for Non-RPP Customers | H120: $/kWh | I120: 0.0033
A121: GENERAL SERVICE LESS THAN 50 KW | B121: Rate Rider for Disposition of Deferral/Variance Accounts (2013) - effective until April 30, 2014 | H121: $/kWh | I121: 0.0011
A122: GENERAL SERVICE LESS THAN 50 KW | B122: Rate Rider for Recovery of Lost Revenue Adjustment Mechanism (2013) - effective until December 31, 2014 | H122: $/kWh | I122: 0.0001
A123: GENERAL SERVICE LESS THAN 50 KW | B123: Retail Transmission Rate - Network Service Rate | H123: $/kWh | I123: 0.0064
A124: GENERAL SERVICE LESS THAN 50 KW | B124: Retail Transmission Rate - Line and Transformation Connection Service Rate | H124: $/kWh | I124: 0.0027
A125: GENERAL SERVICE LESS THAN 50 KW
A126: GENERAL SERVICE LESS THAN 50 KW
A127: GENERAL SERVICE LESS THAN 50 KW
A128: GENERAL SERVICE LESS THAN 50 KW
A129: GENERAL SERVICE LESS THAN 50 KW
A130: GENERAL SERVICE LESS THAN 50 KW
A131: GENERAL SERVICE LESS THAN 50 KW
A132: GENERAL SERVICE LESS THAN 50 KW
A133: GENERAL SERVICE LESS THAN 50 KW
A134: GENERAL SERVICE LESS THAN 50 KW
A135: GENERAL SERVICE LESS THAN 50 KW
A136: GENERAL SERVICE LESS THAN 50 KW | B136: Rate Rider for Disposition of Deferral/Variance Accounts (2014) - effective until December 31, 2014 | H136: $/kWh | I136: -0.0015
A137: GENERAL SERVICE LESS THAN 50 KW | B137: Rate Rider for Dispostion of Account 1576 - effective until December 31, 2014 | H137: $/kWh | I137: -0.0002
A138: GENERAL SERVICE LESS THAN 50 KW | B138: Rate Ride to Refund Revenue from a previous Approved ICM Rate Rider - Effective until December 31, 2014 | H138: $/kWh | I138: -0.0022
A139: GENERAL SERVICE LESS THAN 50 KW | B139: Rural or Remote Electricity Rate Protection Charge (RRRP) -effective until April 30, 2014 | H139: $/kWh | I139: 0.0012
A140: GENERAL SERVICE LESS THAN 50 KW
A141: GENERAL SERVICE LESS THAN 50 KW
A142: GENERAL SERVICE LESS THAN 50 KW | B142: MONTHLY RATES AND CHARGES - Regulatory Component
A143: GENERAL SERVICE LESS THAN 50 KW
A144: GENERAL SERVICE LESS THAN 50 KW | B144: Wholesale Market Service Rate | H144: =H81 -> $/kWh | I144: 0.0044
A145: GENERAL SERVICE LESS THAN 50 KW | B145: Rural or Remote Electricity Rate Protection Charge (RRRP) | H145: $/kWh | I145: 0.0013
A146: GENERAL SERVICE LESS THAN 50 KW | B146: Standard Supply Service - Administrative Charge (if applicable) | H146: $ | I146: 0.25
A147: GENERAL SERVICE LESS THAN 50 KW
A150: GENERAL SERVICE 50 TO 4,999 KW | B150: GENERAL SERVICE 50 TO 4,999 KW Service Classification
A151: GENERAL SERVICE 50 TO 4,999 KW
A152: GENERAL SERVICE 50 TO 4,999 KW | B152: This classification applies to a non residential account whose average monthly maximum demand used for billing purposes is equal to or greater than, or is forecast to be equal to or greater than, 50 kW but less than 5,000 kW. Note that for the application of the Retail Transmission Rate – Network Service Rate and the Retail Transmission Rate – Line and Transformation Connection Service Rate the following sub-classifications apply: General Service 50 to 500 kW non-interval metered General Service 50 to 500 kW interval metered General Service greater than 500 to 5,000 kW interval metered. Further servicing details are available in the distributor’s Conditions of Service.
A153: GENERAL SERVICE 50 TO 4,999 KW
A154: GENERAL SERVICE 50 TO 4,999 KW
A155: GENERAL SERVICE 50 TO 4,999 KW
A156: GENERAL SERVICE 50 TO 4,999 KW
A157: GENERAL SERVICE 50 TO 4,999 KW
A158: GENERAL SERVICE 50 TO 4,999 KW | B158: APPLICATION
A159: GENERAL SERVICE 50 TO 4,999 KW
A160: GENERAL SERVICE 50 TO 4,999 KW | B160: The application of these rates and charges shall be in accordance with the Licence of the Distributor and any Code or Order of the Board, and amendments thereto as approved by the Board, which may be applicable to the administration of this schedule.
A161: GENERAL SERVICE 50 TO 4,999 KW
A162: GENERAL SERVICE 50 TO 4,999 KW
A163: GENERAL SERVICE 50 TO 4,999 KW | B163: No rates and charges for the distribution of electricity and charges to meet the costs of any work or service done or furnished for the purpose of the distribution of electricity shall be made except as permitted by this schedule, unless required by the Distributor’s Licence or a Code or Order of the Board, and amendments thereto as approved by the Board, or as specified herein.
A164: GENERAL SERVICE 50 TO 4,999 KW
A165: GENERAL SERVICE 50 TO 4,999 KW
A166: GENERAL SERVICE 50 TO 4,999 KW
A167: GENERAL SERVICE 50 TO 4,999 KW | B167: Unless specifically noted, this schedule does not contain any charges for the electricity commodity, be it under the Regulated Price Plan, a contract with a retailer or the wholesale market price, as applicable. In addition, the charges in the MONTHLY RATES AND CHARGES – Regulatory Component of this schedule do not apply to a customer that is an embedded wholesale market participant
A168: GENERAL SERVICE 50 TO 4,999 KW
A169: GENERAL SERVICE 50 TO 4,999 KW
A170: GENERAL SERVICE 50 TO 4,999 KW | B170: It should be noted that this schedule does not list any charges, assessments or credits that are required by law to be invoiced by a distributor and that are not subject to Board approval, such as the Debt Retirement Charge, the Global Adjustment, the Ontario Clean Energy Benefit and the HST.
A171: GENERAL SERVICE 50 TO 4,999 KW
A172: GENERAL SERVICE 50 TO 4,999 KW
A173: GENERAL SERVICE 50 TO 4,999 KW
A174: GENERAL SERVICE 50 TO 4,999 KW | B174: MONTHLY RATES AND CHARGES - Delivery Component (If applicable, Effective Date MUST be included in rate description)
A175: GENERAL SERVICE 50 TO 4,999 KW | B175: Service Charge | H175: $ | I175: 97.35
A176: GENERAL SERVICE 50 TO 4,999 KW | B176: Distribution Volumetric Rate | H176: $/kW | I176: 1.9733
A177: GENERAL SERVICE 50 TO 4,999 KW | B177: Low Voltage Service Rate | H177: $/kW | I177: 0.2419
A178: GENERAL SERVICE 50 TO 4,999 KW | B178: Rate Rider for Disposition of Global Adjustment Sub-Account (2013) - effective until April 30, 2014 Applicable only for Non-RPP Customers | H178: $/kW | I178: 2.3612
A179: GENERAL SERVICE 50 TO 4,999 KW | B179: Rate Rider for Disposition of Global Adjustment Sub-Account (2014) - effective until December 31, 2014. Applicable only for Non-RPP Customers | H179: $/kW | I179: 1.2501
A180: GENERAL SERVICE 50 TO 4,999 KW | B180: Rate Rider for Disposition of Deferral/Variance Accounts (2013) - effective until April 30, 2014 | H180: $/kW | I180: 0.4219
A181: GENERAL SERVICE 50 TO 4,999 KW | B181: Rate Rider for Recovery of Lost Revenue Adjustment Mechanism (2013) - effective until December 31, 2014 | H181: $/kW | I181: 0.0022
A182: GENERAL SERVICE 50 TO 4,999 KW | B182: Retail Transmission Rate - Network Service Rate | H182: $/kW | I182: 2.6063
A183: GENERAL SERVICE 50 TO 4,999 KW | B183: Retail Transmission Rate - Line and Transformation Connection Service Rate | H183: $/kW | I183: 1.1229
A184: GENERAL SERVICE 50 TO 4,999 KW
A185: GENERAL SERVICE 50 TO 4,999 KW
A186: GENERAL SERVICE 50 TO 4,999 KW
A187: GENERAL SERVICE 50 TO 4,999 KW
A188: GENERAL SERVICE 50 TO 4,999 KW
A189: GENERAL SERVICE 50 TO 4,999 KW
A190: GENERAL SERVICE 50 TO 4,999 KW
A191: GENERAL SERVICE 50 TO 4,999 KW
A192: GENERAL SERVICE 50 TO 4,999 KW
A193: GENERAL SERVICE 50 TO 4,999 KW
A194: GENERAL SERVICE 50 TO 4,999 KW
A195: GENERAL SERVICE 50 TO 4,999 KW
A196: GENERAL SERVICE 50 TO 4,999 KW
A197: GENERAL SERVICE 50 TO 4,999 KW
A198: GENERAL SERVICE 50 TO 4,999 KW
A199: GENERAL SERVICE 50 TO 4,999 KW | B199: Rate Rider for Disposition of Deferral/Variance Accounts (2014) - effective until December 31, 2014 | H199: $/kW | I199: -0.1753
A200: GENERAL SERVICE 50 TO 4,999 KW | B200: Rate Rider for Dispostion of Account 1576 - effective until December 31, 2014 | H200: $/kW | I200: -0.0635
A201: GENERAL SERVICE 50 TO 4,999 KW | B201: Rate Rider to Refund Revenue from a Previous Approved ICM Rate Rider - effective until December 31, 2014 | H201: $/kW | I201: -0.4319
A202: GENERAL SERVICE 50 TO 4,999 KW | B202: Rural or Remote Electricity Rate Protection Charge (RRRP) -effective until April 30, 2014 | H202: $/kWh | I202: 0.0012
A203: GENERAL SERVICE 50 TO 4,999 KW
A204: GENERAL SERVICE 50 TO 4,999 KW
A205: GENERAL SERVICE 50 TO 4,999 KW | B205: MONTHLY RATES AND CHARGES - Regulatory Component
A206: GENERAL SERVICE 50 TO 4,999 KW
A207: GENERAL SERVICE 50 TO 4,999 KW | B207: Wholesale Market Service Rate | H207: =H81 -> $/kWh | I207: 0.0044
A208: GENERAL SERVICE 50 TO 4,999 KW | B208: Rural or Remote Electricity Rate Protection Charge (RRRP) | H208: $/kWh | I208: 0.0013
A209: GENERAL SERVICE 50 TO 4,999 KW | B209: Standard Supply Service - Administrative Charge (if applicable) | H209: $ | I209: 0.25
A210: GENERAL SERVICE 50 TO 4,999 KW
A213: UNMETERED SCATTERED LOAD | B213: UNMETERED SCATTERED LOAD Service Classification
A214: UNMETERED SCATTERED LOAD
A215: UNMETERED SCATTERED LOAD | B215: This classification applies to an account taking electricity at 750 volts or less whose average monthly maximum demand is less than, or is forecast to be less than, 50 kW and the consumption is unmetered. Such connections include cable TV power packs, bus shelters, telephone booths, traffic lights, railway crossings, etc. The level of the consumption will be agreed to by the distributor and the customer, based on detailed manufacturer information/ documentation with regard to electrical consumption of the unmetered load or periodic monitoring of actual consumption. Further servicing details are available in the distributor’s Conditions of Service.
A216: UNMETERED SCATTERED LOAD
A217: UNMETERED SCATTERED LOAD
A218: UNMETERED SCATTERED LOAD
A219: UNMETERED SCATTERED LOAD
A220: UNMETERED SCATTERED LOAD
A221: UNMETERED SCATTERED LOAD | B221: APPLICATION
... 174 more rows

Sheet 5. 2014 Continuity Schedule
C15: Please complete the following continuity schedule for the following Deferral / Variance Accounts. Enter information into green cells only. If you have received approval to dispose of balances from prior years, the starting point for entries in the 2015 DVA schedule below will be the balance sheet date as per your G/L for which you received approval. For example, if in the 2014 EDR process (CoS or IRM) you received approval for the December 31, 2012 balances, the starting point for your entries below should be the 2011 year. This will allow for the correct starting point for the 2012 opening balance columns for both principal and interest. Please refer to the footnotes for further instructions.
E19: 2010 | O19: 2011 | Y19: 2012 | AL19: 2013 | AY19: 2014 | BC19: Projected Interest on Dec-31-13 Balances | BF19: 2.1.7 RRR
C20: Account Descriptions | D20: Account Number | E20: Opening Principal Amounts as of Jan-1-10 | F20: Transactions Debit / (Credit) during 2010 excluding interest and adjustments 2 | G20: Board-Approved Disposition during 2010 | H20: Adjustments during 2010 - other 1 | I20: Closing Principal Balance as of Dec-31-10 | J20: Opening Interest Amounts as of Jan-1-10 | K20: Interest Jan-1 to Dec-31-10 | L20: Board-Approved Disposition during 2010 | M20: Adjustments during 2010 - other 2 | N20: Closing Interest Amounts as of Dec-31-10 | O20: Opening Principal Amounts as of Jan-1-11 | P20: Transactions Debit / (Credit) during 2011 excluding interest and adjustments 2 | Q20: Board-Approved Disposition during 2011 | R20: Adjustments during 2011 - other 1 | S20: Closing Principal Balance as of Dec-31-11 | T20: Opening Interest Amounts as of Jan-1-11 | U20: Interest Jan-1 to Dec-31-11 | V20: Board-Approved Disposition during 2011 | W20: Adjustments during 2011 - other 2 | X20: Closing Interest Amounts as of Dec-31-11 | Y20: Opening Principal Amounts as of Jan-1-12 | Z20: Transactions Debit / (Credit) during 2012 excluding interest and adjustments 2 | AA20: Board-Approved Disposition during 2012 | AB20: Other 1 Adjustments during Q1 2012 | AC20: Other 1 Adjustments during Q2 2012 | AD20: Other 1 Adjustments during Q3 2012 | AE20: Other 1 Adjustments during Q4 2012 | AF20: Closing Principal Balance as of Dec-31-12 | AG20: Opening Interest Amounts as of Jan-1-12 | AH20: Interest Jan-1 to Dec-31-12 | AI20: Board-Approved Disposition during 2012 | AJ20: Adjustments during 2012 - other 1 | AK20: Closing Interest Amounts as of Dec-31-12 | AL20: Opening Principal Amounts as of Jan-1-13 | AM20: Transactions Debit / (Credit) during 2013 excluding interest and adjustments 2 | AN20: Board-Approved Disposition during 2013 | AO20: Other 1 Adjustments during Q1 2013 | AP20: Other 1 Adjustments during Q2 2013 | AQ20: Other 1 Adjustments during Q3 2013 | AR20: Other 1 Adjustments during Q4 2013 | AS20: Closing Principal Balance as of Dec-31-13 | AT20: Opening Interest Amounts as of Jan-1-13 | AU20: Interest Jan-1 to Dec-31-13 | AV20: Board-Approved Disposition during 2013 | AW20: Adjustments during 2013 - other 1 | AX20: Closing Interest Amounts as of Dec-31-13 | AY20: Principal Disposition during 2014 - instructed by Board | AZ20: Interest Disposition during 2014 - instructed by Board | BA20: Closing Principal Balances as of Dec 31-13 Adjusted for Dispositions during 2014 | BB20: Closing Interest Balances as of Dec 31-13 Adjusted for Dispositions during 2014 | BC20: Projected Interest from Jan 1, 2014 to December 31, 2014 on Dec 31 -13 balance adjusted for disposition during 2014 3 | BD20: Projected Interest from January 1, 2015 to April 30, 2015 on Dec 31 -13 balance adjusted for disposition during 2014 3 | BE20: Total Claim | BF20: As of Dec 31-13 | BG20: Variance RRR vs. 2013 Balance (Principal + Interest)
BE22: Claim before Forecasted Transactions
C23: Group 1 Accounts
A24: 1 | C24: LV Variance Account | D24: 1550 | E24: 153143 | F24: 31225 | G24: 136668 | I24: =E24+F24-G24+H24 -> 47700 | J24: 9495 | K24: 589.46 | L24: 9823.61 | N24: =J24+K24-L24+M24 -> 260.85 | O24: =I24 -> 47700 | P24: 38101.57 | Q24: 16474.88 | S24: =O24+P24-Q24+R24 -> 69326.69 | T24: =N24 -> 260.85 | U24: 881.37 | V24: -36 | X24: =T24+U24-V24+W24 -> 1178.22 | Y24: =S24 -> 69326.69 | Z24: 47719.79 | AA24: 31224.85 | AF24: =Y24+Z24-AA24+SUM(AB24:AE24) -> 85821.63 | AG24: =X24 -> 1178.22 | AH24: 1136.44 | AI24: 986.38 | AK24: =AG24+AH24-AI24+AJ24 -> 1328.28 | AL24: =AF24 -> 85821.63 | AM24: 40452.89 | AN24: 38101.57 | AS24: =AL24+AM24-AN24+SUM(AO24:AR24) -> 88172.95 | AT24: =AK24 -> 1328.28 | AU24: 1283.64 | AV24: 1090 | AX24: =AT24+AU24-AV24+AW24 -> 1521.92 | AY24: 47719.36 | AZ24: 1123.43 | BA24: =AS24-AY24 -> 40453.59 | BB24: =AX24-AZ24 -> 398.49 | BC24: 708.05 | BE24: =SUM(BA24:BD24) -> 41560.13 | BF24: 89694.13 | BG24: =BF24-SUM(AS24,AX24) -> -0.74
C25: Smart Metering Entity Charge Variance | D25: 1551 | E25: 0 | J25: 0 | AK25: 0 | AL25: =AK25 -> 0 | AM25: 3541.96 | AS25: =AL25+AM25-AN25+SUM(AO25:AR25) -> 3541.96 | AT25: =AK25 -> 0 | AU25: 51.83 | AX25: 51.83 | BA25: =AS25-AY25 -> 3541.96 | BB25: =AX25-AZ25 -> 51.83 | BC25: 52.07 | BE25: =SUM(BA25:BD25) -> 3645.86 | BF25: 3593.79 | BG25: =BF25-SUM(AS25,AX25) -> 0
A26: 2 | C26: RSVA - Wholesale Market Service Charge | D26: 1580 | E26: -449782 | F26: -204029.06 | G26: -319236.53 | I26: =E26+F26-G26+SUM(H26:H26) -> -334574.53 | J26: 7 | K26: -2418 | L26: -229.68 | N26: =J26+K26-L26+M26 -> -2181.32 | O26: =I26 -> -334574.53 | P26: -171832.71 | Q26: -130545.46 | S26: =O26+P26-Q26+SUM(R26:R26) -> -375861.78 | T26: -2181.32 | U26: -6029.78 | V26: -2084 | X26: =T26+U26-V26+W26 -> -6127.1 | Y26: =S26 -> -375861.78 | Z26: -113567.77 | AA26: -204029.06 | AF26: -285400.49 | AG26: =X26 -> -6127.1 | AH26: -4900.15 | AI26: -4712.88 | AK26: -6314.37 | AL26: =AF26 -> -285400.49 | AM26: -117137.85 | AN26: -171832.71 | AS26: -230705.63 | AT26: =AK26 -> -6314.37 | AU26: -3952.95 | AV26: -5771 | AX26: -4496.32 | AY26: -113567.48 | AZ26: -3042.83 | BA26: -117138.15 | BB26: -1453.49 | BC26: -1991.78 | BE26: =SUM(BA26:BD26) -> -120583.42 | BF26: -235201.5 | BG26: 0.45
A27: 3 | C27: RSVA - Retail Transmission Network Charge | D27: 1584 | E27: -222294 | F27: 58508.3 | G27: -216773.17 | I27: 52987.47 | J27: -17154 | K27: 62.83 | L27: -17548.83 | N27: 457.66 | O27: 52987.47 | P27: -4465.71 | Q27: -5521.84 | S27: 54043.6 | T27: 457.66 | U27: 960.42 | V27: 297 | X27: 1121.08 | Y27: 54043.6 | Z27: -7548.6 | AA27: 58508.3 | AF27: -12013.3 | AG27: 1121.08 | AH27: 445.05 | AI27: 1276.96 | AK27: 289.17 | AL27: -12013.3 | AM27: 43349.29 | AN27: -4465.71 | AS27: 35801.7 | AT27: 289.17 | AU27: 280.96 | AV27: 42 | AX27: 528.13 | AY27: -7547.47 | AZ27: 114.93 | BA27: 43349.17 | BB27: 413.2 | BC27: 619.29 | BE27: 44381.66 | BF27: 36329.72 | BG27: -0.11
A28: 4 | C28: RSVA - Retail Transmission Connection Charge | D28: 1586 | E28: -1300900 | F28: -32155.55 | G28: -1244442.97 | I28: -88612.58 | J28: -216637 | K28: -3055.53 | L28: -218909.7 | N28: -782.83 | O28: -88612.58 | P28: -33890.8 | Q28: -56457.17 | S28: -66046.21 | T28: -782.83 | U28: -1332.17 | V28: 1269 | X28: -3384 | Y28: -66046.21 | Z28: -20930.62 | AA28: -32155.55 | AF28: -54821.28 | AG28: -3384 | AH28: -917.15 | AI28: -2952.31 | AK28: -1348.84 | AL28: -54821.28 | AM28: 1460.3 | AN28: -33890.8 | AS28: -19470.18 | AT28: -1348.84 | AU28: -549 | AV28: -1251 | AX28: -646.84 | AY28: -20930.42 | AZ28: -568.8 | BA28: 1460.24 | BB28: -78.04 | BC28: -28.27 | BE28: 1353.93 | BF28: -20117.32 | BG28: -0.2999999999
A29: 5 | C29: RSVA - Power (excluding Global Adjustment) | D29: 1588 | E29: -487443 | F29: 281183.36 | G29: -666285.61 | I29: 460025.97 | J29: 17173 | K29: 3566.37 | L29: 16633 | N29: 4106.37 | O29: 460025.97 | P29: 334728.84 | Q29: -343119.4 | R29: -521962 | S29: 615912.21 | T29: 4106.37 | U29: 8057.14 | V29: 11072 | W29: 16632.78 | X29: 17724.29 | Y29: 615912.21 | Z29: 112791.51 | AA29: 281183.36 | AF29: 447520.36 | AG29: 17724.29 | AH29: 9456.53 | AI29: 16024.22 | AK29: 11156.6 | AL29: 447520.36 | AM29: -187454.48 | AN29: 334728.84 | AS29: -74662.96 | AT29: 11156.6 | AU29: 5938.64 | AV29: 9622 | AX29: 7473.24 | AY29: 112791.31 | AZ29: 4810.54 | BA29: -187454.27 | BB29: 2662.7 | BC29: -2487.57 | BE29: -187279.14 | BF29: -67189.66 | BG29: 0.06000000004
A30: 6 | C30: RSVA - Global Adjustment | D30: 1589 | E30: 673939 | F30: 53797.49 | G30: 232444.73 | I30: 495291.76 | J30: 21677 | K30: 3262.48 | L30: 20219.88 | N30: 4719.6 | O30: 495291.76 | P30: 520284.04 | Q30: 926602.71 | R30: 485109.12 | S30: 574082.21 | T30: 4719.6 | U30: 10124.2 | V30: 38154 | W30: 20220.1 | X30: -3090.1 | Y30: 574082.21 | Z30: 266285.87 | AA30: 53797.49 | AF30: 786570.59 | AG30: -3090.1 | AH30: 9482.07 | AI30: -10028.97 | AK30: 16420.94 | AL30: 786570.59 | AM30: 577354.4 | AN30: 520284.04 | AS30: 843640.95 | AT30: 16420.94 | AU30: 11207.11 | AV30: 17385 | AX30: 10243.05 | AY30: 266285.91 | AZ30: 5464.8 | BA30: 577355.04 | BB30: 4778.25 | BC30: 9119.85 | BE30: 591253.14 | BF30: 853883.65 | BG30: -0.3500000002
A31: 7 | C31: Recovery of Regulatory Asset Balances | D31: 1590 | E31: 37130.56 | F31: 0 | G31: 37130.56 | I31: 0 | J31: 26292.1 | K31: 75.81 | L31: 25872.28 | N31: 495.63 | O31: 0 | S31: 0 | T31: 495.63 | U31: 0 | V31: 419.82 | X31: 75.81 | Y31: 0 | AF31: 0 | AG31: 75.81 | AI31: 75.81 | AK31: 1.023181539e-12 | AL31: 0 | AS31: 0 | AT31: 1.023181539e-12 | AX31: 1.023181539e-12 | BA31: 0 | BB31: 1.023181539e-12 | BE31: 1.023181539e-12 | BF31: 0 | BG31: -1.023181539e-12
A32: 8 | C32: Disposition and Recovery/Refund of Regulatory Balances (2008)4 | D32: 1595 | F32: 462758.07 | G32: 1737394.29 | I32: -1274636.22 | K32: 35707.86 | L32: 132026 | N32: -96318.14 | O32: =I32 -> -1274636.22 | P32: 785352.96 | R32: 36852.88 | S32: -452430.38 | T32: -96318.14 | U32: 45353.88 | W32: -36852.88 | X32: -87817.14 | Y32: -452430.38 | Z32: 305002.56 | AF32: -147427.82 | AG32: -87817.14 | AH32: 16811.81 | AI32: -24897 | AK32: -46108.33 | AL32: -147427.82 | AS32: -147427.82 | AT32: -46108.33 | AU32: -2167.19 | AX32: -48275.52 | AY32: -147427.82 | AZ32: -48276 | BA32: 0 | BB32: 0.48 | BE32: 0.48 | BF32: -195703 | BG32: =BF32-SUM(AS32,AX32) -> 0.34
A33: 9 | C33: Disposition and Recovery/Refund of Regulatory Balances (2009)4 | D33: 1595 | I33: 0 | N33: 0 | O33: =I33 -> 0 | P33: -83209.77 | Q33: -407433.68 | S33: 324223.91 | T33: 0 | U33: -7567.79 | V33: -49091.82 | X33: 41524.03 | Y33: 324223.91 | Z33: -215638.6 | AF33: 108585.31 | AG33: 41524.03 | AH33: -22175.84 | AK33: 19348.19 | AL33: 108585.31 | AM33: -76505.76 | AS33: 32079.55 | AT33: 19348.19 | AU33: -10797.2 | AX33: 8550.99 | BA33: 32079.55 | BB33: 8550.99 | BC33: 472 | BE33: 41102.54 | BF33: 40631 | BG33: =BF33-SUM(AS33,AX33) -> 0.46
A34: 9 | C34: Disposition and Recovery/Refund of Regulatory Balances (2010)4 | D34: 1595 | I34: 0 | N34: 0 | O34: =I34 -> 0 | S34: 0 | T34: 0 | X34: 0 | Y34: 0 | Z34: -106978.39 | AA34: -196425.8 | AF34: 89447.41 | AG34: 0 | AH34: 14697.67 | AI34: 25036.2 | AK34: -10338.53 | AL34: 89447.41 | AM34: -87563.44 | AS34: 1883.97 | AT34: -10338.53 | AU34: 11318.4 | AX34: 979.87 | BA34: 1883.97 | BB34: 979.87 | BC34: 28 | BE34: 2891.84 | BF34: 2864 | BG34: =BF34-SUM(AS34,AX34) -> 0.16
A35: 9 | C35: Disposition and Recovery/Refund of Regulatory Balances (2011)4 | D35: 1595 | I35: 0 | N35: 0 | O35: =I35 -> 0 | S35: 0 | T35: 0 | X35: 0 | Y35: 0 | AF35: 0 | AG35: 0 | AK35: 0 | AL35: 0 | AS35: 0 | AT35: 0 | AX35: 0 | BA35: 0 | BB35: 0 | BE35: =SUM(BA35:BD35) -> 0 | BG35: 0
A36: 9 | C36: Disposition and Recovery/Refund of Regulatory Balances (2012)4 | D36: 1595 | I36: 0 | N36: 0 | O36: =I36 -> 0 | S36: 0 | T36: =N36 -> 0 | X36: 0 | Y36: =S36 -> 0 | AF36: =Y36+Z36-AA36+SUM(AB36:AE36) -> 0 | AG36: =X36 -> 0 | AK36: =AG36+AH36-AI36+AJ36 -> 0 | AL36: =AF36 -> 0 | AS36: =AL36+AM36-AN36+SUM(AO36:AR36) -> 0 | AT36: =AK36 -> 0 | AX36: =AT36+AU36-AV36+AW36 -> 0 | BA36: 0 | BB36: 0 | BE36: =SUM(BA36:BD36) -> 0 | BG36: 0
C38: RSVA - Global Adjustment | D38: 1589 | E38: =E30 -> 673939 | F38: =F30 -> 53797.49 | G38: 232444.73 | H38: 0 | I38: 495291.76 | J38: 21677 | K38: 3262.48 | L38: 20219.88 | M38: 0 | N38: 4719.6 | O38: =O30 -> 495291.76 | P38: =P30 -> 520284.04 | Q38: 926602.71 | R38: 485109.12 | S38: 574082.21 | T38: 4719.6 | U38: 10124.2 | V38: 38154 | W38: 20220.1 | X38: -3090.1 | Y38: =Y30 -> 574082.21 | Z38: =Z30 -> 266285.87 | AA38: 53797.49 | AB38: 0 | AC38: 0 | AD38: 0 | AE38: 0 | AF38: =AF30 -> 786570.59 | AG38: -3090.1 | AH38: 9482.07 | AI38: -10028.97 | AJ38: =AJ30 -> 0 | AK38: 16420.94 | AL38: =AL30 -> 786570.59 | AM38: =AM30 -> 577354.4 | AN38: 520284.04 | AO38: 0 | AP38: 0 | AQ38: 0 | AR38: 0 | AS38: 843640.95 | AT38: 16420.94 | AU38: 11207.11 | AV38: 17385 | AW38: 0 | AX38: 10243.05 | AY38: 266285.91 | AZ38: =AZ30 -> 5464.8 | BA38: 577355.04 | BB38: 4778.25 | BC38: 9119.85 | BD38: 0 | BE38: 591253.14 | BF38: 853883.65 | BG38: -0.3500000002
C39: Total Group 1 Balance excluding Account 1589 - Global Adjustment | E39: =SUM(E24:E29,E31:E36) -> -2270145.44 | F39: =SUM(F24:F29,F31:F36) -> 597490.12 | G39: -535545.43 | H39: 0 | I39: -1137109.89 | J39: -180823.9 | K39: 34528.8 | L39: -52333.32 | M39: 0 | N39: -93961.78 | O39: =SUM(O24:O29,O31:O36) -> -1137109.89 | P39: =SUM(P24:P29,P31:P36) -> 864784.38 | Q39: -926602.67 | R39: -485109.12 | S39: 169168.04 | T39: -93961.78 | U39: 40323.07 | V39: -38154 | W39: -20220.1 | X39: -35704.81 | Y39: =SUM(Y24:Y29,Y31:Y36) -> 169168.04 | Z39: =SUM(Z24:Z29,Z31:Z36) -> 849.88 | AA39: -61693.9 | AB39: 0 | AC39: 0 | AD39: 0 | AE39: 0 | AF39: =SUM(AF24:AF29,AF31:AF36) -> 231711.82 | AG39: -35704.81 | AH39: 14554.36 | AI39: 10837.38 | AJ39: =SUM(AJ24:AJ29,AJ31:AJ36) -> 0 | AK39: -31987.83 | AL39: =SUM(AL24:AL29,AL31:AL36) -> 231711.82 | AM39: =SUM(AM24:AM29,AM31:AM36) -> -379857.09 | AN39: 162641.19 | AO39: 0 | AP39: 0 | AQ39: 0 | AR39: 0 | AS39: -310786.46 | AT39: -31987.83 | AU39: 1407.13 | AV39: 3732 | AW39: 0 | AX39: -34312.7 | AY39: -128962.52 | AZ39: =SUM(AZ24:AZ29,AZ31:AZ36) -> -45838.73 | BA39: -181823.94 | BB39: 11526.03 | BC39: -2628.21 | BD39: 0 | BE39: -172926.12 | BF39: -345098.84 | BG39: 0.3200000001
C40: Total Group 1 Balance | E40: =SUM(E24:E36) -> -1596206.44 | F40: =SUM(F24:F36) -> 651287.61 | G40: -303100.7 | H40: 0 | I40: -641818.13 | J40: -159146.9 | K40: 37791.28 | L40: -32113.44 | M40: 0 | N40: -89242.18 | O40: =SUM(O24:O36) -> -641818.13 | P40: =SUM(P24:P36) -> 1385068.42 | Q40: 0.03999999998 | R40: 0 | S40: 743250.25 | T40: -89242.18 | U40: 50447.27 | V40: 0 | W40: 0 | X40: -38794.91 | Y40: =SUM(Y24:Y36) -> 743250.25 | Z40: =SUM(Z24:Z36) -> 267135.75 | AA40: -7896.41 | AB40: 0 | AC40: 0 | AD40: 0 | AE40: 0 | AF40: =SUM(AF24:AF36) -> 1018282.41 | AG40: -38794.91 | AH40: 24036.43 | AI40: 808.41 | AJ40: =SUM(AJ24:AJ36) -> 0 | AK40: -15566.89 | AL40: =SUM(AL24:AL36) -> 1018282.41 | AM40: =SUM(AM24:AM36) -> 197497.31 | AN40: 682925.23 | AO40: 0 | AP40: 0 | AQ40: 0 | AR40: 0 | AS40: 532854.49 | AT40: -15566.89 | AU40: 12614.24 | AV40: 21117 | AW40: 0 | AX40: -24069.65 | AY40: 137323.39 | AZ40: =SUM(AZ24:AZ36) -> -40373.93 | BA40: 395531.1 | BB40: 16304.28 | BC40: 6491.64 | BD40: 0 | BE40: 418327.02 | BF40: 508784.81 | BG40: -0.03000000008
C42: LRAM Variance Account | D42: 1568 | I42: =E42+F42-G42+SUM(H42:H42) -> 0 | N42: =J42+K42-L42+M42 -> 0 | S42: =O42+P42-Q42+SUM(R42:R42) -> 0 | X42: =T42+U42-V42+W42 -> 0 | Y42: =S42 -> 0 | AF42: =Y42+Z42-AA42+SUM(AB42:AE42) -> 0 | AG42: =X42 -> 0 | AK42: =AG42+AH42-AI42+AJ42 -> 0 | AL42: =AF42 -> 0 | AS42: =AL42+AM42-AN42+SUM(AO42:AR42) -> 0 | AT42: =AK42 -> 0 | AX42: =AT42+AU42-AV42+AW42 -> 0 | AY42: 0 | AZ42: 0 | BA42: =AS42-AY42 -> 0 | BB42: =AX42-AZ42 -> 0 | BE42: =SUM(BA42:BD42) -> 0 | BG42: =BF42-SUM(AS42,AX42) -> 0
C44: Total including Account 1568 | E44: =E42+E40 -> -1596206.44 | F44: =F42+F40 -> 651287.61 | G44: -303100.7 | H44: 0 | I44: -641818.13 | J44: -159146.9 | K44: 37791.28 | L44: -32113.44 | M44: 0 | N44: -89242.18 | O44: -641818.13 | P44: 1385068.42 | Q44: 0.03999999998 | R44: 0 | S44: 743250.25 | T44: -89242.18 | U44: 50447.27 | V44: 0 | W44: 0 | X44: -38794.91 | Y44: 743250.25 | Z44: 267135.75 | AA44: -7896.41 | AB44: 0 | AC44: 0 | AD44: 0 | AE44: 0 | AF44: 1018282.41 | AG44: -38794.91 | AH44: 24036.43 | AI44: 808.41 | AJ44: 0 | AK44: -15566.89 | AL44: 1018282.41 | AM44: 197497.31 | AN44: 682925.23 | AO44: 0 | AP44: 0 | AQ44: 0 | AR44: 0 | AS44: 532854.49 | AT44: -15566.89 | AU44: 12614.24 | AV44: 21117 | AW44: 0 | AX44: -24069.65 | AY44: 137323.39 | AZ44: -40373.93 | BA44: 395531.1 | BB44: 16304.28 | BC44: 6491.64 | BD44: 0 | BE44: 418327.02 | BF44: 508784.81 | BG44: -0.03000000008
C47: For all Board-Approved dispositions, please ensure that the disposition amount has the same sign (e.g: debit balances are to have a positive figure and credit balance are to have a negative figure) as per the related Board decision.
B50: 1 | C50: Please provide explanations for the nature of the adjustments. If the adjustment relates to previously Board Approved disposed balances, please provide amounts for adjustments and include supporting documentations.
B51: 2 | C51: For RSVA accounts only, report the net variance to the account during the year. For all other accounts, record the transactions during the year.
B52: 3 | C52: If the LDC’s rate year begins on January 1, 2015, the projected interest is recorded from January 1, 2014 to December 31, 2014 on the December 31, 2013 balances adjusted for the disposed balances approved by the Board in the 2014 rate decision. If the LDC’s rate year begins on May 1, 2015, the projected interest is recorded from January 1, 2014 to April 30, 2015 on the December 31, 2013 balances adjusted for the disposed interest balances approved by the Board in the 2014 rate decision.
B53: 4 | C53: Include Account 1595 as part of Group 1 accounts (lines 31, 32, 33 and 34) for review and disposition if the recovery (or refund) period has been completed. If the recovery (or refund) period has not been completed, do not include the respective balance in Account 1595 for disposition at this time.

Sheet 6. Billing Det. for Def-Var
AS1: As per Section 3.2.3 of the 2015 Filing Requirements for Electricity Distribution Rate Applications, an applicant may elect to dispose of the Group 1 account balances below the threshold. If doing so, please select YES from the adjacent drop-down cell and also indicate so in the Manager's Summary. If not, please select NO.
A13: In the green shaded cells, enter the most recent Board Approved volumetric forecast. If there is a material difference between the latest Board-approved volumetric forecast and the most recent 12-month actual volumetric data, use the most recent 12-month actual data. Do not enter data for the MicroFit class.
E15: Billed kWh for Non-RPP Customers | F15: Estimated kW for Non-RPP Customers | H15: 1590 Recovery Share Proportion* | I15: 1595 Recovery Share Proportion (2008) 1 | J15: 1595 Recovery Share Proportion (2009) 1 | K15: 1595 Recovery Share Proportion (2010) 1 | L15: 1595 Recovery Share Proportion (2011) 1 | M15: 1595 Recovery Share Proportion (2012) 1 | N15: 1568 LRAM Variance Account Class Allocation ($ amounts) | O15: Number of Customers for Residential and GS<50 classes3
A16: Rate Class | B16: Unit | C16: Metered kWh | D16: Metered kW
A17: RESIDENTIAL | B17: $/kWh | C17: 54009078.24 | E17: 2733809 | F17: =IF(ISERROR(D17/C17*E17), 0, D17/C17*E17) -> 0 | I17: 0.528 | J17: 0.528 | K17: 0.528 | O17: 4950
A18: GENERAL SERVICE LESS THAN 50 KW | B18: $/kWh | C18: 19278521.98 | E18: 2276577 | F18: =IF(ISERROR(D18/C18*E18), 0, D18/C18*E18) -> 0 | I18: 0.1421 | J18: 0.1421 | K18: 0.1421 | O18: 634
A19: GENERAL SERVICE 50 TO 4,999 KW | B19: $/kW | C19: 77368540 | D19: 201574 | E19: 77368540 | F19: =IF(ISERROR(D19/C19*E19), 0, D19/C19*E19) -> 201574 | I19: 0.3081 | J19: 0.3081 | K19: 0.3081
A20: UNMETERED SCATTERED LOAD | B20: $/kWh | C20: 221145 | E20: 9584 | F20: =IF(ISERROR(D20/C20*E20), 0, D20/C20*E20) -> 0 | I20: 0.001 | J20: 0.001 | K20: 0.001
A21: SENTINEL LIGHTING | B21: $/kW | C21: 102064 | D21: 293 | E21: 102064 | F21: =IF(ISERROR(D21/C21*E21), 0, D21/C21*E21) -> 293 | I21: 0.0203 | J21: 0.0203 | K21: 0.0203
A22: STREET LIGHTING | B22: $/kW | C22: 1356161 | D22: 3218 | E22: 1356161 | F22: =IF(ISERROR(D22/C22*E22), 0, D22/C22*E22) -> 3218 | I22: 0.0005 | J22: 0.0005 | K22: 0.0005
A23: microFIT
B25: Total | C25: =SUM(C17:C23) -> 152335510.2 | D25: =SUM(D17:D23) -> 205085 | E25: 83846735 | F25: 205085 | H25: 0 | I25: 1 | J25: 1 | K25: 1 | L25: 0 | M25: 0 | N25: 0 | O25: 5584
M26: Balance as per Sheet 5 | N26: =ROUND('5. 2014 Continuity Schedule'!BE42, 0) -> 0
M27: Variance | N27: =N25-N26 -> 0
A29: Threshold Test
A30: Total Claim (including Account 1568) | B30: ='5. 2014 Continuity Schedule'!BE44 -> 418327.02
A31: Total Claim for Threshold Test (All Group 1 Accounts) | B31: ='5. 2014 Continuity Schedule'!BE40 -> 418327.02
A32: Threshold Test (Total claim per kWh) 2 | B32: =IF(ISERROR(B31/C25), 0, B31/C25) -> 0.002746089992 | D32: =IF(AND(B32>-0.001,B32<0.001),"Claim does not meet the threshold test.","") -> 
A34: =IF(AND(B32>-0.001, B32<0.001), AS1, "") -> 
A38: 1 Residual Account balance to be allocated to rate classes in proportion to the recovery share as established when rate riders were implemented.
A39: 2 The Threshold Test does not include the amount in 1568.
A40: 3 The proportion of customers for the Residential and GS<50 Classes will be used to allocate Account 1551.

Sheet 6. hidden (hidden)
E1: Billed kWh for Non-RPP Customers | F1: Estimated kW for Non-RPP Customers | G1: Distribution Revenue 1 | H1: 1590 Recovery Share Proportion* | I1: 1595 Recovery Share Proportion (2008) 2 | J1: 1595 Recovery Share Proportion (2009) 2 | K1: 1595 Recovery Share Proportion (2010) 2 | L1: 1595 Recovery Share Proportion (2011) 2 | M1: 1568 LRAM Variance Account Class Allocation
A2: Rate Class | B2: Unit | C2: Metered kWh | D2: Metered kW
A3: RESIDENTIAL | B3: $/kWh | C3: 54009078.24 | D3: 0 | E3: 2733809 | G3: 0 | H3: 0 | I3: 0.528 | J3: 0.528 | K3: 0.528 | L3: 0 | M3: 0 | N3: 0 | O3: 4950
A4: GENERAL SERVICE LESS THAN 50 KW | B4: $/kWh | C4: 19278521.98 | D4: 0 | E4: 2276577 | G4: 0 | H4: 0 | I4: 0.1421 | J4: 0.1421 | K4: 0.1421 | L4: 0 | M4: 0 | N4: 0 | O4: 634
A5: GENERAL SERVICE 50 TO 4,999 KW | B5: $/kWh | C5: 77368540 | D5: 201574 | E5: 77368540 | G5: 0 | H5: 0 | I5: 0.3081 | J5: 0.3081 | K5: 0.3081 | L5: 0 | M5: 0 | N5: 0 | O5: 0
A6: UNMETERED SCATTERED LOAD | B6: $/kWh | C6: 221145 | D6: 0 | E6: 9584 | G6: 0 | H6: 0 | I6: 0.001 | J6: 0.001 | K6: 0.001 | L6: 0 | M6: 0 | N6: 0 | O6: 0
A7: SENTINEL LIGHTING | B7: $/kWh | C7: 102064 | D7: 293 | E7: 102064 | G7: 0 | H7: 0 | I7: 0.0203 | J7: 0.0203 | K7: 0.0203 | L7: 0 | M7: 0 | N7: 0 | O7: 0
A8: STREET LIGHTING | B8: $/kWh | C8: 1356161 | D8: 3218 | E8: 1356161 | G8: 0 | H8: 0 | I8: 0.0005 | J8: 0.0005 | K8: 0.0005 | L8: 0 | M8: 0 | N8: 0 | O8: 0
A9: microFIT | B9: 0 | C9: 0 | D9: 0 | E9: 0 | G9: 0 | H9: 0 | I9: 0 | J9: 0 | K9: 0 | L9: 0 | M9: 0 | N9: 0 | O9: 0

Sheet 7. Allocating Def-Var Balances
A13: No input required. This workshseet allocates the deferral/variance account balances (Group 1, 1589, and 1568) to the appropriate classes as per the EDDVAR Report dated July 31, 2009
A15: Allocation of Group 1 Accounts (including Account 1568)
C16: % of Total kWh | D16: % of Total non-RPP kWh | E16: % of Customer Numbers ** | N16: 1595 (2008) | O16: 1595 (2009) | P16: 1595 (2010) | Q16: 1595 (2011) | R16: 1595 (2012) | S16: 1568
A17: Rate Class | F17: 1550 | G17: 1551 | H17: 1580 | I17: 1584 | J17: 1586 | K17: 1588 | L17: 1589 | M17: 1590
A19: RESIDENTIAL | C19: =VLOOKUP(A19, '6. Billing Det. for Def-Var'!#REF!, 3,0)/'6. Billing Det. for Def-Var'!#REF! ->  | D19: =VLOOKUP(A19, '6. Billing Det. for Def-Var'!#REF!, 5,0)/'6. Billing Det. for Def-Var'!#REF! ->  | E19: =VLOOKUP(A19, '6. Billing Det. for Def-Var'!#REF!, 15,0)/'6. Billing Det. for Def-Var'!#REF! ->  | F19: =C19* '5. 2014 Continuity Schedule'!BE24 ->  | G19: =E19* '5. 2014 Continuity Schedule'!BE25 ->  | H19: =C19* '5. 2014 Continuity Schedule'!BE26 ->  | I19: =C19* '5. 2014 Continuity Schedule'!BE27 ->  | J19: =C19* '5. 2014 Continuity Schedule'!BE28 ->  | K19: =C19* '5. 2014 Continuity Schedule'!BE29 ->  | L19: =D19* '5. 2014 Continuity Schedule'!BE30 ->  | M19: ='6. Billing Det. for Def-Var'!#REF!* '5. 2014 Continuity Schedule'!BE31 ->  | N19: ='6. Billing Det. for Def-Var'!#REF!* '5. 2014 Continuity Schedule'!BE32 ->  | O19: ='6. Billing Det. for Def-Var'!#REF!* '5. 2014 Continuity Schedule'!BE33 ->  | P19: ='6. Billing Det. for Def-Var'!#REF!* '5. 2014 Continuity Schedule'!BE34 ->  | Q19: ='6. Billing Det. for Def-Var'!#REF!* '5. 2014 Continuity Schedule'!BE35 ->  | R19: ='6. Billing Det. for Def-Var'!#REF!* '5. 2014 Continuity Schedule'!BE36 ->  | S19: ='6. Billing Det. for Def-Var'!#REF! -> 
A20: GENERAL SERVICE LESS THAN 50 KW | C20: =VLOOKUP(A20, '6. Billing Det. for Def-Var'!#REF!, 3,0)/'6. Billing Det. for Def-Var'!#REF! ->  | D20: =VLOOKUP(A20, '6. Billing Det. for Def-Var'!#REF!, 5,0)/'6. Billing Det. for Def-Var'!#REF! ->  | E20: =VLOOKUP(A20, '6. Billing Det. for Def-Var'!#REF!, 15,0)/'6. Billing Det. for Def-Var'!#REF! ->  | F20: =C20* '5. 2014 Continuity Schedule'!BE24 ->  | G20: =E20* '5. 2014 Continuity Schedule'!BE25 ->  | H20: =C20* '5. 2014 Continuity Schedule'!BE26 ->  | I20: =C20* '5. 2014 Continuity Schedule'!BE27 ->  | J20: =C20* '5. 2014 Continuity Schedule'!BE28 ->  | K20: =C20* '5. 2014 Continuity Schedule'!BE29 ->  | L20: =D20* '5. 2014 Continuity Schedule'!BE30 ->  | M20: ='6. Billing Det. for Def-Var'!#REF!* '5. 2014 Continuity Schedule'!BE31 ->  | N20: ='6. Billing Det. for Def-Var'!#REF!* '5. 2014 Continuity Schedule'!BE32 ->  | O20: ='6. Billing Det. for Def-Var'!#REF!* '5. 2014 Continuity Schedule'!BE33 ->  | P20: ='6. Billing Det. for Def-Var'!#REF!* '5. 2014 Continuity Schedule'!BE34 ->  | Q20: ='6. Billing Det. for Def-Var'!#REF!* '5. 2014 Continuity Schedule'!BE35 ->  | R20: ='6. Billing Det. for Def-Var'!#REF!* '5. 2014 Continuity Schedule'!BE36 ->  | S20: ='6. Billing Det. for Def-Var'!#REF! -> 
A21: GENERAL SERVICE 50 TO 4,999 KW | C21: =VLOOKUP(A21, '6. Billing Det. for Def-Var'!#REF!, 3,0)/'6. Billing Det. for Def-Var'!#REF! ->  | D21: =VLOOKUP(A21, '6. Billing Det. for Def-Var'!#REF!, 5,0)/'6. Billing Det. for Def-Var'!#REF! ->  | F21: =C21* '5. 2014 Continuity Schedule'!BE24 ->  | G21: =E21* '5. 2014 Continuity Schedule'!BE25 -> 0 | H21: =C21* '5. 2014 Continuity Schedule'!BE26 ->  | I21: =C21* '5. 2014 Continuity Schedule'!BE27 ->  | J21: =C21* '5. 2014 Continuity Schedule'!BE28 ->  | K21: =C21* '5. 2014 Continuity Schedule'!BE29 ->  | L21: =D21* '5. 2014 Continuity Schedule'!BE30 ->  | M21: ='6. Billing Det. for Def-Var'!#REF!* '5. 2014 Continuity Schedule'!BE31 ->  | N21: ='6. Billing Det. for Def-Var'!#REF!* '5. 2014 Continuity Schedule'!BE32 ->  | O21: ='6. Billing Det. for Def-Var'!#REF!* '5. 2014 Continuity Schedule'!BE33 ->  | P21: ='6. Billing Det. for Def-Var'!#REF!* '5. 2014 Continuity Schedule'!BE34 ->  | Q21: ='6. Billing Det. for Def-Var'!#REF!* '5. 2014 Continuity Schedule'!BE35 ->  | R21: ='6. Billing Det. for Def-Var'!#REF!* '5. 2014 Continuity Schedule'!BE36 ->  | S21: ='6. Billing Det. for Def-Var'!#REF! -> 
A22: UNMETERED SCATTERED LOAD | C22: =VLOOKUP(A22, '6. Billing Det. for Def-Var'!#REF!, 3,0)/'6. Billing Det. for Def-Var'!#REF! ->  | D22: =VLOOKUP(A22, '6. Billing Det. for Def-Var'!#REF!, 5,0)/'6. Billing Det. for Def-Var'!#REF! ->  | F22: =C22* '5. 2014 Continuity Schedule'!BE24 ->  | G22: =E22* '5. 2014 Continuity Schedule'!BE25 -> 0 | H22: =C22* '5. 2014 Continuity Schedule'!BE26 ->  | I22: =C22* '5. 2014 Continuity Schedule'!BE27 ->  | J22: =C22* '5. 2014 Continuity Schedule'!BE28 ->  | K22: =C22* '5. 2014 Continuity Schedule'!BE29 ->  | L22: =D22* '5. 2014 Continuity Schedule'!BE30 ->  | M22: ='6. Billing Det. for Def-Var'!#REF!* '5. 2014 Continuity Schedule'!BE31 ->  | N22: ='6. Billing Det. for Def-Var'!#REF!* '5. 2014 Continuity Schedule'!BE32 ->  | O22: ='6. Billing Det. for Def-Var'!#REF!* '5. 2014 Continuity Schedule'!BE33 ->  | P22: ='6. Billing Det. for Def-Var'!#REF!* '5. 2014 Continuity Schedule'!BE34 ->  | Q22: ='6. Billing Det. for Def-Var'!#REF!* '5. 2014 Continuity Schedule'!BE35 ->  | R22: ='6. Billing Det. for Def-Var'!#REF!* '5. 2014 Continuity Schedule'!BE36 ->  | S22: ='6. Billing Det. for Def-Var'!#REF! -> 
A23: SENTINEL LIGHTING | C23: =VLOOKUP(A23, '6. Billing Det. for Def-Var'!#REF!, 3,0)/'6. Billing Det. for Def-Var'!#REF! ->  | D23: =VLOOKUP(A23, '6. Billing Det. for Def-Var'!#REF!, 5,0)/'6. Billing Det. for Def-Var'!#REF! ->  | F23: =C23* '5. 2014 Continuity Schedule'!BE24 ->  | G23: =E23* '5. 2014 Continuity Schedule'!BE25 -> 0 | H23: =C23* '5. 2014 Continuity Schedule'!BE26 ->  | I23: =C23* '5. 2014 Continuity Schedule'!BE27 ->  | J23: =C23* '5. 2014 Continuity Schedule'!BE28 ->  | K23: =C23* '5. 2014 Continuity Schedule'!BE29 ->  | L23: =D23* '5. 2014 Continuity Schedule'!BE30 ->  | M23: ='6. Billing Det. for Def-Var'!#REF!* '5. 2014 Continuity Schedule'!BE31 ->  | N23: ='6. Billing Det. for Def-Var'!#REF!* '5. 2014 Continuity Schedule'!BE32 ->  | O23: ='6. Billing Det. for Def-Var'!#REF!* '5. 2014 Continuity Schedule'!BE33 ->  | P23: ='6. Billing Det. for Def-Var'!#REF!* '5. 2014 Continuity Schedule'!BE34 ->  | Q23: ='6. Billing Det. for Def-Var'!#REF!* '5. 2014 Continuity Schedule'!BE35 ->  | R23: ='6. Billing Det. for Def-Var'!#REF!* '5. 2014 Continuity Schedule'!BE36 ->  | S23: ='6. Billing Det. for Def-Var'!#REF! -> 
A24: STREET LIGHTING | C24: =VLOOKUP(A24, '6. Billing Det. for Def-Var'!#REF!, 3,0)/'6. Billing Det. for Def-Var'!#REF! ->  | D24: =VLOOKUP(A24, '6. Billing Det. for Def-Var'!#REF!, 5,0)/'6. Billing Det. for Def-Var'!#REF! ->  | F24: =C24* '5. 2014 Continuity Schedule'!BE24 ->  | G24: =E24* '5. 2014 Continuity Schedule'!BE25 -> 0 | H24: =C24* '5. 2014 Continuity Schedule'!BE26 ->  | I24: =C24* '5. 2014 Continuity Schedule'!BE27 ->  | J24: =C24* '5. 2014 Continuity Schedule'!BE28 ->  | K24: =C24* '5. 2014 Continuity Schedule'!BE29 ->  | L24: =D24* '5. 2014 Continuity Schedule'!BE30 ->  | M24: ='6. Billing Det. for Def-Var'!#REF!* '5. 2014 Continuity Schedule'!BE31 ->  | N24: ='6. Billing Det. for Def-Var'!#REF!* '5. 2014 Continuity Schedule'!BE32 ->  | O24: ='6. Billing Det. for Def-Var'!#REF!* '5. 2014 Continuity Schedule'!BE33 ->  | P24: ='6. Billing Det. for Def-Var'!#REF!* '5. 2014 Continuity Schedule'!BE34 ->  | Q24: ='6. Billing Det. for Def-Var'!#REF!* '5. 2014 Continuity Schedule'!BE35 ->  | R24: ='6. Billing Det. for Def-Var'!#REF!* '5. 2014 Continuity Schedule'!BE36 ->  | S24: ='6. Billing Det. for Def-Var'!#REF! -> 
A25: microFIT | C25: 0 | D25: 0 | E25: 0 | F25: =C25* '5. 2014 Continuity Schedule'!BE24 -> 0 | G25: =E25* '5. 2014 Continuity Schedule'!BE25 -> 0 | H25: =C25* '5. 2014 Continuity Schedule'!BE26 -> 0 | I25: =C25* '5. 2014 Continuity Schedule'!BE27 -> 0 | J25: =C25* '5. 2014 Continuity Schedule'!BE28 -> 0 | K25: =C25* '5. 2014 Continuity Schedule'!BE29 -> 0 | L25: =D25* '5. 2014 Continuity Schedule'!BE30 -> 0 | M25: ='6. Billing Det. for Def-Var'!#REF!* '5. 2014 Continuity Schedule'!BE31 ->  | N25: ='6. Billing Det. for Def-Var'!#REF!* '5. 2014 Continuity Schedule'!BE32 ->  | O25: ='6. Billing Det. for Def-Var'!#REF!* '5. 2014 Continuity Schedule'!BE33 ->  | P25: ='6. Billing Det. for Def-Var'!#REF!* '5. 2014 Continuity Schedule'!BE34 ->  | Q25: ='6. Billing Det. for Def-Var'!#REF!* '5. 2014 Continuity Schedule'!BE35 ->  | R25: ='6. Billing Det. for Def-Var'!#REF!* '5. 2014 Continuity Schedule'!BE36 ->  | S25: ='6. Billing Det. for Def-Var'!#REF! -> 
A27: Total | C27: =SUM(C19:C25) ->  | D27: =SUM(D19:D25) ->  | E27: =SUM(E19:E25) ->  | F27: =SUM(F19:F25) ->  | G27: =SUM(G19:G25) ->  | H27: =SUM(H19:H25) ->  | I27: =SUM(I19:I25) ->  | J27: =SUM(J19:J25) ->  | K27: =SUM(K19:K25) ->  | L27: =SUM(L19:L25) ->  | M27: =SUM(M19:M25) ->  | N27: =SUM(N19:N25) ->  | O27: =SUM(O19:O25) ->  | P27: =SUM(P19:P25) ->  | Q27: =SUM(Q19:Q25) ->  | R27: =SUM(R19:R25) ->  | S27: =SUM(S19:S25) -> 
A30: * RSVA - Power (Excluding Global Adjustment)
A31: ** Used to allocate Account 1551 as this account records the variances arising from the Smart Metering Entity Charges to Residential and GS<50 customers.

Sheet 8. Calculation of Def-Var RR
A12: Input required at cell C15 only. This workshseet calculates rate riders related to the Deferral/Variance Account Disposition (if applicable), associated rate riders for the global adjustment account (1589) and Account 1568. Rate Riders will not be generated for the microFIT class.
A15: Please indicate the Rate Rider Recovery Period (in years) | C15: 1
E17: Balance of Accounts Allocated by kWh/kW (RPP) or Distribution Revenue | F17: Deferral/Variance Account Rate Rider | G17: Allocation of Balance in Account 1589 | H17: Billed kWh or Estimated kW for Non-RPP Customers | I17: Global Adjustment Rate Rider | J17: Allocation of Account 1568 | K17: Account 1568 Rate Rider
A18: Rate Class | B18: Unit | C18: Billed kWh | D18: Billed kW or kVA
A20: RESIDENTIAL | B20: $/kWh | C20: 54009078.24 | E20: =SUM('7. Allocating Def-Var Balances'!F19:K19)+SUM('7. Allocating Def-Var Balances'!M19:R19) ->  | F20: -0.001 | G20: 19277.71136 | H20: 2733809 | I20: 0.0071
A21: GENERAL SERVICE LESS THAN 50 KW | B21: $/kWh | C21: 19278521.98 | E21: =SUM('7. Allocating Def-Var Balances'!F20:K20)+SUM('7. Allocating Def-Var Balances'!M20:R20) ->  | F21: -0.0011 | G21: 16053.49689 | H21: 2276577 | I21: 0.0071
A22: GENERAL SERVICE 50 TO 4,999 KW | B22: $/kWh | C22: 77368540 | D22: 201574 | E22: =SUM('7. Allocating Def-Var Balances'!F21:K21)+SUM('7. Allocating Def-Var Balances'!M21:R21) ->  | F22: -0.0013 | G22: 545571.5385 | H22: 77368540 | I22: 0.0071
A23: UNMETERED SCATTERED LOAD | B23: $/kWh | C23: 221145 | E23: =SUM('7. Allocating Def-Var Balances'!F22:K22)+SUM('7. Allocating Def-Var Balances'!M22:R22) ->  | F23: -0.0012 | G23: 67.58247765 | H23: 9584 | I23: 0.0071
A24: SENTINEL LIGHTING | B24: $/kWh | C24: 102064 | D24: 293 | E24: =SUM('7. Allocating Def-Var Balances'!F23:K23)+SUM('7. Allocating Def-Var Balances'!M23:R23) ->  | F24: 0.0073 | G24: 719.713898 | H24: 102064 | I24: 0.0071
A25: STREET LIGHTING | B25: $/kWh | C25: 1356161 | D25: 3218 | E25: =SUM('7. Allocating Def-Var Balances'!F24:K24)+SUM('7. Allocating Def-Var Balances'!M24:R24) ->  | F25: -0.0014 | G25: 9563.096877 | H25: 1356161 | I25: 0.0071
A26: microFIT
A27: Total | C27: =SUM(C20:C26) -> 152335510.2 | D27: =SUM(D20:D26) -> 205085 | E27: =SUM(E20:E26) ->  | G27: =SUM(G20:G26) -> 591253.14 | H27: =SUM(H20:H26) -> 83846735 | J27: =SUM(J20:J26) -> 0

Sheet 9. STS - Billing Det & Rates
A11: Shared Tax Savings
A13: ="Enter your " & '1. Information Sheet'!F32 & " Board-Approved Billing Determinents into columns B, C and D." -> Enter your 2014 Board-Approved Billing Determinents into columns B, C and D.
A14: ="Enter your " & '1. Information Sheet'!F32 & " Board-Approved Base monthly service and volumetric charges into columns G, H and I." -> Enter your 2014 Board-Approved Base monthly service and volumetric charges into columns G, H and I.
A16: Rate Class | B16: Units | C16: Re-based Billed Customers or Connections | D16: Re-based Billed kWh | E16: Re-based Billed kW (if applicable) | G16: ='1. Information Sheet'!F32 &" Base Monthly Service Charge" -> 2014 Base Monthly Service Charge | H16: ='1. Information Sheet'!F32 &" Base Distribution Volumetric Rate kWh" -> 2014 Base Distribution Volumetric Rate kWh | I16: ='1. Information Sheet'!F32 &" Base Distribution Volumetric Rate kW" -> 2014 Base Distribution Volumetric Rate kW
A17: RESIDENTIAL | B17: $/kWh | C17: 4950 | D17: 54009078.24 | E17: 0 | G17: 7.06 | H17: 0.0096 | I17: 0
A18: GENERAL SERVICE LESS THAN 50 KW | B18: $/kWh | C18: 634 | D18: 19278521.98 | E18: 0 | G18: 14.91 | H18: 0.0059 | I18: 0
A19: GENERAL SERVICE 50 TO 4,999 KW | B19: $/kWh | C19: 98 | D19: 0 | E19: 201574 | G19: 97.35 | H19: 0 | I19: 1.9733
A20: UNMETERED SCATTERED LOAD | B20: $/kWh | C20: 5 | D20: 221145.1502 | E20: 0 | G20: 6.39 | H20: 0.0037 | I20: 0
A21: SENTINEL LIGHTING | B21: $/kWh | C21: 21 | D21: 0 | E21: 292.903565 | G21: 1.6 | H21: 0 | I21: 3.1754
A22: STREET LIGHTING | B22: $/kWh | C22: 1215 | D22: 0 | E22: 3218.297191 | G22: 0.53 | H22: 0 | I22: 5.7504
A23: microFIT

Sheet 10. STS - Rebased Rev
A12: Calculation of Rebased Revenue Requirement. No input required.
A15: Rate Class | C15: Re-based Billed Customers or Connections | D15: Re-based Billed kWh | E15: Re-based Billed kW | G15: Rate ReBal Base Service Charge | H15: Rate ReBal Base Distribution Volumetric Rate kWh | I15: Rate ReBal Base Distribution Volumetric Rate kW | K15: Service Charge Revenue | L15: Distribution Volumetric Rate Revenue kWh | M15: Distribution Volumetric Rate Revenue kW | N15: Revenue Requirement from Rates | P15: Service Charge % Revenue | Q15: Distribution Volumetric Rate % Revenue kWh | R15: Distribution Volumetric Rate % Revenue kW | S15: Total % Revenue
C16: A | D16: B | E16: C | G16: D | H16: E | I16: F | K16: G = A * D *12 | L16: H = B * E | M16: I = C * F | N16: J = G + H + I | P16: K = G / J | Q16: L = H / J | R16: M = I / J | S16: N = J / R
A17: RESIDENTIAL | C17: 4950 | D17: 54009078.24 | E17: 0 | G17: 7.06 | H17: 0.0096 | I17: 0 | K17: =G17*C17*12 -> 419364 | L17: =H17*D17 -> 518487.1511 | M17: 0 | N17: =SUM(K17,L17,M17) -> 937851.1511 | P17: =IF(ISERROR(K17/N17),0,K17/N17) -> 0.4471541134 | Q17: =IF(ISERROR(L17/N17),0,L17/N17) -> 0.5528458866 | R17: =IF(ISERROR(M17/N17),0,M17/N17) -> 0 | S17: =N17/N24 -> 0.5497213993
A18: GENERAL SERVICE LESS THAN 50 KW | C18: 634 | D18: 19278521.98 | E18: 0 | G18: 14.91 | H18: 0.0059 | I18: 0 | K18: 113435.28 | L18: =H18*D18 -> 113743.2797 | M18: 0 | N18: 227178.5597 | P18: 0.4993221198 | Q18: 0.5006778802 | R18: 0 | S18: =N18/N24 -> 0.1331606999
A19: GENERAL SERVICE 50 TO 4,999 KW | C19: 98 | D19: 0 | E19: 201574 | G19: 97.35 | H19: 0 | I19: 1.9733 | K19: 114483.6 | L19: 0 | M19: =I19*E19 -> 397765.9742 | N19: 512249.5742 | P19: 0.2234918402 | Q19: 0 | R19: 0.7765081598 | S19: =N19/N24 -> 0.300255059
A20: UNMETERED SCATTERED LOAD | C20: 5 | D20: 221145.1502 | E20: 0 | G20: 6.39 | H20: 0.0037 | I20: 0 | K20: 383.4 | L20: =H20*D20 -> 818.2370558 | M20: 0 | N20: 1201.637056 | P20: 0.3190647277 | Q20: 0.6809352723 | R20: 0 | S20: =N20/N24 -> 0.0007043394924
A21: SENTINEL LIGHTING | C21: 21 | D21: 0 | E21: 292.903565 | G21: 1.6 | H21: 0 | I21: 3.1754 | K21: 403.2 | L21: 0 | M21: =I21*E21 -> 930.0859803 | N21: 1333.28598 | P21: 0.30241074 | Q21: 0 | R21: 0.69758926 | S21: =N21/N24 -> 0.0007815055021
A22: STREET LIGHTING | C22: 1215 | D22: 0 | E22: 3218.297191 | G22: 0.53 | H22: 0 | I22: 5.7504 | K22: 7727.4 | L22: 0 | M22: =I22*E22 -> 18506.49617 | N22: 26233.89617 | P22: 0.294557848 | Q22: 0 | R22: 0.705442152 | S22: =N22/N24 -> 0.01537699676
A23: microFIT | K23: 0 | L23: 0 | M23: 0 | N23: 0 | P23: 0 | Q23: 0 | R23: 0 | S23: =N23/N24 -> 0
A24: Total | C24: =SUM(C17:C23) -> 6923 | D24: =SUM(D17:D23) -> 73508745.38 | E24: =SUM(E17:E23) -> 205085.2008 | K24: =SUM(K17:K23) -> 655796.88 | L24: =SUM(L17:L23) -> 633048.6679 | M24: =SUM(M17:M23) -> 417202.5563 | N24: =SUM(N17:N23) -> 1706048.104 | S24: =SUM(S17:S23) -> 1

Sheet 9. STS - Billing Det & Rate HID (hidden)
A11: Shared Tax Savings
A12: ="Enter your " & '1. Information Sheet'!F32 & " Board-Approved Billing Determinents into columns B, C and D." -> Enter your 2014 Board-Approved Billing Determinents into columns B, C and D.
A16: Rate Class | B16: Units | C16: Re-based Billed Customers or Connections | D16: Re-based Billed kWh | E16: Re-based Billed kW (if applicable) | G16: ='1. Information Sheet'!F32 &" Base Monthly Service Charge" -> 2014 Base Monthly Service Charge | H16: ='1. Information Sheet'!F32 &" Base Distribution Volumetric Rate kWh" -> 2014 Base Distribution Volumetric Rate kWh | I16: ='1. Information Sheet'!F32 &" Base Distribution Volumetric Rate kW" -> 2014 Base Distribution Volumetric Rate kW
A17: RESIDENTIAL | B17: $/kWh | C17: 4950 | D17: 54009078.24 | E17: 0 | G17: 7.06 | H17: 0.0096 | I17: 0
A18: GENERAL SERVICE LESS THAN 50 KW | B18: $/kWh | C18: 634 | D18: 19278521.98 | E18: 0 | G18: 14.91 | H18: 0.0059 | I18: 0
A19: GENERAL SERVICE 50 TO 4,999 KW | B19: $/kWh | C19: 98 | D19: 0 | E19: 201574 | G19: 97.35 | H19: 0 | I19: 1.9733
A20: UNMETERED SCATTERED LOAD | B20: $/kWh | C20: 5 | D20: 221145.1502 | E20: 0 | G20: 6.39 | H20: 0.0037 | I20: 0
A21: SENTINEL LIGHTING | B21: $/kWh | C21: 21 | D21: 0 | E21: 292.903565 | G21: 1.6 | H21: 0 | I21: 3.1754
A22: STREET LIGHTING | B22: $/kWh | C22: 1215 | D22: 0 | E22: 3218.297191 | G22: 0.53 | H22: 0 | I22: 5.7504
A23: microFIT | B23: 0 | C23: 0 | D23: 0 | E23: 0 | G23: 0 | H23: 0 | I23: 0

Sheet 11. STS - Tax Change
T1: Rate Base | U1: Federal Tax Rate
T2: 500000 | U2: 0.11
T3: 10000000 | U3: 0.11
T4: =T3+100000 -> 10100000 | U4: 0.11
T5: =T4+100000 -> 10200000 | U5: 0.11
T6: 10300000 | U6: 0.11
T7: 10400000 | U7: 0.11
T8: 10500000 | U8: 0.11
T9: 10600000 | U9: 0.11
T10: 10700000 | U10: 0.11
T11: 10800000 | U11: 0.11
T12: 10900000 | U12: 0.11
A13: Summary - Sharing of Tax Change Forecast Amounts | T13: 11000000 | U13: 0.11
T14: 11100000 | U14: 0.111
A15: ="For the " & '1. Information Sheet'!F32 & " year, enter any Tax Credits from the Cost of Service Tax Calculation (Positive #)" -> For the 2014 year, enter any Tax Credits from the Cost of Service Tax Calculation (Positive #) | L15: 0 | T15: 11200000 | U15: =U14+0.13% -> 0.1123 | V15: =U15-U14 -> 0.0013
T16: 11300000 | U16: =U15+0.13% -> 0.1136 | V16: =U16-U15 -> 0.0013
T17: 11400000 | U17: 0.1149 | V17: 0.0013
A18: 1. Tax Related Amounts Forecast from Capital Tax Rate Changes | L18: ='1. Information Sheet'!F32 -> 2014 | N18: 2015 | T18: 11500000 | U18: 0.1162 | V18: 0.0013
A19: Taxable Capital (if you are not claiming capital tax, please enter your Board-Approved Rate Base) | L19: 6386201 | N19: =L19 -> 6386201 | T19: 11600000 | U19: =U18+0.12% -> 0.1174 | V19: 0.0012
T20: 11700000 | U20: =U19+0.12% -> 0.1186 | V20: 0.0012
A21: Deduction from taxable capital up to $15,000,000 | N21: =L21 -> 0 | T21: 11800000 | U21: 0.1198 | V21: 0.0012
T22: 11900000 | U22: 0.121 | V22: 0.0012
A23: Net Taxable Capital | L23: =L19-L21 -> 6386201 | N23: =N19-N21 -> 6386201 | T23: 12000000 | U23: =U22+0.112% -> 0.12212 | V23: 0.00112
T24: 12100000 | U24: =U23+0.112% -> 0.12324 | V24: 0.00112
A25: Rate | N25: 0 | T25: 12200000 | U25: 0.12436 | V25: 0.00112
T26: 12300000 | U26: 0.12548 | V26: 0.00112
A27: Ontario Capital Tax (Deductible, not grossed-up) | L27: =IF(L23>0, L23*L25, 0)*181/365 -> 0 | N27: 0 | T27: 12400000 | U27: 0.1266 | V27: 0.00112
T28: 12500000 | U28: 0.12772 | V28: 0.00112
A29: 2. Tax Related Amounts Forecast from lncome Tax Rate Changes | T29: 12600000 | U29: =U28+0.102% -> 0.12874 | V29: 0.00102
A30: Regulatory Taxable Income | N30: =L30 -> 0 | T30: 12700000 | U30: =U29+0.102% -> 0.12976 | V30: 0.00102
T31: 12800000 | U31: 0.13078 | V31: 0.00102
A32: Corporate Tax Rate | N32: =IF(N30=0,0,IF(N30<=500000,4.5%+11%,IF(N30>500000,(11.5%*N30-35000)/N30+VLOOKUP(N19,T:U,2,TRUE),""))) -> 0 | T32: 12900000 | U32: 0.1318 | V32: 0.00102
T33: 13000000 | U33: 0.13282 | V33: 0.00102
A34: Tax Impact | N34: =N30*N32-L15 -> 0 | T34: 13100000 | U34: =U33+0.096% -> 0.13378 | V34: 0.00096
T35: 13200000 | U35: =U34+0.096% -> 0.13474 | V35: 0.00096
A36: Grossed-up Tax Amount | N36: =N34/(1-N32) -> 0 | T36: 13300000 | U36: 0.1357 | V36: 0.00096
T37: 13400000 | U37: 0.13666 | V37: 0.00096
A38: Tax Related Amounts Forecast from Capital Tax Rate Changes | L38: =L27 -> 0 | N38: =N27 -> 0 | T38: 13500000 | U38: 0.13762 | V38: 0.00096
T39: 13600000 | U39: =U38+0.088% -> 0.1385 | V39: 0.00088
A40: Tax Related Amounts Forecast from lncome Tax Rate Changes | L40: =L36 -> 0 | N40: =N36 -> 0 | T40: 13700000 | U40: =U39+0.088% -> 0.13938 | V40: 0.00088
T41: 13800000 | U41: 0.14026 | V41: 0.00088
A42: Total Tax Related Amounts | L42: =SUM(L40,L38) -> 0 | N42: =SUM(N40,N38) -> 0 | T42: 13900000 | U42: 0.14114 | V42: 0.00088
T43: 14000000 | U43: 0.14202 | V43: 0.00088
A44: Incremental Tax Savings | N44: =N42-L42 -> 0 | T44: 14100000 | U44: =U43+0.082% -> 0.14284 | V44: 0.00082
T45: 14200000 | U45: =U44+0.082% -> 0.14366 | V45: 0.00082
A46: Sharing of Tax Savings (50%) | N46: =0.5*N44 -> 0 | T46: 14300000 | U46: 0.14448 | V46: 0.00082
T47: 14400000 | U47: 0.1453 | V47: 0.00082
T48: 14500000 | U48: 0.14612 | V48: 0.00082
T49: 14600000 | U49: =U48+0.076% -> 0.14688 | V49: 0.00076
T50: 14700000 | U50: =U49+0.076% -> 0.14764 | V50: 0.00076
T51: 14800000 | U51: 0.1484 | V51: 0.00076
T52: 14900000 | U52: 0.14916 | V52: 0.00076
T53: 15000000 | U53: 0.15 | V53: 0.00084

Sheet 12. STS - Tax Change Rate Rider
A11: This worksheet calculates a tax change volumetric rate rider. If the rate riders are material (round to 4 decimal places), then the outputs in columns M and O will appear on Sheet 27 - Final Tariff Schedule.
A15: Rate Class | C15: Total Revenue $ by Rate Class | E15: Total Revenue % by Rate Class | G15: Allocation of Tax Savings by Rate Class | I15: Billed kWh | K15: Billed kW | M15: Distribution Volumetric Rate kWh Rate Rider | O15: Distribution Volumetric Rate kW Rate Rider
A17: RESIDENTIAL | C17: 937851.1511 | E17: =C17/C24 -> 0.5497213993 | G17: =E17*G24 -> 0 | I17: 54009078.24 | K17: 0 | M17: =ROUND(G17/I17,4) -> 0
A18: GENERAL SERVICE LESS THAN 50 KW | C18: 227178.5597 | E18: =C18/C24 -> 0.1331606999 | G18: =E18*G24 -> 0 | I18: 19278521.98 | K18: 0 | M18: =ROUND(G18/I18,4) -> 0
A19: GENERAL SERVICE 50 TO 4,999 KW | C19: 512249.5742 | E19: =C19/C24 -> 0.300255059 | G19: =E19*G24 -> 0 | I19: 0 | K19: 201574
A20: UNMETERED SCATTERED LOAD | C20: 1201.637056 | E20: =C20/C24 -> 0.0007043394924 | G20: =E20*G24 -> 0 | I20: 221145.1502 | K20: 0 | M20: =ROUND(G20/I20,4) -> 0
A21: SENTINEL LIGHTING | C21: 1333.28598 | E21: =C21/C24 -> 0.0007815055021 | G21: =E21*G24 -> 0 | I21: 0 | K21: 292.903565
A22: STREET LIGHTING | C22: 26233.89617 | E22: =C22/C24 -> 0.01537699676 | G22: =E22*G24 -> 0 | I22: 0 | K22: 3218.297191
A23: microFIT | C23: 0 | E23: =C23/C24 -> 0 | G23: =E23*G24 -> 0
A24: Total | C24: =SUM(C17:C23) -> 1706048.104 | E24: =SUM(E17:E23) -> 1 | G24: 0 | I24: =SUM(I17:I23) -> 73508745.38 | K24: =SUM(K17:K23) -> 205085.2008
A26: One or more rate classes appear to have negligible rate riders in columns M and/or O. As per Appendix B of the Filing Requirements, please provide details of the Applicant's proposal in the Manager's Summary.

Sheet 13. RTSR Rate Sheet
A13: No input required. This sheet consolidates all Current Retail Transmission Rates entered on Sheet 4.
A15: Rate Class | B15: Rate Description | C15: Unit | D15: RTSR-Network | E15: RTSR-Connection
A17: RESIDENTIAL | B17: Retail Transmission Rate - Network Service Rate | C17: $/kWh | D17: 0.007
A18: RESIDENTIAL | B18: Retail Transmission Rate - Line and Transformation Connection Service Rate | C18: $/kWh | E18: 0.0031
A19: GENERAL SERVICE LESS THAN 50 KW | B19: Retail Transmission Rate - Network Service Rate | C19: $/kWh | D19: 0.0064
A20: GENERAL SERVICE LESS THAN 50 KW | B20: Retail Transmission Rate - Line and Transformation Connection Service Rate | C20: $/kWh | E20: 0.0027
A21: GENERAL SERVICE 50 TO 4,999 KW | B21: Retail Transmission Rate - Network Service Rate | C21: $/kW | D21: 2.6063
A22: GENERAL SERVICE 50 TO 4,999 KW | B22: Retail Transmission Rate - Line and Transformation Connection Service Rate | C22: $/kW | E22: 1.1229
A23: UNMETERED SCATTERED LOAD | B23: Retail Transmission Rate - Network Service Rate | C23: $/kWh | D23: 0.0064
A24: UNMETERED SCATTERED LOAD | B24: Retail Transmission Rate - Line and Transformation Connection Service Rate | C24: $/kWh | E24: 0.0027
A25: SENTINEL LIGHTING | B25: Retail Transmission Rate - Network Service Rate | C25: $/kW | D25: 1.9664
A26: SENTINEL LIGHTING | B26: Retail Transmission Rate - Line and Transformation Connection Service Rate | C26: $/kW | E26: 1.7724
A27: STREET LIGHTING | B27: Retail Transmission Rate - Network Service Rate | C27: $/kW | D27: 1.9658
A28: STREET LIGHTING | B28: Retail Transmission Rate - Line and Transformation Connection Service Rate | C28: $/kW | E28: 0.868

Sheet 14. RTSR RRR Data
A12: In the green shaded cells, enter the most recent reported RRR billing determinants. Please ensure that billing determinants are non-loss adjusted.
A14: Rate Class | B14: Rate Description | C14: Unit | D14: Non-Loss Adjusted Metered kWh | E14: Non-Loss Adjusted Metered kW | F14: Applicable Loss Factor | H14: Load Factor | I14: Loss Adjusted Billed kWh | J14: Billed kW
A15: RESIDENTIAL | B15: Retail Transmission Rate - Network Service Rate | C15: $/kWh | D15: 52109144 | E15: 0 | F15: 1.0541 | H15: =IF(C15="$/kW", D15/(E15* 30.4 * 24), "" ) ->  | I15: =IF(OR(F15=0, OR(ISBLANK(F15), TRIM(F15)="")), F15, F15 * D15) -> 54928248.69 | J15: =IF(OR(F15=0, OR(ISBLANK(F15), TRIM(F15)="")), E15, E15) -> 0
A16: RESIDENTIAL | B16: Retail Transmission Rate - Line and Transformation Connection Service Rate | C16: $/kWh | D16: 52109144 | E16: 0 | F16: 1.0541 | H16: =IF(C16="$/kW", D16/(E16* 30.4 * 24), "" ) ->  | I16: 54928248.69 | J16: 0
A17: GENERAL SERVICE LESS THAN 50 KW | B17: Retail Transmission Rate - Network Service Rate | C17: $/kWh | D17: 18952242 | E17: 0 | F17: 1.0541 | H17: =IF(C17="$/kW", D17/(E17* 30.4 * 24), "" ) ->  | I17: 19977558.29 | J17: 0
A18: GENERAL SERVICE LESS THAN 50 KW | B18: Retail Transmission Rate - Line and Transformation Connection Service Rate | C18: $/kWh | D18: 18952242 | E18: 0 | F18: 1.0541 | H18: =IF(C18="$/kW", D18/(E18* 30.4 * 24), "" ) ->  | I18: 19977558.29 | J18: 0
A19: GENERAL SERVICE 50 TO 4,999 KW | B19: Retail Transmission Rate - Network Service Rate | C19: $/kW | D19: 77368540 | E19: 200066 | F19: 0 | H19: 0 | I19: 0 | J19: 200066
A20: GENERAL SERVICE 50 TO 4,999 KW | B20: Retail Transmission Rate - Line and Transformation Connection Service Rate | C20: $/kW | D20: 77368540 | E20: 200066 | F20: 0 | H20: 0 | I20: 0 | J20: 200066
A21: UNMETERED SCATTERED LOAD | B21: Retail Transmission Rate - Network Service Rate | C21: $/kWh | D21: 242993 | E21: 0 | F21: 1.0541 | H21: =IF(C21="$/kW", D21/(E21* 30.4 * 24), "" ) ->  | I21: 256138.9213 | J21: 0
A22: UNMETERED SCATTERED LOAD | B22: Retail Transmission Rate - Line and Transformation Connection Service Rate | C22: $/kWh | D22: 242993 | E22: 0 | F22: 1.0541 | H22: =IF(C22="$/kW", D22/(E22* 30.4 * 24), "" ) ->  | I22: 256138.9213 | J22: 0
A23: SENTINEL LIGHTING | B23: Retail Transmission Rate - Network Service Rate | C23: $/kW | D23: 102064 | E23: 296 | F23: 0 | H23: 0 | I23: 0 | J23: 296
A24: SENTINEL LIGHTING | B24: Retail Transmission Rate - Line and Transformation Connection Service Rate | C24: $/kW | D24: 102064 | E24: 296 | F24: 0 | H24: 0 | I24: 0 | J24: 296
A25: STREET LIGHTING | B25: Retail Transmission Rate - Network Service Rate | C25: $/kW | D25: 1356161 | E25: 3764 | F25: 0 | H25: 0 | I25: 0 | J25: 3764
A26: STREET LIGHTING | B26: Retail Transmission Rate - Line and Transformation Connection Service Rate | C26: $/kW | D26: 1356161 | E26: 3764 | F26: 0 | H26: 0 | I26: 0 | J26: 3764

Sheet 14. RTSR RRR Data Copy (hidden)
A12: In the green shaded cells, enter the most recent reported RRR billing determinants. Please ensure that billing determinants are non-loss adjusted.
A14: Rate Class | B14: Rate Description | C14: Unit | D14: Non-Loss Adjusted Metered kWh | E14: Non-Loss Adjusted Metered kW | F14: Applicable Loss Factor | H14: Load Factor | I14: Loss Adjusted Billed kWh | J14: Billed kW
A15: RESIDENTIAL | B15: Retail Transmission Rate - Network Service Rate | C15: $/kWh | D15: 52109144 | E15: 0 | F15: 1.0541
A16: RESIDENTIAL | B16: Retail Transmission Rate - Line and Transformation Connection Service Rate | C16: $/kWh | D16: 52109144 | E16: 0 | F16: 1.0541
A17: GENERAL SERVICE LESS THAN 50 KW | B17: Retail Transmission Rate - Network Service Rate | C17: $/kWh | D17: 18952242 | E17: 0 | F17: 1.0541
A18: GENERAL SERVICE LESS THAN 50 KW | B18: Retail Transmission Rate - Line and Transformation Connection Service Rate | C18: $/kWh | D18: 18952242 | E18: 0 | F18: 1.0541
A19: GENERAL SERVICE 50 TO 4,999 KW | B19: Retail Transmission Rate - Network Service Rate | C19: $/kW | D19: 77368540 | E19: 200066 | F19: 0
A20: GENERAL SERVICE 50 TO 4,999 KW | B20: Retail Transmission Rate - Line and Transformation Connection Service Rate | C20: $/kW | D20: 77368540 | E20: 200066 | F20: 0
A21: UNMETERED SCATTERED LOAD | B21: Retail Transmission Rate - Network Service Rate | C21: $/kWh | D21: 242993 | E21: 0 | F21: 1.0541
A22: UNMETERED SCATTERED LOAD | B22: Retail Transmission Rate - Line and Transformation Connection Service Rate | C22: $/kWh | D22: 242993 | E22: 0 | F22: 1.0541
A23: SENTINEL LIGHTING | B23: Retail Transmission Rate - Network Service Rate | C23: $/kW | D23: 102064 | E23: 296 | F23: 0
A24: SENTINEL LIGHTING | B24: Retail Transmission Rate - Line and Transformation Connection Service Rate | C24: $/kW | D24: 102064 | E24: 296 | F24: 0
A25: STREET LIGHTING | B25: Retail Transmission Rate - Network Service Rate | C25: $/kW | D25: 1356161 | E25: 3764 | F25: 0
A26: STREET LIGHTING | B26: Retail Transmission Rate - Line and Transformation Connection Service Rate | C26: $/kW | D26: 1356161 | E26: 3764 | F26: 0

Sheet 15. RTSR - UTRs & Sub-Tx
B18: Uniform Transmission Rates | C18: Unit | E18: Effective January 1, 2013 | G18: Effective January 1, 2014 | I18: Effective January 1, 2015
B20: Rate Description | E20: Rate | G20: Rate | I20: Rate
B22: Network Service Rate | C22: kW | E22: 3.63 | G22: 3.82 | I22: 3.82
B24: Line Connection Service Rate | C24: kW | E24: 0.75 | G24: 0.82 | I24: 0.82
B26: Transformation Connection Service Rate | C26: kW | E26: 1.85 | G26: 1.98 | I26: 1.98
B29: Hydro One Sub-Transmission Rates | C29: Unit | E29: Effective January 1, 2013 | G29: Effective January 1, 2014 | I29: Effective January 1, 2015
B33: Rate Description | E33: Rate | G33: Rate | I33: Rate
B35: Network Service Rate | C35: kW | E35: 3.18 | G35: 3.23 | I35: 3.23
B37: Line Connection Service Rate | C37: kW | E37: 0.7 | G37: 0.65 | I37: 0.65
B39: Transformation Connection Service Rate | C39: kW | E39: 1.63 | G39: 1.62 | I39: 1.62
B41: Both Line and Transformation Connection Service Rate | C41: kW | E41: =E39+E37 -> 2.33 | G41: =G39+G37 -> 2.27 | I41: 2.27
B44: If needed , add extra host here (I) | C44: Unit | E44: Effective January 1, 2013 | G44: Effective January 1, 2014 | I44: Effective January 1, 2015
B48: Rate Description | E48: Rate | G48: Rate | I48: Rate
B50: Network Service Rate | C50: kW
B52: Line Connection Service Rate | C52: kW
B54: Transformation Connection Service Rate | C54: kW
B56: Both Line and Transformation Connection Service Rate | C56: kW | E56: =E54+E52 -> 0 | G56: =G54+G52 -> 0 | I56: =I54+I52 -> 0
B59: If needed , add extra host here (II) | C59: Unit | E59: Effective January 1, 2013 | G59: Effective January 1, 2014 | I59: Effective January 1, 2015
B63: Rate Description | E63: Rate | G63: Rate | I63: Rate
B65: Network Service Rate | C65: kW
B67: Line Connection Service Rate | C67: kW
B69: Transformation Connection Service Rate | C69: kW
B71: Both Line and Transformation Connection Service Rate | C71: kW | E71: =E69+E67 -> 0 | G71: =G69+G67 -> 0 | I71: =I69+I67 -> 0
B75: Hydro One Sub-Transmission Rate Rider 9A | C75: Unit | E75: Effective January 1, 2013 | G75: Effective January 1, 2014 | I75: Effective January 1, 2015
B77: Rate Description | E77: Rate | G77: Rate | I77: Rate
B79: RSVA Transmission network – 4714 – which affects 1584 | C79: kW | E79: 0 | G79: 0.1465
B81: RSVA Transmission connection – 4716 – which affects 1586 | C81: kW | E81: 0 | G81: 0.0667
B83: RSVA LV – 4750 – which affects 1550 | C83: kW | E83: 0 | G83: 0.0475
B85: RARA 1 – 2252 – which affects 1590 | C85: kW | E85: 0 | G85: 0.0419
B87: RARA 1 – 2252 – which affects 1590 (2008) | C87: kW | E87: 0 | G87: -0.027
B89: RARA 1 – 2252 – which affects 1590 (2009) | C89: kW | E89: 0 | G89: -0.0006
B91: Hydro One Sub-Transmission Rate Rider 9A | C91: kW | E91: =SUM(E79:E89) -> 0 | G91: =SUM(G79:G89) -> 0.275 | I91: =SUM(I79:I89) -> 0
E94: Historical 2013 | G94: Current 2014 | I94: Forecast 2015
B95: Low Voltage Switchgear Credit (if applicable, enter as a negative value) | C95: $

Sheet 16. RTSR - Historical Wholesale
B13: In the green shaded cells, enter billing detail for wholesale transmission for the same reporting period as the billing determinants on Sheet "14. RTSR RRR Data". For Hydro One Sub-transmission Rates, if you are charged a combined Line and Transformer connection rate, please ensure that both the line connection and transformer connection columns are completed.
B16: IESO | D16: Network | H16: Line Connection | L16: Transformation Connection | P16: Total Line
B17: Month | D17: Units Billed | E17: Rate | F17: Amount | H17: Units Billed | I17: Rate | J17: Amount | L17: Units Billed | M17: Rate | N17: Amount | P17: Amount
B19: January | D19: 18812 | E19: 3.63 | F19: 68287.56 | H19: 19065 | I19: 0.75 | J19: 14298.75 | M19: =IF(L19<>0,N19/L19,0) -> 0 | P19: =J19+N19 -> 14298.75
B20: February | D20: 16349 | E20: 3.63 | F20: 59346.87 | H20: 17488 | I20: 0.75 | J20: 13116 | M20: 0 | P20: 13116
B21: March | D21: 13748 | E21: 3.63 | F21: 49905.24 | H21: 14000 | I21: 0.75 | J21: 10500 | M21: 0 | P21: 10500
B22: April | D22: 13092 | E22: 3.63 | F22: 47523.96 | H22: 13092 | I22: 0.75 | J22: 9819 | M22: 0 | P22: 9819
B23: May | D23: 11674 | E23: 3.63 | F23: 42376.62 | H23: 11796 | I23: 0.75 | J23: 8847 | M23: 0 | P23: 8847
B24: June | D24: 11540 | E24: 3.63 | F24: 41890.2 | H24: 12505 | I24: 0.75 | J24: 9378.75 | M24: 0 | P24: 9378.75
B25: July | D25: 12666 | E25: 3.63 | F25: 45977.58 | H25: 13671 | I25: 0.75 | J25: 10253.25 | M25: 0 | P25: 10253.25
B26: August | D26: 11810 | E26: 3.63 | F26: 42870.3 | H26: 12634 | I26: 0.75 | J26: 9475.5 | M26: 0 | P26: 9475.5
B27: September | D27: 10533 | E27: 3.63 | F27: 38234.79 | H27: 10951 | I27: 0.75 | J27: 8213.25 | M27: 0 | P27: 8213.25
B28: October | D28: 11198 | E28: 3.63 | F28: 40648.74 | H28: 11480 | I28: 0.75 | J28: 8610 | M28: 0 | P28: 8610
B29: November | D29: 14884 | E29: 3.63 | F29: 54028.92 | H29: 15298 | I29: 0.75 | J29: 11473.5 | M29: 0 | P29: 11473.5
B30: December | D30: 17705 | E30: 3.63 | F30: 64269.15 | H30: 18080 | I30: 0.75 | J30: 13560 | M30: 0 | P30: 13560
B32: Total | D32: =SUM(D19:D30) -> 164011 | E32: =IF(D32<>0,F32/D32,0) -> 3.63 | F32: =SUM(F19:F30) -> 595359.93 | H32: =SUM(H19:H30) -> 170060 | I32: =IF(H32<>0,J32/H32,0) -> 0.75 | J32: =SUM(J19:J30) -> 127545 | L32: =SUM(L19:L30) -> 0 | M32: =IF(L32<>0,N32/L32,0) -> 0 | N32: =SUM(N19:N30) -> 0 | P32: =SUM(P19:P30) -> 127545
B34: Hydro One | D34: Network | H34: Line Connection | L34: Transformation Connection | P34: Total Line
B36: Month | D36: Units Billed | E36: Rate | F36: Amount | H36: Units Billed | I36: Rate | J36: Amount | L36: Units Billed | M36: Rate | N36: Amount | P36: Amount
B38: January | D38: 13067 | E38: 3.18 | F38: 41553.06 | H38: 13067 | I38: 0.7 | J38: 9146.9 | L38: 13067 | M38: 1.63 | N38: 21299.21 | P38: =J38+N38 -> 30446.11
B39: February | D39: 12110 | E39: 3.18 | F39: 38509.8 | H39: 12110 | I39: 0.7 | J39: 8477 | L39: 12110 | M39: 1.63 | N39: 19739.3 | P39: 28216.3
B40: March | D40: 11449 | E40: 3.18 | F40: 36407.82 | H40: 11449 | I40: 0.7 | J40: 8014.3 | L40: 11449 | M40: 1.63 | N40: 18661.87 | P40: 26676.17
B41: April | D41: 11129 | E41: 3.18 | F41: 35390.22 | H41: 11129 | I41: 0.7 | J41: 7790.3 | L41: 11129 | M41: 1.63 | N41: 18140.27 | P41: 25930.57
B42: May | D42: 11385 | E42: 3.18 | F42: 36204.3 | H42: 11385 | I42: 0.7 | J42: 7969.5 | L42: 11385 | M42: 1.63 | N42: 18557.55 | P42: 26527.05
B43: June | D43: 11241 | E43: 3.18 | F43: 35746.38 | H43: 11241 | I43: 0.7 | J43: 7868.7 | L43: 11241 | M43: 1.63 | N43: 18322.83 | P43: 26191.53
B44: July | D44: 12320 | E44: 3.18 | F44: 39177.6 | H44: 12320 | I44: 0.7 | J44: 8624 | L44: 12320 | M44: 1.63 | N44: 20081.6 | P44: 28705.6
B45: August | D45: 12106 | E45: 3.18 | F45: 38497.08 | H45: 12106 | I45: 0.7 | J45: 8474.2 | L45: 12106 | M45: 1.63 | N45: 19732.78 | P45: 28206.98
B46: September | D46: 11305 | E46: 3.18 | F46: 35949.9 | H46: 11305 | I46: 0.7 | J46: 7913.5 | L46: 11305 | M46: 1.63 | N46: 18427.15 | P46: 26340.65
B47: October | D47: 10364 | E47: 3.18 | F47: 32957.52 | H47: 10364 | I47: 0.7 | J47: 7254.8 | L47: 10364 | M47: 1.63 | N47: 16893.32 | P47: 24148.12
B48: November | D48: 11004 | E48: 3.18 | F48: 34992.72 | H48: 11004 | I48: 0.7 | J48: 7702.8 | L48: 11004 | M48: 1.63 | N48: 17936.52 | P48: 25639.32
B49: December | D49: 11199 | E49: 3.18 | F49: 35612.82 | H49: 11199 | I49: 0.7 | J49: 7839.3 | L49: 11199 | M49: 1.63 | N49: 18254.37 | P49: 26093.67
B51: Total | D51: =SUM(D38:D49) -> 138679 | E51: =IF(D51<>0,F51/D51,0) -> 3.18 | F51: =SUM(F38:F49) -> 440999.22 | H51: =SUM(H38:H49) -> 138679 | I51: =IF(H51<>0,J51/H51,0) -> 0.7 | J51: =SUM(J38:J49) -> 97075.3 | L51: =SUM(L38:L49) -> 138679 | M51: =IF(L51<>0,N51/L51,0) -> 1.63 | N51: =SUM(N38:N49) -> 226046.77 | P51: =SUM(P38:P49) -> 323122.07
B53: Add Extra Host Here (I) | D53: Network | H53: Line Connection | L53: Transformation Connection | P53: Total Line
B54: (if needed)
B55: Month | D55: Units Billed | E55: Rate | F55: Amount | H55: Units Billed | I55: Rate | J55: Amount | L55: Units Billed | M55: Rate | N55: Amount | P55: Amount
B57: January | E57: =IF(D57<>0,F57/D57,0) -> 0 | I57: =IF(H57<>0,J57/H57,0) -> 0 | M57: =IF(L57<>0,N57/L57,0) -> 0 | P57: =J57+N57 -> 0
B58: February | E58: 0 | I58: 0 | M58: 0 | P58: 0
B59: March | E59: 0 | I59: 0 | M59: 0 | P59: 0
B60: April | E60: 0 | I60: 0 | M60: 0 | P60: 0
B61: May | E61: 0 | I61: 0 | M61: 0 | P61: 0
B62: June | E62: 0 | I62: 0 | M62: 0 | P62: 0
B63: July | E63: 0 | I63: 0 | M63: 0 | P63: 0
B64: August | E64: 0 | I64: 0 | M64: 0 | P64: 0
B65: September | E65: 0 | I65: 0 | M65: 0 | P65: 0
B66: October | E66: 0 | I66: 0 | M66: 0 | P66: 0
B67: November | E67: 0 | I67: 0 | M67: 0 | P67: 0
B68: December | E68: 0 | I68: 0 | M68: 0 | P68: 0
B70: Total | D70: =SUM(D57:D68) -> 0 | E70: =IF(D70<>0,F70/D70,0) -> 0 | F70: =SUM(F57:F68) -> 0 | H70: =SUM(H57:H68) -> 0 | I70: =IF(H70<>0,J70/H70,0) -> 0 | J70: =SUM(J57:J68) -> 0 | L70: =SUM(L57:L68) -> 0 | M70: =IF(L70<>0,N70/L70,0) -> 0 | N70: =SUM(N57:N68) -> 0 | P70: =SUM(P57:P68) -> 0
B72: Add Extra Host Here (II) | D72: Network | H72: Line Connection | L72: Transformation Connection | P72: Total Line
B73: (if needed)
B74: Month | D74: Units Billed | E74: Rate | F74: Amount | H74: Units Billed | I74: Rate | J74: Amount | L74: Units Billed | M74: Rate | N74: Amount | P74: Amount
B76: January | E76: =IF(D76<>0,F76/D76,0) -> 0 | I76: =IF(H76<>0,J76/H76,0) -> 0 | M76: =IF(L76<>0,N76/L76,0) -> 0 | P76: =J76+N76 -> 0
B77: February | E77: 0 | I77: 0 | M77: 0 | P77: 0
B78: March | E78: 0 | I78: 0 | M78: 0 | P78: 0
B79: April | E79: 0 | I79: 0 | M79: 0 | P79: 0
B80: May | E80: 0 | I80: 0 | M80: 0 | P80: 0
B81: June | E81: 0 | I81: 0 | M81: 0 | P81: 0
B82: July | E82: 0 | I82: 0 | M82: 0 | P82: 0
B83: August | E83: 0 | I83: 0 | M83: 0 | P83: 0
B84: September | E84: 0 | I84: 0 | M84: 0 | P84: 0
B85: October | E85: 0 | I85: 0 | M85: 0 | P85: 0
B86: November | E86: 0 | I86: 0 | M86: 0 | P86: 0
B87: December | E87: 0 | I87: 0 | M87: 0 | P87: 0
B89: Total | D89: =SUM(D76:D87) -> 0 | E89: =IF(D89<>0,F89/D89,0) -> 0 | F89: =SUM(F76:F87) -> 0 | H89: =SUM(H76:H87) -> 0 | I89: =IF(H89<>0,J89/H89,0) -> 0 | J89: =SUM(J76:J87) -> 0 | L89: =SUM(L76:L87) -> 0 | M89: =IF(L89<>0,N89/L89,0) -> 0 | N89: =SUM(N76:N87) -> 0 | P89: =SUM(P76:P87) -> 0
B91: Total | D91: Network | H91: Line Connection | L91: Transformation Connection | P91: Total Line
B93: Month | D93: Units Billed | E93: Rate | F93: Amount | H93: Units Billed | I93: Rate | J93: Amount | L93: Units Billed | M93: Rate | N93: Amount | P93: Amount
B95: January | D95: =D19+D38+D57+D76 -> 31879 | E95: =IF(D95<>0,F95/D95,0) -> 3.445547853 | F95: =F19+F38+F57+F76 -> 109840.62 | H95: =H19+H38+H57+H76 -> 32132 | I95: =IF(H95<>0,J95/H95,0) -> 0.7296666874 | J95: =J19+J38+J57+J76 -> 23445.65 | L95: =L19+L38+L57+L76 -> 13067 | M95: =IF(L95<>0,N95/L95,0) -> 1.63 | N95: =N19+N38+N57+N76 -> 21299.21 | P95: =J95+N95 -> 44744.86
B96: February | D96: =D20+D39+D58+D77 -> 28459 | E96: 3.438514003 | F96: =F20+F39+F58+F77 -> 97856.67 | H96: =H20+H39+H58+H77 -> 29598 | I96: 0.7295425367 | J96: =J20+J39+J58+J77 -> 21593 | L96: =L20+L39+L58+L77 -> 12110 | M96: 1.63 | N96: =N20+N39+N58+N77 -> 19739.3 | P96: 41332.3
B97: March | D97: 25197 | E97: 3.42552923 | F97: 86313.06 | H97: 25449 | I97: 0.7275059924 | J97: 18514.3 | L97: 11449 | M97: 1.63 | N97: 18661.87 | P97: 37176.17
B98: April | D98: 24221 | E98: 3.423235209 | F98: 82914.18 | H98: 24221 | I98: 0.7270261343 | J98: 17609.3 | L98: 11129 | M98: 1.63 | N98: 18140.27 | P98: 35749.57
B99: May | D99: 23059 | E99: 3.40781994 | F99: 78580.92 | H99: 23181 | I99: 0.7254432509 | J99: 16816.5 | L99: 11385 | M99: 1.63 | N99: 18557.55 | P99: 35374.05
B100: June | D100: 22781 | E100: 3.407953119 | F100: 77636.58 | H100: 23746 | I100: 0.7263307504 | J100: 17247.45 | L100: 11241 | M100: 1.63 | N100: 18322.83 | P100: 35570.28
B101: July | D101: 24986 | E101: 3.408115745 | F101: 85155.18 | H101: 25991 | I101: 0.7262994883 | J101: 18877.25 | L101: 12320 | M101: 1.63 | N101: 20081.6 | P101: 38958.85
B102: August | D102: 23916 | E102: 3.402215253 | F102: 81367.38 | H102: 24740 | I102: 0.7255335489 | J102: 17949.7 | L102: 12106 | M102: 1.63 | N102: 19732.78 | P102: 37682.48
B103: September | D103: 21838 | E103: 3.397045975 | F103: 74184.69 | H103: 22256 | I103: 0.7246023544 | J103: 16126.75 | L103: 11305 | M103: 1.63 | N103: 18427.15 | P103: 34553.9
B104: October | D104: 21562 | E104: 3.41370281 | F104: 73606.26 | H104: 21844 | I104: 0.7262772386 | J104: 15864.8 | L104: 10364 | M104: 1.63 | N104: 16893.32 | P104: 32758.12
B105: November | D105: 25888 | E105: 3.438722188 | F105: 89021.64 | H105: 26302 | I105: 0.7290814387 | J105: 19176.3 | L105: 11004 | M105: 1.63 | N105: 17936.52 | P105: 37112.82
B106: December | D106: 28904 | E106: 3.455645239 | F106: 99881.97 | H106: 29279 | I106: 0.7308753714 | J106: 21399.3 | L106: 11199 | M106: 1.63 | N106: 18254.37 | P106: 39653.67
B108: Total | D108: =SUM(D95:D106) -> 302690 | E108: =IF(D108<>0,F108/D108,0) -> 3.423830156 | F108: =SUM(F95:F106) -> 1036359.15 | H108: =SUM(H95:H106) -> 308739 | I108: =IF(H108<>0,J108/H108,0) -> 0.7275410622 | J108: =SUM(J95:J106) -> 224620.3 | L108: =SUM(L95:L106) -> 138679 | M108: =IF(L108<>0,N108/L108,0) -> 1.63 | N108: =SUM(N95:N106) -> 226046.77 | P108: =SUM(P95:P106) -> 450667.07
N110: Transformer Allowance Credit (if applicable) | P110: ='15. RTSR - UTRs & Sub-Tx'!E95 -> 0
N112: Total including deduction for Transformer Allowance Credit | P112: =P108+P110 -> 450667.07

Sheet 17. RTSR - Current Wholesale
B13: The purpose of this sheet is to calculate the expected billing when current 2014 Uniform Transmission Rates are applied against historical 2013 transmission units.
B16: IESO | D16: Network | H16: Line Connection | L16: Transformation Connection | P16: Total Line
B18: Month | D18: Units Billed | E18: Rate | F18: Amount | H18: Units Billed | I18: Rate | J18: Amount | L18: Units Billed | M18: Rate | N18: Amount | P18: Amount
B20: January | D20: ='16. RTSR - Historical Wholesale'!D19 -> 18812 | E20: ='15. RTSR - UTRs & Sub-Tx'!G22 -> 3.82 | F20: =D20*E20 -> 71861.84 | H20: ='16. RTSR - Historical Wholesale'!H19 -> 19065 | I20: ='15. RTSR - UTRs & Sub-Tx'!G24 -> 0.82 | J20: =H20*I20 -> 15633.3 | L20: ='16. RTSR - Historical Wholesale'!L19 -> 0 | M20: ='15. RTSR - UTRs & Sub-Tx'!G26 -> 1.98 | N20: =L20*M20 -> 0 | P20: =J20+N20 -> 15633.3
B21: February | D21: ='16. RTSR - Historical Wholesale'!D20 -> 16349 | E21: =E20 -> 3.82 | F21: =D21*E21 -> 62453.18 | H21: ='16. RTSR - Historical Wholesale'!H20 -> 17488 | I21: =I20 -> 0.82 | J21: =H21*I21 -> 14340.16 | L21: ='16. RTSR - Historical Wholesale'!L20 -> 0 | M21: =M20 -> 1.98 | N21: =L21*M21 -> 0 | P21: 14340.16
B22: March | D22: ='16. RTSR - Historical Wholesale'!D21 -> 13748 | E22: =E21 -> 3.82 | F22: 52517.36 | H22: ='16. RTSR - Historical Wholesale'!H21 -> 14000 | I22: =I21 -> 0.82 | J22: 11480 | L22: ='16. RTSR - Historical Wholesale'!L21 -> 0 | M22: =M21 -> 1.98 | N22: 0 | P22: 11480
B23: April | D23: ='16. RTSR - Historical Wholesale'!D22 -> 13092 | E23: 3.82 | F23: 50011.44 | H23: ='16. RTSR - Historical Wholesale'!H22 -> 13092 | I23: 0.82 | J23: 10735.44 | L23: ='16. RTSR - Historical Wholesale'!L22 -> 0 | M23: 1.98 | N23: 0 | P23: 10735.44
B24: May | D24: ='16. RTSR - Historical Wholesale'!D23 -> 11674 | E24: 3.82 | F24: 44594.68 | H24: ='16. RTSR - Historical Wholesale'!H23 -> 11796 | I24: 0.82 | J24: 9672.72 | L24: ='16. RTSR - Historical Wholesale'!L23 -> 0 | M24: 1.98 | N24: 0 | P24: 9672.72
B25: June | D25: ='16. RTSR - Historical Wholesale'!D24 -> 11540 | E25: 3.82 | F25: 44082.8 | H25: ='16. RTSR - Historical Wholesale'!H24 -> 12505 | I25: 0.82 | J25: 10254.1 | L25: ='16. RTSR - Historical Wholesale'!L24 -> 0 | M25: 1.98 | N25: 0 | P25: 10254.1
B26: July | D26: ='16. RTSR - Historical Wholesale'!D25 -> 12666 | E26: 3.82 | F26: 48384.12 | H26: ='16. RTSR - Historical Wholesale'!H25 -> 13671 | I26: 0.82 | J26: 11210.22 | L26: ='16. RTSR - Historical Wholesale'!L25 -> 0 | M26: 1.98 | N26: 0 | P26: 11210.22
B27: August | D27: ='16. RTSR - Historical Wholesale'!D26 -> 11810 | E27: 3.82 | F27: 45114.2 | H27: ='16. RTSR - Historical Wholesale'!H26 -> 12634 | I27: 0.82 | J27: 10359.88 | L27: ='16. RTSR - Historical Wholesale'!L26 -> 0 | M27: 1.98 | N27: 0 | P27: 10359.88
B28: September | D28: ='16. RTSR - Historical Wholesale'!D27 -> 10533 | E28: 3.82 | F28: 40236.06 | H28: ='16. RTSR - Historical Wholesale'!H27 -> 10951 | I28: 0.82 | J28: 8979.82 | L28: ='16. RTSR - Historical Wholesale'!L27 -> 0 | M28: 1.98 | N28: 0 | P28: 8979.82
B29: October | D29: ='16. RTSR - Historical Wholesale'!D28 -> 11198 | E29: 3.82 | F29: 42776.36 | H29: ='16. RTSR - Historical Wholesale'!H28 -> 11480 | I29: 0.82 | J29: 9413.6 | L29: ='16. RTSR - Historical Wholesale'!L28 -> 0 | M29: 1.98 | N29: 0 | P29: 9413.6
B30: November | D30: ='16. RTSR - Historical Wholesale'!D29 -> 14884 | E30: 3.82 | F30: 56856.88 | H30: ='16. RTSR - Historical Wholesale'!H29 -> 15298 | I30: 0.82 | J30: 12544.36 | L30: ='16. RTSR - Historical Wholesale'!L29 -> 0 | M30: 1.98 | N30: 0 | P30: 12544.36
B31: December | D31: ='16. RTSR - Historical Wholesale'!D30 -> 17705 | E31: 3.82 | F31: 67633.1 | H31: ='16. RTSR - Historical Wholesale'!H30 -> 18080 | I31: 0.82 | J31: 14825.6 | L31: ='16. RTSR - Historical Wholesale'!L30 -> 0 | M31: 1.98 | N31: 0 | P31: 14825.6
B33: Total | D33: =SUM(D20:D31) -> 164011 | E33: =IF(D33<>0,F33/D33,0) -> 3.82 | F33: =SUM(F20:F31) -> 626522.02 | H33: =SUM(H20:H31) -> 170060 | I33: =IF(H33<>0,J33/H33,0) -> 0.82 | J33: =SUM(J20:J31) -> 139449.2 | L33: =SUM(L20:L31) -> 0 | M33: =IF(L33<>0,N33/L33,0) -> 0 | N33: =SUM(N20:N31) -> 0 | P33: =SUM(P20:P31) -> 139449.2
B35: Hydro One | D35: Network | H35: Line Connection | L35: Transformation Connection | P35: Total Line
B37: Month | D37: Units Billed | E37: Rate | F37: Amount | H37: Units Billed | I37: Rate | J37: Amount | L37: Units Billed | M37: Rate | N37: Amount | P37: Amount
B39: January | D39: ='16. RTSR - Historical Wholesale'!D38 -> 13067 | E39: ='15. RTSR - UTRs & Sub-Tx'!G35+'15. RTSR - UTRs & Sub-Tx'!G79 -> 3.3765 | F39: =D39*E39 -> 44120.7255 | H39: ='16. RTSR - Historical Wholesale'!H38 -> 13067 | I39: ='15. RTSR - UTRs & Sub-Tx'!G37+'15. RTSR - UTRs & Sub-Tx'!G81 -> 0.7167 | J39: =H39*I39 -> 9365.1189 | L39: ='16. RTSR - Historical Wholesale'!L38 -> 13067 | M39: ='15. RTSR - UTRs & Sub-Tx'!G39 -> 1.62 | N39: =L39*M39 -> 21168.54 | P39: =J39+N39 -> 30533.6589
B40: February | D40: ='16. RTSR - Historical Wholesale'!D39 -> 12110 | E40: =E39 -> 3.3765 | F40: =D40*E40 -> 40889.415 | H40: ='16. RTSR - Historical Wholesale'!H39 -> 12110 | I40: =I39 -> 0.7167 | J40: =H40*I40 -> 8679.237 | L40: ='16. RTSR - Historical Wholesale'!L39 -> 12110 | M40: =M39 -> 1.62 | N40: =L40*M40 -> 19618.2 | P40: 28297.437
B41: March | D41: ='16. RTSR - Historical Wholesale'!D40 -> 11449 | E41: =E40 -> 3.3765 | F41: 38657.5485 | H41: ='16. RTSR - Historical Wholesale'!H40 -> 11449 | I41: =I40 -> 0.7167 | J41: 8205.4983 | L41: ='16. RTSR - Historical Wholesale'!L40 -> 11449 | M41: =M40 -> 1.62 | N41: 18547.38 | P41: 26752.8783
B42: April | D42: ='16. RTSR - Historical Wholesale'!D41 -> 11129 | E42: 3.3765 | F42: 37577.0685 | H42: ='16. RTSR - Historical Wholesale'!H41 -> 11129 | I42: 0.7167 | J42: 7976.1543 | L42: ='16. RTSR - Historical Wholesale'!L41 -> 11129 | M42: =M41 -> 1.62 | N42: 18028.98 | P42: 26005.1343
B43: May | D43: ='16. RTSR - Historical Wholesale'!D42 -> 11385 | E43: 3.3765 | F43: 38441.4525 | H43: ='16. RTSR - Historical Wholesale'!H42 -> 11385 | I43: 0.7167 | J43: 8159.6295 | L43: ='16. RTSR - Historical Wholesale'!L42 -> 11385 | M43: 1.62 | N43: 18443.7 | P43: 26603.3295
B44: June | D44: ='16. RTSR - Historical Wholesale'!D43 -> 11241 | E44: 3.3765 | F44: 37955.2365 | H44: ='16. RTSR - Historical Wholesale'!H43 -> 11241 | I44: 0.7167 | J44: 8056.4247 | L44: ='16. RTSR - Historical Wholesale'!L43 -> 11241 | M44: 1.62 | N44: 18210.42 | P44: 26266.8447
B45: July | D45: ='16. RTSR - Historical Wholesale'!D44 -> 12320 | E45: 3.3765 | F45: 41598.48 | H45: ='16. RTSR - Historical Wholesale'!H44 -> 12320 | I45: 0.7167 | J45: 8829.744 | L45: ='16. RTSR - Historical Wholesale'!L44 -> 12320 | M45: 1.62 | N45: 19958.4 | P45: 28788.144
B46: August | D46: ='16. RTSR - Historical Wholesale'!D45 -> 12106 | E46: 3.3765 | F46: 40875.909 | H46: ='16. RTSR - Historical Wholesale'!H45 -> 12106 | I46: 0.7167 | J46: 8676.3702 | L46: ='16. RTSR - Historical Wholesale'!L45 -> 12106 | M46: 1.62 | N46: 19611.72 | P46: 28288.0902
B47: September | D47: ='16. RTSR - Historical Wholesale'!D46 -> 11305 | E47: 3.3765 | F47: 38171.3325 | H47: ='16. RTSR - Historical Wholesale'!H46 -> 11305 | I47: 0.7167 | J47: 8102.2935 | L47: ='16. RTSR - Historical Wholesale'!L46 -> 11305 | M47: 1.62 | N47: 18314.1 | P47: 26416.3935
B48: October | D48: ='16. RTSR - Historical Wholesale'!D47 -> 10364 | E48: 3.3765 | F48: 34994.046 | H48: ='16. RTSR - Historical Wholesale'!H47 -> 10364 | I48: 0.7167 | J48: 7427.8788 | L48: ='16. RTSR - Historical Wholesale'!L47 -> 10364 | M48: 1.62 | N48: 16789.68 | P48: 24217.5588
B49: November | D49: ='16. RTSR - Historical Wholesale'!D48 -> 11004 | E49: 3.3765 | F49: 37155.006 | H49: ='16. RTSR - Historical Wholesale'!H48 -> 11004 | I49: 0.7167 | J49: 7886.5668 | L49: ='16. RTSR - Historical Wholesale'!L48 -> 11004 | M49: 1.62 | N49: 17826.48 | P49: 25713.0468
B50: December | D50: ='16. RTSR - Historical Wholesale'!D49 -> 11199 | E50: 3.3765 | F50: 37813.4235 | H50: ='16. RTSR - Historical Wholesale'!H49 -> 11199 | I50: 0.7167 | J50: 8026.3233 | L50: ='16. RTSR - Historical Wholesale'!L49 -> 11199 | M50: 1.62 | N50: 18142.38 | P50: 26168.7033
B52: Total | D52: =SUM(D39:D50) -> 138679 | E52: =IF(D52<>0,F52/D52,0) -> 3.3765 | F52: =SUM(F39:F50) -> 468249.6435 | H52: =SUM(H39:H50) -> 138679 | I52: =IF(H52<>0,J52/H52,0) -> 0.7167 | J52: =SUM(J39:J50) -> 99391.2393 | L52: =SUM(L39:L50) -> 138679 | M52: =IF(L52<>0,N52/L52,0) -> 1.62 | N52: =SUM(N39:N50) -> 224659.98 | P52: =SUM(P39:P50) -> 324051.2193
B54: ='16. RTSR - Historical Wholesale'!B53 -> Add Extra Host Here (I) | D54: Network | H54: Line Connection | L54: Transformation Connection | P54: Total Line
B56: Month | D56: Units Billed | E56: Rate | F56: Amount | H56: Units Billed | I56: Rate | J56: Amount | L56: Units Billed | M56: Rate | N56: Amount | P56: Amount
B58: January | D58: ='16. RTSR - Historical Wholesale'!D57 -> 0 | E58: ='15. RTSR - UTRs & Sub-Tx'!G50 -> 0 | F58: =D58*E58 -> 0 | H58: ='16. RTSR - Historical Wholesale'!H57 -> 0 | I58: ='15. RTSR - UTRs & Sub-Tx'!G52 -> 0 | J58: =H58*I58 -> 0 | L58: ='16. RTSR - Historical Wholesale'!L57 -> 0 | M58: ='15. RTSR - UTRs & Sub-Tx'!G54 -> 0 | N58: =L58*M58 -> 0 | P58: =J58+N58 -> 0
B59: February | D59: ='16. RTSR - Historical Wholesale'!D58 -> 0 | E59: =E58 -> 0 | F59: =D59*E59 -> 0 | H59: ='16. RTSR - Historical Wholesale'!H58 -> 0 | I59: =I58 -> 0 | J59: =H59*I59 -> 0 | L59: ='16. RTSR - Historical Wholesale'!L58 -> 0 | M59: =M58 -> 0 | N59: =L59*M59 -> 0 | P59: 0
B60: March | D60: ='16. RTSR - Historical Wholesale'!D59 -> 0 | E60: =E59 -> 0 | F60: 0 | H60: ='16. RTSR - Historical Wholesale'!H59 -> 0 | I60: =I59 -> 0 | J60: 0 | L60: ='16. RTSR - Historical Wholesale'!L59 -> 0 | M60: =M59 -> 0 | N60: 0 | P60: 0
B61: April | D61: ='16. RTSR - Historical Wholesale'!D60 -> 0 | E61: 0 | F61: 0 | H61: ='16. RTSR - Historical Wholesale'!H60 -> 0 | I61: 0 | J61: 0 | L61: ='16. RTSR - Historical Wholesale'!L60 -> 0 | M61: =M60 -> 0 | N61: 0 | P61: 0
B62: May | D62: ='16. RTSR - Historical Wholesale'!D61 -> 0 | E62: 0 | F62: 0 | H62: ='16. RTSR - Historical Wholesale'!H61 -> 0 | I62: 0 | J62: 0 | L62: ='16. RTSR - Historical Wholesale'!L61 -> 0 | M62: 0 | N62: 0 | P62: 0
B63: June | D63: ='16. RTSR - Historical Wholesale'!D62 -> 0 | E63: 0 | F63: 0 | H63: ='16. RTSR - Historical Wholesale'!H62 -> 0 | I63: 0 | J63: 0 | L63: ='16. RTSR - Historical Wholesale'!L62 -> 0 | M63: 0 | N63: 0 | P63: 0
B64: July | D64: ='16. RTSR - Historical Wholesale'!D63 -> 0 | E64: 0 | F64: 0 | H64: ='16. RTSR - Historical Wholesale'!H63 -> 0 | I64: 0 | J64: 0 | L64: ='16. RTSR - Historical Wholesale'!L63 -> 0 | M64: 0 | N64: 0 | P64: 0
B65: August | D65: ='16. RTSR - Historical Wholesale'!D64 -> 0 | E65: 0 | F65: 0 | H65: ='16. RTSR - Historical Wholesale'!H64 -> 0 | I65: 0 | J65: 0 | L65: ='16. RTSR - Historical Wholesale'!L64 -> 0 | M65: 0 | N65: 0 | P65: 0
B66: September | D66: ='16. RTSR - Historical Wholesale'!D65 -> 0 | E66: 0 | F66: 0 | H66: ='16. RTSR - Historical Wholesale'!H65 -> 0 | I66: 0 | J66: 0 | L66: ='16. RTSR - Historical Wholesale'!L65 -> 0 | M66: 0 | N66: 0 | P66: 0
B67: October | D67: ='16. RTSR - Historical Wholesale'!D66 -> 0 | E67: 0 | F67: 0 | H67: ='16. RTSR - Historical Wholesale'!H66 -> 0 | I67: 0 | J67: 0 | L67: ='16. RTSR - Historical Wholesale'!L66 -> 0 | M67: 0 | N67: 0 | P67: 0
B68: November | D68: ='16. RTSR - Historical Wholesale'!D67 -> 0 | E68: 0 | F68: 0 | H68: ='16. RTSR - Historical Wholesale'!H67 -> 0 | I68: 0 | J68: 0 | L68: ='16. RTSR - Historical Wholesale'!L67 -> 0 | M68: 0 | N68: 0 | P68: 0
B69: December | D69: ='16. RTSR - Historical Wholesale'!D68 -> 0 | E69: 0 | F69: 0 | H69: ='16. RTSR - Historical Wholesale'!H68 -> 0 | I69: 0 | J69: 0 | L69: ='16. RTSR - Historical Wholesale'!L68 -> 0 | M69: 0 | N69: 0 | P69: 0
B71: Total | D71: =SUM(D58:D69) -> 0 | E71: =IF(D71<>0,F71/D71,0) -> 0 | F71: =SUM(F58:F69) -> 0 | H71: =SUM(H58:H69) -> 0 | I71: =IF(H71<>0,J71/H71,0) -> 0 | J71: =SUM(J58:J69) -> 0 | L71: =SUM(L58:L69) -> 0 | M71: =IF(L71<>0,N71/L71,0) -> 0 | N71: =SUM(N58:N69) -> 0 | P71: =SUM(P58:P69) -> 0
B73: ='16. RTSR - Historical Wholesale'!B72 -> Add Extra Host Here (II) | D73: Network | H73: Line Connection | L73: Transformation Connection | P73: Total Line
B75: Month | D75: Units Billed | E75: Rate | F75: Amount | H75: Units Billed | I75: Rate | J75: Amount | L75: Units Billed | M75: Rate | N75: Amount | P75: Amount
B77: January | D77: ='16. RTSR - Historical Wholesale'!D76 -> 0 | E77: ='15. RTSR - UTRs & Sub-Tx'!G65 -> 0 | F77: =D77*E77 -> 0 | H77: ='16. RTSR - Historical Wholesale'!H76 -> 0 | I77: ='15. RTSR - UTRs & Sub-Tx'!G67 -> 0 | J77: =H77*I77 -> 0 | L77: ='16. RTSR - Historical Wholesale'!L76 -> 0 | M77: ='15. RTSR - UTRs & Sub-Tx'!G69 -> 0 | N77: =L77*M77 -> 0 | P77: =J77+N77 -> 0
B78: February | D78: ='16. RTSR - Historical Wholesale'!D77 -> 0 | E78: =E77 -> 0 | F78: =D78*E78 -> 0 | H78: ='16. RTSR - Historical Wholesale'!H77 -> 0 | I78: =I77 -> 0 | J78: =H78*I78 -> 0 | L78: ='16. RTSR - Historical Wholesale'!L77 -> 0 | M78: =M77 -> 0 | N78: =L78*M78 -> 0 | P78: 0
B79: March | D79: ='16. RTSR - Historical Wholesale'!D78 -> 0 | E79: =E78 -> 0 | F79: 0 | H79: ='16. RTSR - Historical Wholesale'!H78 -> 0 | I79: =I78 -> 0 | J79: 0 | L79: ='16. RTSR - Historical Wholesale'!L78 -> 0 | M79: =M78 -> 0 | N79: 0 | P79: 0
B80: April | D80: ='16. RTSR - Historical Wholesale'!D79 -> 0 | E80: 0 | F80: 0 | H80: ='16. RTSR - Historical Wholesale'!H79 -> 0 | I80: 0 | J80: 0 | L80: ='16. RTSR - Historical Wholesale'!L79 -> 0 | M80: =M79 -> 0 | N80: 0 | P80: 0
B81: May | D81: ='16. RTSR - Historical Wholesale'!D80 -> 0 | E81: 0 | F81: 0 | H81: ='16. RTSR - Historical Wholesale'!H80 -> 0 | I81: 0 | J81: 0 | L81: ='16. RTSR - Historical Wholesale'!L80 -> 0 | M81: 0 | N81: 0 | P81: 0
B82: June | D82: ='16. RTSR - Historical Wholesale'!D81 -> 0 | E82: 0 | F82: 0 | H82: ='16. RTSR - Historical Wholesale'!H81 -> 0 | I82: 0 | J82: 0 | L82: ='16. RTSR - Historical Wholesale'!L81 -> 0 | M82: 0 | N82: 0 | P82: 0
B83: July | D83: ='16. RTSR - Historical Wholesale'!D82 -> 0 | E83: 0 | F83: 0 | H83: ='16. RTSR - Historical Wholesale'!H82 -> 0 | I83: 0 | J83: 0 | L83: ='16. RTSR - Historical Wholesale'!L82 -> 0 | M83: 0 | N83: 0 | P83: 0
B84: August | D84: ='16. RTSR - Historical Wholesale'!D83 -> 0 | E84: 0 | F84: 0 | H84: ='16. RTSR - Historical Wholesale'!H83 -> 0 | I84: 0 | J84: 0 | L84: ='16. RTSR - Historical Wholesale'!L83 -> 0 | M84: 0 | N84: 0 | P84: 0
B85: September | D85: ='16. RTSR - Historical Wholesale'!D84 -> 0 | E85: 0 | F85: 0 | H85: ='16. RTSR - Historical Wholesale'!H84 -> 0 | I85: 0 | J85: 0 | L85: ='16. RTSR - Historical Wholesale'!L84 -> 0 | M85: 0 | N85: 0 | P85: 0
B86: October | D86: ='16. RTSR - Historical Wholesale'!D85 -> 0 | E86: 0 | F86: 0 | H86: ='16. RTSR - Historical Wholesale'!H85 -> 0 | I86: 0 | J86: 0 | L86: ='16. RTSR - Historical Wholesale'!L85 -> 0 | M86: 0 | N86: 0 | P86: 0
B87: November | D87: ='16. RTSR - Historical Wholesale'!D86 -> 0 | E87: 0 | F87: 0 | H87: ='16. RTSR - Historical Wholesale'!H86 -> 0 | I87: 0 | J87: 0 | L87: ='16. RTSR - Historical Wholesale'!L86 -> 0 | M87: 0 | N87: 0 | P87: 0
B88: December | D88: ='16. RTSR - Historical Wholesale'!D87 -> 0 | E88: 0 | F88: 0 | H88: ='16. RTSR - Historical Wholesale'!H87 -> 0 | I88: 0 | J88: 0 | L88: ='16. RTSR - Historical Wholesale'!L87 -> 0 | M88: 0 | N88: 0 | P88: 0
B90: Total | D90: =SUM(D77:D88) -> 0 | E90: =IF(D90<>0,F90/D90,0) -> 0 | F90: =SUM(F77:F88) -> 0 | H90: =SUM(H77:H88) -> 0 | I90: =IF(H90<>0,J90/H90,0) -> 0 | J90: =SUM(J77:J88) -> 0 | L90: =SUM(L77:L88) -> 0 | M90: =IF(L90<>0,N90/L90,0) -> 0 | N90: =SUM(N77:N88) -> 0 | P90: =SUM(P77:P88) -> 0
B92: Total | D92: Network | H92: Line Connection | L92: Transformation Connection | P92: Total Line
B94: Month | D94: Units Billed | E94: Rate | F94: Amount | H94: Units Billed | I94: Rate | J94: Amount | L94: Units Billed | M94: Rate | N94: Amount | P94: Amount
B96: January | D96: =D20+D39+D58+D77 -> 31879 | E96: =IF(D96<>0,F96/D96,0) -> 3.638212162 | F96: =F20+F39+F58+F77 -> 115982.5655 | H96: =H20+H39+H58+H77 -> 32132 | I96: =IF(H96<>0,J96/H96,0) -> 0.7779913762 | J96: =J20+J39+J58+J77 -> 24998.4189 | L96: =L20+L39+L58+L77 -> 13067 | M96: =IF(L96<>0,N96/L96,0) -> 1.62 | N96: =N20+N39+N58+N77 -> 21168.54 | P96: =J96+N96 -> 46166.9589
B97: February | D97: =D21+D40+D59+D78 -> 28459 | E97: 3.631279911 | F97: =F21+F40+F59+F78 -> 103342.595 | H97: =H21+H40+H59+H78 -> 29598 | I97: 0.7777348807 | J97: =J21+J40+J59+J78 -> 23019.397 | L97: =L21+L40+L59+L78 -> 12110 | M97: 1.62 | N97: =N21+N40+N59+N78 -> 19618.2 | P97: 42637.597
B98: March | D98: 25197 | E98: 3.618482696 | F98: 91174.9085 | H98: 25449 | I98: 0.7735273803 | J98: 19685.4983 | L98: 11449 | M98: 1.62 | N98: 18547.38 | P98: 38232.8783
B99: April | D99: 24221 | E99: 3.616221812 | F99: 87588.5085 | H99: 24221 | I99: 0.7725359936 | J99: 18711.5943 | L99: 11129 | M99: 1.62 | N99: 18028.98 | P99: 36740.5743
B100: May | D100: 23059 | E100: 3.601029208 | F100: 83036.1325 | H100: 23181 | I100: 0.7692657564 | J100: 17832.3495 | L100: 11385 | M100: 1.62 | N100: 18443.7 | P100: 36276.0495
B101: June | D101: 22781 | E101: 3.601160463 | F101: 82038.0365 | H101: 23746 | I101: 0.7710993304 | J101: 18310.5247 | L101: 11241 | M101: 1.62 | N101: 18210.42 | P101: 36520.9447
B102: July | D102: 24986 | E102: 3.60132074 | F102: 89982.6 | H102: 25991 | I102: 0.7710347428 | J102: 20039.964 | L102: 12320 | M102: 1.62 | N102: 19958.4 | P102: 39998.364
B103: August | D103: 23916 | E103: 3.595505478 | F103: 85990.109 | H103: 24740 | I103: 0.769452312 | J103: 19036.2502 | L103: 12106 | M103: 1.62 | N103: 19611.72 | P103: 38647.9702
B104: September | D104: 21838 | E104: 3.590410866 | F104: 78407.3925 | H104: 22256 | I104: 0.7675284642 | J104: 17082.1135 | L104: 11305 | M104: 1.62 | N104: 18314.1 | P104: 35396.2135
B105: October | D105: 21562 | E105: 3.606827103 | F105: 77770.406 | H105: 21844 | I105: 0.7709887749 | J105: 16841.4788 | L105: 10364 | M105: 1.62 | N105: 16789.68 | P105: 33631.1588
B106: November | D106: 25888 | E106: 3.63148509 | F106: 94011.886 | H106: 26302 | I106: 0.7767822523 | J106: 20430.9268 | L106: 11004 | M106: 1.62 | N106: 17826.48 | P106: 38257.4068
B107: December | D107: 28904 | E107: 3.648163697 | F107: 105446.5235 | H107: 29279 | I107: 0.7804885174 | J107: 22851.9233 | L107: 11199 | M107: 1.62 | N107: 18142.38 | P107: 40994.3033
B109: Total | D109: =SUM(D96:D107) -> 302690 | E109: =IF(D109<>0,F109/D109,0) -> 3.616808165 | F109: =SUM(F96:F107) -> 1094771.663 | H109: =SUM(H96:H107) -> 308739 | I109: =IF(H109<>0,J109/H109,0) -> 0.7735998345 | J109: =SUM(J96:J107) -> 238840.4393 | L109: =SUM(L96:L107) -> 138679 | M109: =IF(L109<>0,N109/L109,0) -> 1.62 | N109: =SUM(N96:N107) -> 224659.98 | P109: =SUM(P96:P107) -> 463500.4193
N111: Transformer Allowance Credit (if applicable) | P111: ='15. RTSR - UTRs & Sub-Tx'!G95 -> 0
N113: Total including deduction for Transformer Allowance Credit | P113: =P109+P111 -> 463500.4193

Sheet 18. RTSR - Forecast Wholesale
B13: The purpose of this sheet is to calculate the expected billing when forecasted 2015 Uniform Transmission Rates are applied against historical 2013 transmission units.
B16: IESO | D16: Network | H16: Line Connection | L16: Transformation Connection | P16: Total Line
B18: Month | D18: Units Billed | E18: Rate | F18: Amount | H18: Units Billed | I18: Rate | J18: Amount | L18: Units Billed | M18: Rate | N18: Amount | P18: Amount
B20: January | D20: ='16. RTSR - Historical Wholesale'!D19 -> 18812 | E20: ='15. RTSR - UTRs & Sub-Tx'!I22 -> 3.82 | F20: =D20*E20 -> 71861.84 | H20: ='16. RTSR - Historical Wholesale'!H19 -> 19065 | I20: ='15. RTSR - UTRs & Sub-Tx'!I24 -> 0.82 | J20: =H20*I20 -> 15633.3 | L20: ='16. RTSR - Historical Wholesale'!L19 -> 0 | M20: ='15. RTSR - UTRs & Sub-Tx'!I26 -> 1.98 | N20: =L20*M20 -> 0 | P20: =J20+N20 -> 15633.3
B21: February | D21: ='16. RTSR - Historical Wholesale'!D20 -> 16349 | E21: =E20 -> 3.82 | F21: 62453.18 | H21: ='16. RTSR - Historical Wholesale'!H20 -> 17488 | I21: =I20 -> 0.82 | J21: 14340.16 | L21: ='16. RTSR - Historical Wholesale'!L20 -> 0 | M21: =M20 -> 1.98 | N21: 0 | P21: 14340.16
B22: March | D22: ='16. RTSR - Historical Wholesale'!D21 -> 13748 | E22: 3.82 | F22: 52517.36 | H22: ='16. RTSR - Historical Wholesale'!H21 -> 14000 | I22: 0.82 | J22: 11480 | L22: ='16. RTSR - Historical Wholesale'!L21 -> 0 | M22: 1.98 | N22: 0 | P22: 11480
B23: April | D23: ='16. RTSR - Historical Wholesale'!D22 -> 13092 | E23: 3.82 | F23: 50011.44 | H23: ='16. RTSR - Historical Wholesale'!H22 -> 13092 | I23: 0.82 | J23: 10735.44 | L23: ='16. RTSR - Historical Wholesale'!L22 -> 0 | M23: 1.98 | N23: 0 | P23: 10735.44
B24: May | D24: ='16. RTSR - Historical Wholesale'!D23 -> 11674 | E24: 3.82 | F24: 44594.68 | H24: ='16. RTSR - Historical Wholesale'!H23 -> 11796 | I24: 0.82 | J24: 9672.72 | L24: ='16. RTSR - Historical Wholesale'!L23 -> 0 | M24: 1.98 | N24: 0 | P24: 9672.72
B25: June | D25: ='16. RTSR - Historical Wholesale'!D24 -> 11540 | E25: 3.82 | F25: 44082.8 | H25: ='16. RTSR - Historical Wholesale'!H24 -> 12505 | I25: 0.82 | J25: 10254.1 | L25: ='16. RTSR - Historical Wholesale'!L24 -> 0 | M25: 1.98 | N25: 0 | P25: 10254.1
B26: July | D26: ='16. RTSR - Historical Wholesale'!D25 -> 12666 | E26: 3.82 | F26: 48384.12 | H26: ='16. RTSR - Historical Wholesale'!H25 -> 13671 | I26: 0.82 | J26: 11210.22 | L26: ='16. RTSR - Historical Wholesale'!L25 -> 0 | M26: 1.98 | N26: 0 | P26: 11210.22
B27: August | D27: ='16. RTSR - Historical Wholesale'!D26 -> 11810 | E27: 3.82 | F27: 45114.2 | H27: ='16. RTSR - Historical Wholesale'!H26 -> 12634 | I27: 0.82 | J27: 10359.88 | L27: ='16. RTSR - Historical Wholesale'!L26 -> 0 | M27: 1.98 | N27: 0 | P27: 10359.88
B28: September | D28: ='16. RTSR - Historical Wholesale'!D27 -> 10533 | E28: 3.82 | F28: 40236.06 | H28: ='16. RTSR - Historical Wholesale'!H27 -> 10951 | I28: 0.82 | J28: 8979.82 | L28: ='16. RTSR - Historical Wholesale'!L27 -> 0 | M28: 1.98 | N28: 0 | P28: 8979.82
B29: October | D29: ='16. RTSR - Historical Wholesale'!D28 -> 11198 | E29: 3.82 | F29: 42776.36 | H29: ='16. RTSR - Historical Wholesale'!H28 -> 11480 | I29: 0.82 | J29: 9413.6 | L29: ='16. RTSR - Historical Wholesale'!L28 -> 0 | M29: 1.98 | N29: 0 | P29: 9413.6
B30: November | D30: ='16. RTSR - Historical Wholesale'!D29 -> 14884 | E30: 3.82 | F30: 56856.88 | H30: ='16. RTSR - Historical Wholesale'!H29 -> 15298 | I30: 0.82 | J30: 12544.36 | L30: ='16. RTSR - Historical Wholesale'!L29 -> 0 | M30: 1.98 | N30: 0 | P30: 12544.36
B31: December | D31: ='16. RTSR - Historical Wholesale'!D30 -> 17705 | E31: 3.82 | F31: 67633.1 | H31: ='16. RTSR - Historical Wholesale'!H30 -> 18080 | I31: 0.82 | J31: 14825.6 | L31: ='16. RTSR - Historical Wholesale'!L30 -> 0 | M31: 1.98 | N31: 0 | P31: 14825.6
B33: Total | D33: =SUM(D20:D31) -> 164011 | E33: =IF(D33<>0,F33/D33,0) -> 3.82 | F33: =SUM(F20:F31) -> 626522.02 | H33: =SUM(H20:H31) -> 170060 | I33: =IF(H33<>0,J33/H33,0) -> 0.82 | J33: =SUM(J20:J31) -> 139449.2 | L33: =SUM(L20:L31) -> 0 | M33: =IF(L33<>0,N33/L33,0) -> 0 | N33: =SUM(N20:N31) -> 0 | P33: =SUM(P20:P31) -> 139449.2
B35: Hydro One | D35: Network | H35: Line Connection | L35: Transformation Connection | P35: Total Line
B37: Month | D37: Units Billed | E37: Rate | F37: Amount | H37: Units Billed | I37: Rate | J37: Amount | L37: Units Billed | M37: Rate | N37: Amount | P37: Amount
B39: January | D39: ='16. RTSR - Historical Wholesale'!D38 -> 13067 | E39: ='15. RTSR - UTRs & Sub-Tx'!I35+'15. RTSR - UTRs & Sub-Tx'!I79 -> 3.23 | F39: =D39*E39 -> 42206.41 | H39: ='16. RTSR - Historical Wholesale'!H38 -> 13067 | I39: ='15. RTSR - UTRs & Sub-Tx'!I37+'15. RTSR - UTRs & Sub-Tx'!I81 -> 0.65 | J39: =H39*I39 -> 8493.55 | L39: ='16. RTSR - Historical Wholesale'!L38 -> 13067 | M39: ='15. RTSR - UTRs & Sub-Tx'!I39 -> 1.62 | N39: =L39*M39 -> 21168.54 | P39: =J39+N39 -> 29662.09
B40: February | D40: ='16. RTSR - Historical Wholesale'!D39 -> 12110 | E40: =E39 -> 3.23 | F40: 39115.3 | H40: ='16. RTSR - Historical Wholesale'!H39 -> 12110 | I40: =I39 -> 0.65 | J40: 7871.5 | L40: ='16. RTSR - Historical Wholesale'!L39 -> 12110 | M40: =M39 -> 1.62 | N40: 19618.2 | P40: 27489.7
B41: March | D41: ='16. RTSR - Historical Wholesale'!D40 -> 11449 | E41: 3.23 | F41: 36980.27 | H41: ='16. RTSR - Historical Wholesale'!H40 -> 11449 | I41: 0.65 | J41: 7441.85 | L41: ='16. RTSR - Historical Wholesale'!L40 -> 11449 | M41: 1.62 | N41: 18547.38 | P41: 25989.23
B42: April | D42: ='16. RTSR - Historical Wholesale'!D41 -> 11129 | E42: 3.23 | F42: 35946.67 | H42: ='16. RTSR - Historical Wholesale'!H41 -> 11129 | I42: 0.65 | J42: 7233.85 | L42: ='16. RTSR - Historical Wholesale'!L41 -> 11129 | M42: 1.62 | N42: 18028.98 | P42: 25262.83
B43: May | D43: ='16. RTSR - Historical Wholesale'!D42 -> 11385 | E43: 3.23 | F43: 36773.55 | H43: ='16. RTSR - Historical Wholesale'!H42 -> 11385 | I43: 0.65 | J43: 7400.25 | L43: ='16. RTSR - Historical Wholesale'!L42 -> 11385 | M43: 1.62 | N43: 18443.7 | P43: 25843.95
B44: June | D44: ='16. RTSR - Historical Wholesale'!D43 -> 11241 | E44: 3.23 | F44: 36308.43 | H44: ='16. RTSR - Historical Wholesale'!H43 -> 11241 | I44: 0.65 | J44: 7306.65 | L44: ='16. RTSR - Historical Wholesale'!L43 -> 11241 | M44: 1.62 | N44: 18210.42 | P44: 25517.07
B45: July | D45: ='16. RTSR - Historical Wholesale'!D44 -> 12320 | E45: 3.23 | F45: 39793.6 | H45: ='16. RTSR - Historical Wholesale'!H44 -> 12320 | I45: 0.65 | J45: 8008 | L45: ='16. RTSR - Historical Wholesale'!L44 -> 12320 | M45: 1.62 | N45: 19958.4 | P45: 27966.4
B46: August | D46: ='16. RTSR - Historical Wholesale'!D45 -> 12106 | E46: 3.23 | F46: 39102.38 | H46: ='16. RTSR - Historical Wholesale'!H45 -> 12106 | I46: 0.65 | J46: 7868.9 | L46: ='16. RTSR - Historical Wholesale'!L45 -> 12106 | M46: 1.62 | N46: 19611.72 | P46: 27480.62
B47: September | D47: ='16. RTSR - Historical Wholesale'!D46 -> 11305 | E47: 3.23 | F47: 36515.15 | H47: ='16. RTSR - Historical Wholesale'!H46 -> 11305 | I47: 0.65 | J47: 7348.25 | L47: ='16. RTSR - Historical Wholesale'!L46 -> 11305 | M47: 1.62 | N47: 18314.1 | P47: 25662.35
B48: October | D48: ='16. RTSR - Historical Wholesale'!D47 -> 10364 | E48: 3.23 | F48: 33475.72 | H48: ='16. RTSR - Historical Wholesale'!H47 -> 10364 | I48: 0.65 | J48: 6736.6 | L48: ='16. RTSR - Historical Wholesale'!L47 -> 10364 | M48: 1.62 | N48: 16789.68 | P48: 23526.28
B49: November | D49: ='16. RTSR - Historical Wholesale'!D48 -> 11004 | E49: 3.23 | F49: 35542.92 | H49: ='16. RTSR - Historical Wholesale'!H48 -> 11004 | I49: 0.65 | J49: 7152.6 | L49: ='16. RTSR - Historical Wholesale'!L48 -> 11004 | M49: 1.62 | N49: 17826.48 | P49: 24979.08
B50: December | D50: ='16. RTSR - Historical Wholesale'!D49 -> 11199 | E50: 3.23 | F50: 36172.77 | H50: ='16. RTSR - Historical Wholesale'!H49 -> 11199 | I50: 0.65 | J50: 7279.35 | L50: ='16. RTSR - Historical Wholesale'!L49 -> 11199 | M50: 1.62 | N50: 18142.38 | P50: 25421.73
B52: Total | D52: =SUM(D39:D50) -> 138679 | E52: =IF(D52<>0,F52/D52,0) -> 3.23 | F52: =SUM(F39:F50) -> 447933.17 | H52: =SUM(H39:H50) -> 138679 | I52: =IF(H52<>0,J52/H52,0) -> 0.65 | J52: =SUM(J39:J50) -> 90141.35 | L52: =SUM(L39:L50) -> 138679 | M52: =IF(L52<>0,N52/L52,0) -> 1.62 | N52: =SUM(N39:N50) -> 224659.98 | P52: =SUM(P39:P50) -> 314801.33
B54: ='16. RTSR - Historical Wholesale'!B53 -> Add Extra Host Here (I) | D54: Network | H54: Line Connection | L54: Transformation Connection | P54: Total Line
B56: Month | D56: Units Billed | E56: Rate | F56: Amount | H56: Units Billed | I56: Rate | J56: Amount | L56: Units Billed | M56: Rate | N56: Amount | P56: Amount
B58: January | D58: ='16. RTSR - Historical Wholesale'!D57 -> 0 | E58: ='15. RTSR - UTRs & Sub-Tx'!I50 -> 0 | F58: =D58*E58 -> 0 | H58: ='16. RTSR - Historical Wholesale'!H57 -> 0 | I58: ='15. RTSR - UTRs & Sub-Tx'!I52 -> 0 | J58: =H58*I58 -> 0 | L58: ='16. RTSR - Historical Wholesale'!L57 -> 0 | M58: ='15. RTSR - UTRs & Sub-Tx'!I54 -> 0 | N58: =L58*M58 -> 0 | P58: =J58+N58 -> 0
B59: February | D59: ='16. RTSR - Historical Wholesale'!D58 -> 0 | E59: =E58 -> 0 | F59: 0 | H59: ='16. RTSR - Historical Wholesale'!H58 -> 0 | I59: =I58 -> 0 | J59: 0 | L59: ='16. RTSR - Historical Wholesale'!L58 -> 0 | M59: =M58 -> 0 | N59: 0 | P59: 0
B60: March | D60: ='16. RTSR - Historical Wholesale'!D59 -> 0 | E60: 0 | F60: 0 | H60: ='16. RTSR - Historical Wholesale'!H59 -> 0 | I60: 0 | J60: 0 | L60: ='16. RTSR - Historical Wholesale'!L59 -> 0 | M60: 0 | N60: 0 | P60: 0
B61: April | D61: ='16. RTSR - Historical Wholesale'!D60 -> 0 | E61: 0 | F61: 0 | H61: ='16. RTSR - Historical Wholesale'!H60 -> 0 | I61: 0 | J61: 0 | L61: ='16. RTSR - Historical Wholesale'!L60 -> 0 | M61: 0 | N61: 0 | P61: 0
B62: May | D62: ='16. RTSR - Historical Wholesale'!D61 -> 0 | E62: 0 | F62: 0 | H62: ='16. RTSR - Historical Wholesale'!H61 -> 0 | I62: 0 | J62: 0 | L62: ='16. RTSR - Historical Wholesale'!L61 -> 0 | M62: 0 | N62: 0 | P62: 0
B63: June | D63: ='16. RTSR - Historical Wholesale'!D62 -> 0 | E63: 0 | F63: 0 | H63: ='16. RTSR - Historical Wholesale'!H62 -> 0 | I63: 0 | J63: 0 | L63: ='16. RTSR - Historical Wholesale'!L62 -> 0 | M63: 0 | N63: 0 | P63: 0
B64: July | D64: ='16. RTSR - Historical Wholesale'!D63 -> 0 | E64: 0 | F64: 0 | H64: ='16. RTSR - Historical Wholesale'!H63 -> 0 | I64: 0 | J64: 0 | L64: ='16. RTSR - Historical Wholesale'!L63 -> 0 | M64: 0 | N64: 0 | P64: 0
B65: August | D65: ='16. RTSR - Historical Wholesale'!D64 -> 0 | E65: 0 | F65: 0 | H65: ='16. RTSR - Historical Wholesale'!H64 -> 0 | I65: 0 | J65: 0 | L65: ='16. RTSR - Historical Wholesale'!L64 -> 0 | M65: 0 | N65: 0 | P65: 0
B66: September | D66: ='16. RTSR - Historical Wholesale'!D65 -> 0 | E66: 0 | F66: 0 | H66: ='16. RTSR - Historical Wholesale'!H65 -> 0 | I66: 0 | J66: 0 | L66: ='16. RTSR - Historical Wholesale'!L65 -> 0 | M66: 0 | N66: 0 | P66: 0
B67: October | D67: ='16. RTSR - Historical Wholesale'!D66 -> 0 | E67: 0 | F67: 0 | H67: ='16. RTSR - Historical Wholesale'!H66 -> 0 | I67: 0 | J67: 0 | L67: ='16. RTSR - Historical Wholesale'!L66 -> 0 | M67: 0 | N67: 0 | P67: 0
B68: November | D68: ='16. RTSR - Historical Wholesale'!D67 -> 0 | E68: 0 | F68: 0 | H68: ='16. RTSR - Historical Wholesale'!H67 -> 0 | I68: 0 | J68: 0 | L68: ='16. RTSR - Historical Wholesale'!L67 -> 0 | M68: 0 | N68: 0 | P68: 0
B69: December | D69: ='16. RTSR - Historical Wholesale'!D68 -> 0 | E69: 0 | F69: 0 | H69: ='16. RTSR - Historical Wholesale'!H68 -> 0 | I69: 0 | J69: 0 | L69: ='16. RTSR - Historical Wholesale'!L68 -> 0 | M69: 0 | N69: 0 | P69: 0
B71: Total | D71: =SUM(D58:D69) -> 0 | E71: =IF(D71<>0,F71/D71,0) -> 0 | F71: =SUM(F58:F69) -> 0 | H71: =SUM(H58:H69) -> 0 | I71: =IF(H71<>0,J71/H71,0) -> 0 | J71: =SUM(J58:J69) -> 0 | L71: =SUM(L58:L69) -> 0 | M71: =IF(L71<>0,N71/L71,0) -> 0 | N71: =SUM(N58:N69) -> 0 | P71: =SUM(P58:P69) -> 0
B73: ='16. RTSR - Historical Wholesale'!B72 -> Add Extra Host Here (II) | D73: Network | H73: Line Connection | L73: Transformation Connection | P73: Total Line
B75: Month | D75: Units Billed | E75: Rate | F75: Amount | H75: Units Billed | I75: Rate | J75: Amount | L75: Units Billed | M75: Rate | N75: Amount | P75: Amount
B77: January | D77: ='16. RTSR - Historical Wholesale'!D76 -> 0 | E77: ='15. RTSR - UTRs & Sub-Tx'!I65 -> 0 | F77: =D77*E77 -> 0 | H77: ='16. RTSR - Historical Wholesale'!H76 -> 0 | I77: ='15. RTSR - UTRs & Sub-Tx'!I67 -> 0 | J77: =H77*I77 -> 0 | L77: ='16. RTSR - Historical Wholesale'!L76 -> 0 | M77: ='15. RTSR - UTRs & Sub-Tx'!I69 -> 0 | N77: =L77*M77 -> 0 | P77: =J77+N77 -> 0
B78: February | D78: ='16. RTSR - Historical Wholesale'!D77 -> 0 | E78: =E77 -> 0 | F78: 0 | H78: ='16. RTSR - Historical Wholesale'!H77 -> 0 | I78: =I77 -> 0 | J78: 0 | L78: ='16. RTSR - Historical Wholesale'!L77 -> 0 | M78: =M77 -> 0 | N78: 0 | P78: 0
B79: March | D79: ='16. RTSR - Historical Wholesale'!D78 -> 0 | E79: 0 | F79: 0 | H79: ='16. RTSR - Historical Wholesale'!H78 -> 0 | I79: 0 | J79: 0 | L79: ='16. RTSR - Historical Wholesale'!L78 -> 0 | M79: 0 | N79: 0 | P79: 0
B80: April | D80: ='16. RTSR - Historical Wholesale'!D79 -> 0 | E80: 0 | F80: 0 | H80: ='16. RTSR - Historical Wholesale'!H79 -> 0 | I80: 0 | J80: 0 | L80: ='16. RTSR - Historical Wholesale'!L79 -> 0 | M80: 0 | N80: 0 | P80: 0
B81: May | D81: ='16. RTSR - Historical Wholesale'!D80 -> 0 | E81: 0 | F81: 0 | H81: ='16. RTSR - Historical Wholesale'!H80 -> 0 | I81: 0 | J81: 0 | L81: ='16. RTSR - Historical Wholesale'!L80 -> 0 | M81: 0 | N81: 0 | P81: 0
B82: June | D82: ='16. RTSR - Historical Wholesale'!D81 -> 0 | E82: 0 | F82: 0 | H82: ='16. RTSR - Historical Wholesale'!H81 -> 0 | I82: 0 | J82: 0 | L82: ='16. RTSR - Historical Wholesale'!L81 -> 0 | M82: 0 | N82: 0 | P82: 0
B83: July | D83: ='16. RTSR - Historical Wholesale'!D82 -> 0 | E83: 0 | F83: 0 | H83: ='16. RTSR - Historical Wholesale'!H82 -> 0 | I83: 0 | J83: 0 | L83: ='16. RTSR - Historical Wholesale'!L82 -> 0 | M83: 0 | N83: 0 | P83: 0
B84: August | D84: ='16. RTSR - Historical Wholesale'!D83 -> 0 | E84: 0 | F84: 0 | H84: ='16. RTSR - Historical Wholesale'!H83 -> 0 | I84: 0 | J84: 0 | L84: ='16. RTSR - Historical Wholesale'!L83 -> 0 | M84: 0 | N84: 0 | P84: 0
B85: September | D85: ='16. RTSR - Historical Wholesale'!D84 -> 0 | E85: 0 | F85: 0 | H85: ='16. RTSR - Historical Wholesale'!H84 -> 0 | I85: 0 | J85: 0 | L85: ='16. RTSR - Historical Wholesale'!L84 -> 0 | M85: 0 | N85: 0 | P85: 0
B86: October | D86: ='16. RTSR - Historical Wholesale'!D85 -> 0 | E86: 0 | F86: 0 | H86: ='16. RTSR - Historical Wholesale'!H85 -> 0 | I86: 0 | J86: 0 | L86: ='16. RTSR - Historical Wholesale'!L85 -> 0 | M86: 0 | N86: 0 | P86: 0
B87: November | D87: ='16. RTSR - Historical Wholesale'!D86 -> 0 | E87: 0 | F87: 0 | H87: ='16. RTSR - Historical Wholesale'!H86 -> 0 | I87: 0 | J87: 0 | L87: ='16. RTSR - Historical Wholesale'!L86 -> 0 | M87: 0 | N87: 0 | P87: 0
B88: December | D88: ='16. RTSR - Historical Wholesale'!D87 -> 0 | E88: 0 | F88: 0 | H88: ='16. RTSR - Historical Wholesale'!H87 -> 0 | I88: 0 | J88: 0 | L88: ='16. RTSR - Historical Wholesale'!L87 -> 0 | M88: 0 | N88: 0 | P88: 0
B90: Total | D90: =SUM(D77:D88) -> 0 | E90: =IF(D90<>0,F90/D90,0) -> 0 | F90: =SUM(F77:F88) -> 0 | H90: =SUM(H77:H88) -> 0 | I90: =IF(H90<>0,J90/H90,0) -> 0 | J90: =SUM(J77:J88) -> 0 | L90: =SUM(L77:L88) -> 0 | M90: =IF(L90<>0,N90/L90,0) -> 0 | N90: =SUM(N77:N88) -> 0 | P90: =SUM(P77:P88) -> 0
B92: Total | D92: Network | H92: Line Connection | L92: Transformation Connection | P92: Total Line
B94: Month | D94: Units Billed | E94: Rate | F94: Amount | H94: Units Billed | I94: Rate | J94: Amount | L94: Units Billed | M94: Rate | N94: Amount | P94: Amount
B96: January | D96: =D20+D39 -> 31879 | E96: =IF(D96<>0,F96/D96,0) -> 3.57816274 | F96: =F20+F39 -> 114068.25 | H96: =H20+H39 -> 32132 | I96: =IF(H96<>0,J96/H96,0) -> 0.7508667372 | J96: =J20+J39 -> 24126.85 | L96: =L20+L39 -> 13067 | M96: =IF(L96<>0,N96/L96,0) -> 1.62 | N96: =N20+N39 -> 21168.54 | P96: =J96+N96 -> 45295.39
B97: February | D97: 28459 | E97: 3.568940581 | F97: 101568.48 | H97: 29598 | I97: 0.7504446246 | J97: 22211.66 | L97: 12110 | M97: 1.62 | N97: 19618.2 | P97: 41829.86
B98: March | D98: 25197 | E98: 3.551916101 | F98: 89497.63 | H98: 25449 | I98: 0.7435203741 | J98: 18921.85 | L98: 11449 | M98: 1.62 | N98: 18547.38 | P98: 37469.23
B99: April | D99: 24221 | E99: 3.548908385 | F99: 85958.11 | H99: 24221 | I99: 0.7418888568 | J99: 17969.29 | L99: 11129 | M99: 1.62 | N99: 18028.98 | P99: 35998.27
B100: May | D100: 23059 | E100: 3.528697255 | F100: 81368.23 | H100: 23181 | I100: 0.7365070532 | J100: 17072.97 | L100: 11385 | M100: 1.62 | N100: 18443.7 | P100: 35516.67
B101: June | D101: 22781 | E101: 3.528871867 | F101: 80391.23 | H101: 23746 | I101: 0.7395245515 | J101: 17560.75 | L101: 11241 | M101: 1.62 | N101: 18210.42 | P101: 35771.17
B102: July | D102: 24986 | E102: 3.529085088 | F102: 88177.72 | H102: 25991 | I102: 0.7394182602 | J102: 19218.22 | L102: 12320 | M102: 1.62 | N102: 19958.4 | P102: 39176.62
B103: August | D103: 23916 | E103: 3.521348888 | F103: 84216.58 | H103: 24740 | I103: 0.7368140663 | J103: 18228.78 | L103: 12106 | M103: 1.62 | N103: 19611.72 | P103: 37840.5
B104: September | D104: 21838 | E104: 3.514571389 | F104: 76751.21 | H104: 22256 | I104: 0.733648005 | J104: 16328.07 | L104: 11305 | M104: 1.62 | N104: 18314.1 | P104: 34642.17
B105: October | D105: 21562 | E105: 3.536410352 | F105: 76252.08 | H105: 21844 | I105: 0.7393426112 | J105: 16150.2 | L105: 10364 | M105: 1.62 | N105: 16789.68 | P105: 32939.88
B106: November | D106: 25888 | E106: 3.569213535 | F106: 92399.8 | H106: 26302 | I106: 0.7488768915 | J106: 19696.96 | L106: 11004 | M106: 1.62 | N106: 17826.48 | P106: 37523.44
B107: December | D107: 28904 | E107: 3.591401536 | F107: 103805.87 | H107: 29279 | I107: 0.7549762629 | J107: 22104.95 | L107: 11199 | M107: 1.62 | N107: 18142.38 | P107: 40247.33
B109: Total | D109: =SUM(D96:D107) -> 302690 | E109: =IF(D109<>0,F109/D109,0) -> 3.549688427 | F109: =SUM(F96:F107) -> 1074455.19 | H109: =SUM(H96:H107) -> 308739 | I109: =IF(H109<>0,J109/H109,0) -> 0.7436396115 | J109: =SUM(J96:J107) -> 229590.55 | L109: =SUM(L96:L107) -> 138679 | M109: =IF(L109<>0,N109/L109,0) -> 1.62 | N109: =SUM(N96:N107) -> 224659.98 | P109: =SUM(P96:P107) -> 454250.53
N111: Transformer Allowance Credit (if applicable) | P111: ='15. RTSR - UTRs & Sub-Tx'!I95 -> 0
N113: Total including deduction for Transformer Allowance Credit | P113: =P109+P111 -> 454250.53

Sheet 19. RTSR Ntwrk to Curren WS
A13: The purpose of this sheet is to re-align the current RTS Network Rates to recover current wholesale network costs.
A16: Rate Class | B16: Rate Description | C16: Unit | E16: Current RTSR-Network | G16: Loss Adjusted Billed kWh | I16: Loss Adjusted Billed kW | K16: Billed Amount | M16: Billed Amount % | O16: Current Wholesale Billing | Q16: Proposed RTSR Network
A19: RESIDENTIAL | B19: Retail Transmission Rate - Network Service Rate | C19: $/kWh | E19: 0.007 | G19: 54928248.69 | I19: 0 | K19: =IF(E19="", "", IF(C19="$/kWh", E19*G19, E19*I19)) -> 384497.7408 | M19: =IF(ISERROR(K19/SUM(K19:K100)),"",K19/SUM(K19:K100)) -> 0.3685022575 | O19: =IF(ISERROR('17. RTSR - Current Wholesale'!$F$109*M19), "", '17. RTSR - Current Wholesale'!$F$109*M19) -> 403425.8295 | Q19: =IF(C19="","",IF(C19="$/kWh",IF(G19<>0,O19/G19,),IF(I19<>0,O19/I19,0))) -> 0.007344596616
A20: GENERAL SERVICE LESS THAN 50 KW | B20: Retail Transmission Rate - Network Service Rate | C20: $/kWh | E20: 0.0064 | G20: 19977558.29 | I20: 0 | K20: 127856.3731 | M20: =IF(ISERROR(K20/SUM(K19:K100)),"",K20/SUM(K19:K100)) -> 0.1225374225 | O20: =IF(ISERROR('17. RTSR - Current Wholesale'!$F$109*M20), "", '17. RTSR - Current Wholesale'!$F$109*M20) -> 134150.4979 | Q20: 0.006715059764
A21: GENERAL SERVICE 50 TO 4,999 KW | B21: Retail Transmission Rate - Network Service Rate | C21: $/kW | E21: 2.6063 | G21: 0 | I21: 200066 | K21: 521432.0158 | M21: =IF(ISERROR(K21/SUM(K19:K100)),"",K21/SUM(K19:K100)) -> 0.4997399323 | O21: =IF(ISERROR('17. RTSR - Current Wholesale'!$F$109*M21), "", '17. RTSR - Current Wholesale'!$F$109*M21) -> 547101.117 | Q21: 2.734603166
A22: UNMETERED SCATTERED LOAD | B22: Retail Transmission Rate - Network Service Rate | C22: $/kWh | E22: 0.0064 | G22: 256138.9213 | I22: 0 | K22: 1639.289096 | M22: =IF(ISERROR(K22/SUM(K19:K100)),"",K22/SUM(K19:K100)) -> 0.001571093061 | O22: =IF(ISERROR('17. RTSR - Current Wholesale'!$F$109*M22), "", '17. RTSR - Current Wholesale'!$F$109*M22) -> 1719.988164 | Q22: 0.006715059764
A23: SENTINEL LIGHTING | B23: Retail Transmission Rate - Network Service Rate | C23: $/kW | E23: 1.9664 | G23: 0 | I23: 296 | K23: 582.0544 | M23: =IF(ISERROR(K23/SUM(K19:K100)),"",K23/SUM(K19:K100)) -> 0.0005578403658 | O23: =IF(ISERROR('17. RTSR - Current Wholesale'!$F$109*M23), "", '17. RTSR - Current Wholesale'!$F$109*M23) -> 610.7078253 | Q23: 2.063202112
A24: STREET LIGHTING | B24: Retail Transmission Rate - Network Service Rate | C24: $/kW | E24: 1.9658 | G24: 0 | I24: 3764 | K24: 7399.2712 | M24: =IF(ISERROR(K24/SUM(K19:K100)),"",K24/SUM(K19:K100)) -> 0.007091454258 | O24: =IF(ISERROR('17. RTSR - Current Wholesale'!$F$109*M24), "", '17. RTSR - Current Wholesale'!$F$109*M24) -> 7763.523174 | Q24: 2.062572576

Sheet 20. RTSR Adj Conn to Current WS
A13: The purpose of this sheet is to re-align the current RTS Connection Rates to recover current wholesale connection costs.
A16: Rate Class | B16: Rate Description | C16: Unit | E16: Current RTSR-Connection | G16: Loss Adjusted Billed kWh | I16: Loss Adjusted Billed kW | K16: Billed Amount | M16: Billed Amount % | O16: Current Wholesale Billing | Q16: Proposed RTSR Connection
A19: RESIDENTIAL | B19: Retail Transmission Rate - Line and Transformation Connection Service Rate | C19: $/kWh | E19: 0.0031 | G19: 54928248.69 | I19: 0 | K19: =IF(E19="", "", IF(C19="$/kWh", E19*G19, E19*I19)) -> 170277.5709 | M19: =IF(ISERROR(K19/SUM(K19:K100)),"",K19/SUM(K19:K100)) -> 0.3755947956 | O19: =IF(ISERROR('17. RTSR - Current Wholesale'!$P$113*M19), "", '17. RTSR - Current Wholesale'!$P$113*M19) -> 174088.3453 | Q19: =IF(C19="","",IF(C19="$/kWh",IF(G19<>0,O19/G19,),IF(I19<>0,O19/I19,0))) -> 0.003169377313
A20: GENERAL SERVICE LESS THAN 50 KW | B20: Retail Transmission Rate - Line and Transformation Connection Service Rate | C20: $/kWh | E20: 0.0027 | G20: 19977558.29 | I20: 0 | K20: 53939.40739 | M20: =IF(ISERROR(K20/SUM(K19:K100)),"",K20/SUM(K19:K100)) -> 0.1189784455 | O20: =IF(ISERROR('17. RTSR - Current Wholesale'!$P$113*M20), "", '17. RTSR - Current Wholesale'!$P$113*M20) -> 55146.55938 | Q20: 0.002760425402
A21: GENERAL SERVICE 50 TO 4,999 KW | B21: Retail Transmission Rate - Line and Transformation Connection Service Rate | C21: $/kW | E21: 1.1229 | G21: 0 | I21: 200066 | K21: 224654.1114 | M21: =IF(ISERROR(K21/SUM(K19:K100)),"",K21/SUM(K19:K100)) -> 0.4955374603 | O21: =IF(ISERROR('17. RTSR - Current Wholesale'!$P$113*M21), "", '17. RTSR - Current Wholesale'!$P$113*M21) -> 229681.8206 | Q21: 1.148030253
A22: UNMETERED SCATTERED LOAD | B22: Retail Transmission Rate - Line and Transformation Connection Service Rate | C22: $/kWh | E22: 0.0027 | G22: 256138.9213 | I22: 0 | K22: 691.5750875 | M22: =IF(ISERROR(K22/SUM(K19:K100)),"",K22/SUM(K19:K100)) -> 0.001525462233 | O22: =IF(ISERROR('17. RTSR - Current Wholesale'!$P$113*M22), "", '17. RTSR - Current Wholesale'!$P$113*M22) -> 707.0523847 | Q22: 0.002760425402
A23: SENTINEL LIGHTING | B23: Retail Transmission Rate - Line and Transformation Connection Service Rate | C23: $/kW | E23: 1.7724 | G23: 0 | I23: 296 | K23: 524.6304 | M23: =IF(ISERROR(K23/SUM(K19:K100)),"",K23/SUM(K19:K100)) -> 0.001157219044 | O23: =IF(ISERROR('17. RTSR - Current Wholesale'!$P$113*M23), "", '17. RTSR - Current Wholesale'!$P$113*M23) -> 536.3715121 | Q23: 1.812065919
A24: STREET LIGHTING | B24: Retail Transmission Rate - Line and Transformation Connection Service Rate | C24: $/kW | E24: 0.868 | G24: 0 | I24: 3764 | K24: 3267.152 | M24: =IF(ISERROR(K24/SUM(K19:K100)),"",K24/SUM(K19:K100)) -> 0.007206617295 | O24: =IF(ISERROR('17. RTSR - Current Wholesale'!$P$113*M24), "", '17. RTSR - Current Wholesale'!$P$113*M24) -> 3340.270138 | Q24: 0.8874256477

Sheet 21. RTSR Adj Ntwk to Forcast WS
A13: The purpose of this sheet is to update the re-align RTS Network Rates to recover forecast wholesale network costs.
A16: Rate Class | B16: Rate Description | C16: Unit | E16: Adjusted RTSR-Network | G16: Loss Adjusted Billed kWh | I16: Loss Adjusted Billed kW | K16: Billed Amount | M16: Billed Amount % | O16: Forecast Wholesale Billing | Q16: Proposed RTSR Network
A19: RESIDENTIAL | B19: Retail Transmission Rate - Network Service Rate | C19: $/kWh | E19: 0.007344596616 | G19: 54928248.69 | I19: 0 | K19: =IF(E19="", "", IF(C19="$/kWh", E19*G19, E19*I19)) -> 403425.8295 | M19: =IF(ISERROR(K19/SUM(K19:K100)),"",K19/SUM(K19:K100)) -> 0.3685022575 | O19: =IF(ISERROR('18. RTSR - Forecast Wholesale'!$F$109*M19), "", '18. RTSR - Forecast Wholesale'!$F$109*M19) -> 395939.1631 | Q19: =IF(C19="","",IF(C19="$/kWh",IF(G19<>0,O19/G19,),IF(I19<>0,O19/I19,0))) -> 0.007208297599
A20: GENERAL SERVICE LESS THAN 50 KW | B20: Retail Transmission Rate - Network Service Rate | C20: $/kWh | E20: 0.006715059764 | G20: 19977558.29 | I20: 0 | K20: 134150.4979 | M20: =IF(ISERROR(K20/SUM(K19:K100)),"",K20/SUM(K19:K100)) -> 0.1225374225 | O20: =IF(ISERROR('18. RTSR - Forecast Wholesale'!$F$109*M20), "", '18. RTSR - Forecast Wholesale'!$F$109*M20) -> 131660.9696 | Q20: 0.006590443519
A21: GENERAL SERVICE 50 TO 4,999 KW | B21: Retail Transmission Rate - Network Service Rate | C21: $/kW | E21: 2.734603166 | G21: 0 | I21: 200066 | K21: 547101.117 | M21: =IF(ISERROR(K21/SUM(K19:K100)),"",K21/SUM(K19:K100)) -> 0.4997399323 | O21: =IF(ISERROR('18. RTSR - Forecast Wholesale'!$F$109*M21), "", '18. RTSR - Forecast Wholesale'!$F$109*M21) -> 536948.1639 | Q21: 2.683855147
A22: UNMETERED SCATTERED LOAD | B22: Retail Transmission Rate - Network Service Rate | C22: $/kWh | E22: 0.006715059764 | G22: 256138.9213 | I22: 0 | K22: 1719.988164 | M22: =IF(ISERROR(K22/SUM(K19:K100)),"",K22/SUM(K19:K100)) -> 0.001571093061 | O22: =IF(ISERROR('18. RTSR - Forecast Wholesale'!$F$109*M22), "", '18. RTSR - Forecast Wholesale'!$F$109*M22) -> 1688.069094 | Q22: 0.006590443519
A23: SENTINEL LIGHTING | B23: Retail Transmission Rate - Network Service Rate | C23: $/kW | E23: 2.063202112 | G23: 0 | I23: 296 | K23: 610.7078253 | M23: =IF(ISERROR(K23/SUM(K19:K100)),"",K23/SUM(K19:K100)) -> 0.0005578403658 | O23: =IF(ISERROR('18. RTSR - Forecast Wholesale'!$F$109*M23), "", '18. RTSR - Forecast Wholesale'!$F$109*M23) -> 599.3744763 | Q23: 2.024913771
A24: STREET LIGHTING | B24: Retail Transmission Rate - Network Service Rate | C24: $/kW | E24: 2.062572576 | G24: 0 | I24: 3764 | K24: 7763.523174 | M24: =IF(ISERROR(K24/SUM(K19:K100)),"",K24/SUM(K19:K100)) -> 0.007091454258 | O24: =IF(ISERROR('18. RTSR - Forecast Wholesale'!$F$109*M24), "", '18. RTSR - Forecast Wholesale'!$F$109*M24) -> 7619.449832 | Q24: 2.024295917

Sheet 22. RTSR Adj Conn. to Forcst WS
A13: The purpose of this sheet is to update the re-aligned RTS Connection Rates to recover forecast wholesale connection costs.
A16: Rate Class | B16: Rate Description | C16: Unit | E16: Adjusted RTSR-Connection | G16: Loss Adjusted Billed kWh | I16: Loss Adjusted Billed kW | K16: Billed Amount | M16: Billed Amount % | O16: Forecast Wholesale Billing | Q16: Proposed RTSR Connection
A19: RESIDENTIAL | B19: Retail Transmission Rate - Line and Transformation Connection Service Rate | C19: $/kWh | E19: 0.003169377313 | G19: 54928248.69 | I19: 0 | K19: =IF(E19="", "", IF(C19="$/kWh", E19*G19, E19*I19)) -> 174088.3453 | M19: =IF(ISERROR(K19/SUM(K19:K100)),"",K19/SUM(K19:K100)) -> 0.3755947956 | O19: =IF(ISERROR('18. RTSR - Forecast Wholesale'!$P$113*M19), "", '18. RTSR - Forecast Wholesale'!$P$113*M19) -> 170614.135 | Q19: =IF(C19="","",IF(C19="$/kWh",IF(G19<>0,O19/G19,),IF(I19<>0,O19/I19,0))) -> 0.00310612734
A20: GENERAL SERVICE LESS THAN 50 KW | B20: Retail Transmission Rate - Line and Transformation Connection Service Rate | C20: $/kWh | E20: 0.002760425402 | G20: 19977558.29 | I20: 0 | K20: 55146.55938 | M20: =IF(ISERROR(K20/SUM(K19:K100)),"",K20/SUM(K19:K100)) -> 0.1189784455 | O20: =IF(ISERROR('18. RTSR - Forecast Wholesale'!$P$113*M20), "", '18. RTSR - Forecast Wholesale'!$P$113*M20) -> 54046.02193 | Q20: 0.002705336715
A21: GENERAL SERVICE 50 TO 4,999 KW | B21: Retail Transmission Rate - Line and Transformation Connection Service Rate | C21: $/kW | E21: 1.148030253 | G21: 0 | I21: 200066 | K21: 229681.8206 | M21: =IF(ISERROR(K21/SUM(K19:K100)),"",K21/SUM(K19:K100)) -> 0.4955374603 | O21: =IF(ISERROR('18. RTSR - Forecast Wholesale'!$P$113*M21), "", '18. RTSR - Forecast Wholesale'!$P$113*M21) -> 225098.154 | Q21: 1.125119481
A22: UNMETERED SCATTERED LOAD | B22: Retail Transmission Rate - Line and Transformation Connection Service Rate | C22: $/kWh | E22: 0.002760425402 | G22: 256138.9213 | I22: 0 | K22: 707.0523847 | M22: =IF(ISERROR(K22/SUM(K19:K100)),"",K22/SUM(K19:K100)) -> 0.001525462233 | O22: =IF(ISERROR('18. RTSR - Forecast Wholesale'!$P$113*M22), "", '18. RTSR - Forecast Wholesale'!$P$113*M22) -> 692.942028 | Q22: 0.002705336715
A23: SENTINEL LIGHTING | B23: Retail Transmission Rate - Line and Transformation Connection Service Rate | C23: $/kW | E23: 1.812065919 | G23: 0 | I23: 296 | K23: 536.3715121 | M23: =IF(ISERROR(K23/SUM(K19:K100)),"",K23/SUM(K19:K100)) -> 0.001157219044 | O23: =IF(ISERROR('18. RTSR - Forecast Wholesale'!$P$113*M23), "", '18. RTSR - Forecast Wholesale'!$P$113*M23) -> 525.6673641 | Q23: 1.775903257
A24: STREET LIGHTING | B24: Retail Transmission Rate - Line and Transformation Connection Service Rate | C24: $/kW | E24: 0.8874256477 | G24: 0 | I24: 3764 | K24: 3340.270138 | M24: =IF(ISERROR(K24/SUM(K19:K100)),"",K24/SUM(K19:K100)) -> 0.007206617295 | O24: =IF(ISERROR('18. RTSR - Forecast Wholesale'!$P$113*M24), "", '18. RTSR - Forecast Wholesale'!$P$113*M24) -> 3273.609726 | Q24: 0.8697156551

Sheet 23. RTSR Final 2015 RTS Rates
A13: This sheet lists proposed RTSRs for all classes. No input required.
A16: Rate Class | B16: Rate Description | C16: Unit | E16: Proposed Retail Transmission Rate
A19: RESIDENTIAL | B19: Retail Transmission Rate - Network Service Rate | C19: $/kWh | E19: 0.007208297599
A20: RESIDENTIAL | B20: Retail Transmission Rate - Line and Transformation Connection Service Rate | C20: $/kWh | E20: 0.00310612734
A21: GENERAL SERVICE LESS THAN 50 KW | B21: Retail Transmission Rate - Network Service Rate | C21: $/kWh | E21: 0.006590443519
A22: GENERAL SERVICE LESS THAN 50 KW | B22: Retail Transmission Rate - Line and Transformation Connection Service Rate | C22: $/kWh | E22: 0.002705336715
A23: GENERAL SERVICE 50 TO 4,999 KW | B23: Retail Transmission Rate - Network Service Rate | C23: $/kW | E23: 2.683855147
A24: GENERAL SERVICE 50 TO 4,999 KW | B24: Retail Transmission Rate - Line and Transformation Connection Service Rate | C24: $/kW | E24: 1.125119481
A25: UNMETERED SCATTERED LOAD | B25: Retail Transmission Rate - Network Service Rate | C25: $/kWh | E25: 0.006590443519
A26: UNMETERED SCATTERED LOAD | B26: Retail Transmission Rate - Line and Transformation Connection Service Rate | C26: $/kWh | E26: 0.002705336715
A27: SENTINEL LIGHTING | B27: Retail Transmission Rate - Network Service Rate | C27: $/kW | E27: 2.024913771
A28: SENTINEL LIGHTING | B28: Retail Transmission Rate - Line and Transformation Connection Service Rate | C28: $/kW | E28: 1.775903257
A29: STREET LIGHTING | B29: Retail Transmission Rate - Network Service Rate | C29: $/kW | E29: 2.024295917
A30: STREET LIGHTING | B30: Retail Transmission Rate - Line and Transformation Connection Service Rate | C30: $/kW | E30: 0.8697156551

Sheet 24. Rev2Cost_GDPIPI
Y1: FALSE | Z1: 0 | AC1: NO
Y2: TRUE
A12: If applicable, please enter any adjustments related to the revenue to cost ratio model into columns C and E. The Price Escalator and Stretch Factor have been set at the 2014 values and will be updated by Board staff at a later date.
A15: Price Escalator | B15: 0.016 | C15: Choose Stretch Factor Group | E15: I
A16: Productivity Factor | B16: 0 | C16: Associated Stretch Factor Value | E16: =IF(E15="I", 0%, IF(E15="II", 0.15%, IF(E15="III", 0.3%, IF(E15="IV", 0.45%, 0.6%)))) -> 0
A17: Price Cap Index | B17: =B15-B16-E16 -> 0.016
B19: Current MFC | C19: MFC Adjustment from R/C Model | D19: Current Volumetric Charge | E19: DVR Adjustment from R/C Model | F19: Price Cap Index to be Applied to MFC and DVR | G19: Proposed MFC | H19: Proposed Volumetric Charge
A20: Rate Class
A22: RESIDENTIAL | B22: 7.06 | D22: 0.0096 | F22: =$B$17 -> 0.016 | G22: =ROUND(SUM(B22,C22)*(1+F22),2) -> 7.17 | H22: =ROUND(SUM(D22,E22)*(1+F22),4) -> 0.0098
A23: GENERAL SERVICE LESS THAN 50 KW | B23: 14.91 | D23: 0.0059 | F23: 0.016 | G23: 15.15 | H23: 0.006
A24: GENERAL SERVICE 50 TO 4,999 KW | B24: 97.35 | D24: 1.9733 | F24: 0.016 | G24: 98.91 | H24: 2.0049
A25: UNMETERED SCATTERED LOAD | B25: 6.39 | D25: 0.0037 | F25: 0.016 | G25: 6.49 | H25: 0.0038
A26: SENTINEL LIGHTING | B26: 1.6 | D26: 3.1754 | F26: 0.016 | G26: 1.63 | H26: 3.2262
A27: STREET LIGHTING | B27: 0.53 | D27: 5.7504 | F27: 0.016 | G27: 0.54 | H27: 5.8424
A28: microFIT | B28: 5.4 | G28: 5.4

Sheet 24. hidden (hidden)
A1: Rate Class | B1: MFC Adjustment from R/C Model | C1: DVR Adjustment from R/C Model
A2: RESIDENTIAL | B2: 7.06 | D2: 0.0096
A3: GENERAL SERVICE LESS THAN 50 KW | B3: 14.91 | D3: 0.0059
A4: GENERAL SERVICE 50 TO 4,999 KW | B4: 97.35 | D4: 1.9733
A5: UNMETERED SCATTERED LOAD | B5: 6.39 | D5: 0.0037
A6: SENTINEL LIGHTING | B6: 1.6 | D6: 3.1754
A7: STREET LIGHTING | B7: 0.53 | D7: 5.7504
A8: microFIT | B8: 5.4

Sheet 25. Other Charges & LF
A11: Please enter the following charges as found on your most recent Board-Approved Tariff Schedule. The standard Allowance rates have been included as default entries. If you have different rates, please make the appropriate corrections in the applicable cells below. As well, please enter the current Specific Service Charges below. The standard Retail Service Charges have been entered below. If you have different rates, please make the appropriate corrections in columns A, C or D as applicable (cells are unlocked).
C13: UNIT | D13: RATE
A15: ALLOWANCES
A17: Transformer Allowance for Ownership - per kW of billing demand/month | C17: $/kW | D17: -0.6
A20: Primary Metering Allowance for transformer losses – applied to measured demand and energy | C20: $ | D20: 1
A22: SPECIFIC SERVICE CHARGES
A24: APPLICATION
A26: The application of these rates and charges shall be in accordance with the Licence of the Distributor and any Code or Order of the Board, and amendments thereto as approved by the Board, which may be applicable to the administration of this schedule.
A27: No charges to meet the costs of any work or service done or furnished for the purpose of the distribution of electricity shall be made except as permitted by this schedule, unless required by the Distributor’s Licence or a Code or Order of the Board, and amendments thereto as approved by the Board, or as specified herein.
A28: It should be noted that this schedule does not list any charges, assessments or credits that are required by law to be invoiced by a distributor and that are not subject to Board approval, such as the Debt Retirement Charge, the Global Adjustment, the Ontario Clean Energy Benefit and the HST.
A30: Customer Administration
A31: Arrears certificate | C31: $ | D31: 15
A32: Statement of Account | C32: $ | D32: 15
A33: Duplicate Invoices for previous billing | C33: $ | D33: 15
A34: Credit Reference/credit check (plus credit agency costs) | C34: $ | D34: 15
A35: Returned cheque charge (plus bank charges) | C35: $ | D35: 20
A36: Account set up charge/change of occupancy charge (plus credit agency costs if applicable) | C36: $ | D36: 40
A37: Meter dispute charge plus Measurement Canada fees (if meter found correct) | C37: $ | D37: 30
A67: Non-Payment of Account
A68: Late Payment – per month | C68: % | D68: 1.5
A69: Late Payment – per annum | C69: % | D69: 19.56
A70: Collection of account charge – no disconnection | C70: $ | D70: 15
A71: Disconnect/Reconnect at meter – during regular hours | C71: $ | D71: 30
A72: Disconnect/Reconnect at meter – after regular hours | C72: $ | D72: 165
A73: Disconnect/Reconnect at pole – during regular hours | C73: $ | D73: 100
A74: Disconnect/Reconnect at pole – after regular hours | C74: $ | D74: 300
A75: Install/Remove load control device – during regular hours | C75: $ | D75: 30
A76: Install/Remove load control device – after regular hours | C76: $ | D76: 165
A77: Service call – after regular hours | C77: $ | D77: 165
A78: Temporary Service – Install & remove – overhead – no transformer | C78: $ | D78: 500
A79: Temporary Service – Install & remove – overhead – with transformer | C79: $ | D79: 1000
A80: Specific Charge for Access to the Power Poles - $/pole/year | C80: $ | D80: 22.35
A116: RETAIL SERVICE CHARGES (if applicable)
A118: The application of these rates and charges shall be in accordance with the Licence of the Distributor and any Code or Order of the Board, and amendments thereto as approved by the Board, which may be applicable to the administration of this schedule.
A120: No rates and charges for the distribution of electricity and charges to meet the costs of any work or service done or furnished for the purpose of the distribution of electricity shall be made except as permitted by this schedule, unless required by the Distributor’s Licence or a Code or Order of the Board, and amendments thereto as approved by the Board, or as specified herein.
A122: Unless specifically noted, this schedule does not contain any charges for the electricity commodity, be it under the Regulated Price Plan, a contract with a retailer or the wholesale market price, as applicable.
A124: It should be noted that this schedule does not list any charges, assessments, or credits that are required by law to be invoiced by a distributor and that are not subject to Board approval, such as the Debt Retirement Charge, the Global Adjustment, the Ontario Clean Energy Benefit and the HST.
A126: Retail Service Charges refer to services provided by a distributor to retailers or customers related to the supply of competitive electricity.
A128: One-time charge, per retailer, to establish the service agreement between the distributor and the retailer | C128: $ | D128: 100
A129: Monthly Fixed Charge, per retailer | C129: $ | D129: 20
A130: Monthly Variable Charge, per customer, per retailer | C130: $/cust. | D130: 0.5
A131: Distributor-consolidated billing monthly charge, per customer, per retailer | C131: $/cust. | D131: 0.3
A132: Retailer-consolidated billing monthly credit, per customer, per retailer | C132: $/cust. | D132: -0.3
A133: Service Transaction Requests (STR)
A134: Request fee, per request, applied to the requesting party | C134: $ | D134: 0.25
A135: Processing fee, per request, applied to the requesting party | C135: $ | D135: 0.5
A136: Request for customer information as outlined in Section 10.6.3 and Chapter 11 of the Retail
A137: Settlement Code directly to retailers and customers, if not delivered electronically through the
A138: Electronic Business Transaction (EBT) system, applied to the requesting party
A139: Up to twice a year | C139: $ | D139: no charge
A140: More than twice a year, per request (plus incremental delivery costs) | C140: $ | D140: 2
A143: LOSS FACTORS
A145: If the distributor is not capable of prorating changed loss factors jointly with distribution rates, the revised loss factors will be implemented upon the first subsequent billing for each billing cycle.
A148: Total Loss Factor – Secondary Metered Customer < 5,000 kW | D148: 1.0541 | H148: TLF_Secondary_LT_5000kW
A149: Total Loss Factor – Primary Metered Customer < 5,000 kW | D149: 1.0436 | H149: TLF_Primary_LT_5000kW

Sheet 26. Proposed Rates
Z1: 3
L5: =ROUND(LEN(B5), -2) / 100 -> 0
L9: =ROUND(LEN(B9), -2) / 100 -> 0
B12: In the Green Cells below, enter any proposed rate riders that are not already included in this model (e.g: ICM rate riders). In column B, the rate rider descriptions must begin with "Rate Rider for". In column C, choose the associated unit from the drop-down menu. In column D, enter the rate. All rate riders with a "$" unit will be rounded to 2 decimal places and all others will be rounded to 4 decimal places.
A20: RESIDENTIAL | B20: RESIDENTIAL SERVICE CLASSIFICATION | C20: Unit | D20: Rate
A21: RESIDENTIAL
A22: RESIDENTIAL
A23: RESIDENTIAL
A24: RESIDENTIAL
A25: RESIDENTIAL
A26: RESIDENTIAL
A27: RESIDENTIAL
A28: RESIDENTIAL
A29: RESIDENTIAL
A30: RESIDENTIAL
A32: GENERAL SERVICE LESS THAN 50 KW | B32: GENERAL SERVICE LESS THAN 50 KW SERVICE CLASSIFICATION | C32: Unit | D32: Rate
A33: GENERAL SERVICE LESS THAN 50 KW
A34: GENERAL SERVICE LESS THAN 50 KW
A35: GENERAL SERVICE LESS THAN 50 KW
A36: GENERAL SERVICE LESS THAN 50 KW
A37: GENERAL SERVICE LESS THAN 50 KW
A38: GENERAL SERVICE LESS THAN 50 KW
A39: GENERAL SERVICE LESS THAN 50 KW
A40: GENERAL SERVICE LESS THAN 50 KW
A41: GENERAL SERVICE LESS THAN 50 KW
A42: GENERAL SERVICE LESS THAN 50 KW
A44: GENERAL SERVICE 50 TO 4,999 KW | B44: GENERAL SERVICE 50 TO 4,999 KW SERVICE CLASSIFICATION | C44: Unit | D44: Rate
A45: GENERAL SERVICE 50 TO 4,999 KW
A46: GENERAL SERVICE 50 TO 4,999 KW
A47: GENERAL SERVICE 50 TO 4,999 KW
A48: GENERAL SERVICE 50 TO 4,999 KW
A49: GENERAL SERVICE 50 TO 4,999 KW
A50: GENERAL SERVICE 50 TO 4,999 KW
A51: GENERAL SERVICE 50 TO 4,999 KW
A52: GENERAL SERVICE 50 TO 4,999 KW
A53: GENERAL SERVICE 50 TO 4,999 KW
A54: GENERAL SERVICE 50 TO 4,999 KW
A56: UNMETERED SCATTERED LOAD | B56: UNMETERED SCATTERED LOAD SERVICE CLASSIFICATION | C56: Unit | D56: Rate
A57: UNMETERED SCATTERED LOAD
A58: UNMETERED SCATTERED LOAD
A59: UNMETERED SCATTERED LOAD
A60: UNMETERED SCATTERED LOAD
A61: UNMETERED SCATTERED LOAD
A62: UNMETERED SCATTERED LOAD
A63: UNMETERED SCATTERED LOAD
A64: UNMETERED SCATTERED LOAD
A65: UNMETERED SCATTERED LOAD
A66: UNMETERED SCATTERED LOAD
A68: SENTINEL LIGHTING | B68: SENTINEL LIGHTING SERVICE CLASSIFICATION | C68: Unit | D68: Rate
A69: SENTINEL LIGHTING
A70: SENTINEL LIGHTING
A71: SENTINEL LIGHTING
A72: SENTINEL LIGHTING
A73: SENTINEL LIGHTING
A74: SENTINEL LIGHTING
A75: SENTINEL LIGHTING
A76: SENTINEL LIGHTING
A77: SENTINEL LIGHTING
A78: SENTINEL LIGHTING
A80: STREET LIGHTING | B80: STREET LIGHTING SERVICE CLASSIFICATION | C80: Unit | D80: Rate
A81: STREET LIGHTING
A82: STREET LIGHTING
A83: STREET LIGHTING
A84: STREET LIGHTING
A85: STREET LIGHTING
A86: STREET LIGHTING
A87: STREET LIGHTING
A88: STREET LIGHTING
A89: STREET LIGHTING
A90: STREET LIGHTING
A92: microFIT | B92: microFIT SERVICE CLASSIFICATION | C92: Unit | D92: Rate
A93: microFIT
A94: microFIT
A95: microFIT
A96: microFIT
A97: microFIT
A98: microFIT
A99: microFIT
A100: microFIT
A101: microFIT
A102: microFIT
B106: PROPOSED MONTHLY RATES AND CHARGES - Regulatory Component
A108: Wholesale Market Service Rate | B108: Wholesale Market Service Rate | C108: $/kWh | D108: 0.0044
A109: Rural or Remote Electricity Rate Protection Charge (RRRP) | B109: Rural or Remote Electricity Rate Protection Charge (RRRP) | C109: $/kWh | D109: 0.0013
A110: Standard Supply Service - Administrative Charge (if applicable) | B110: Standard Supply Service - Administrative Charge (if applicable) | C110: $ | D110: 0.25

Sheet 26. Hidden (hidden)
A1: RESIDENTIAL | B1: RESIDENTIAL SERVICE CLASSIFICATION | C1: Unit | D1: Rate
A2: RESIDENTIAL
A3: RESIDENTIAL
A4: RESIDENTIAL
A5: RESIDENTIAL
A6: RESIDENTIAL
A7: RESIDENTIAL
A8: RESIDENTIAL
A9: RESIDENTIAL
A10: RESIDENTIAL
A11: RESIDENTIAL
A13: GENERAL SERVICE LESS THAN 50 KW | B13: GENERAL SERVICE LESS THAN 50 KW SERVICE CLASSIFICATION | C13: Unit | D13: Rate
A14: GENERAL SERVICE LESS THAN 50 KW
A15: GENERAL SERVICE LESS THAN 50 KW
A16: GENERAL SERVICE LESS THAN 50 KW
A17: GENERAL SERVICE LESS THAN 50 KW
A18: GENERAL SERVICE LESS THAN 50 KW
A19: GENERAL SERVICE LESS THAN 50 KW
A20: GENERAL SERVICE LESS THAN 50 KW
A21: GENERAL SERVICE LESS THAN 50 KW
A22: GENERAL SERVICE LESS THAN 50 KW
A23: GENERAL SERVICE LESS THAN 50 KW
A25: GENERAL SERVICE 50 TO 4,999 KW | B25: GENERAL SERVICE 50 TO 4,999 KW SERVICE CLASSIFICATION | C25: Unit | D25: Rate
A26: GENERAL SERVICE 50 TO 4,999 KW
A27: GENERAL SERVICE 50 TO 4,999 KW
A28: GENERAL SERVICE 50 TO 4,999 KW
A29: GENERAL SERVICE 50 TO 4,999 KW
A30: GENERAL SERVICE 50 TO 4,999 KW
A31: GENERAL SERVICE 50 TO 4,999 KW
A32: GENERAL SERVICE 50 TO 4,999 KW
A33: GENERAL SERVICE 50 TO 4,999 KW
A34: GENERAL SERVICE 50 TO 4,999 KW
A35: GENERAL SERVICE 50 TO 4,999 KW
A37: UNMETERED SCATTERED LOAD | B37: UNMETERED SCATTERED LOAD SERVICE CLASSIFICATION | C37: Unit | D37: Rate
A38: UNMETERED SCATTERED LOAD
A39: UNMETERED SCATTERED LOAD
A40: UNMETERED SCATTERED LOAD
A41: UNMETERED SCATTERED LOAD
A42: UNMETERED SCATTERED LOAD
A43: UNMETERED SCATTERED LOAD
A44: UNMETERED SCATTERED LOAD
A45: UNMETERED SCATTERED LOAD
A46: UNMETERED SCATTERED LOAD
A47: UNMETERED SCATTERED LOAD
A49: SENTINEL LIGHTING | B49: SENTINEL LIGHTING SERVICE CLASSIFICATION | C49: Unit | D49: Rate
A50: SENTINEL LIGHTING
A51: SENTINEL LIGHTING
A52: SENTINEL LIGHTING
A53: SENTINEL LIGHTING
A54: SENTINEL LIGHTING
A55: SENTINEL LIGHTING
A56: SENTINEL LIGHTING
A57: SENTINEL LIGHTING
A58: SENTINEL LIGHTING
A59: SENTINEL LIGHTING
A61: STREET LIGHTING | B61: STREET LIGHTING SERVICE CLASSIFICATION | C61: Unit | D61: Rate
A62: STREET LIGHTING
A63: STREET LIGHTING
A64: STREET LIGHTING
A65: STREET LIGHTING
A66: STREET LIGHTING
A67: STREET LIGHTING
A68: STREET LIGHTING
A69: STREET LIGHTING
A70: STREET LIGHTING
A71: STREET LIGHTING
A73: microFIT | B73: microFIT SERVICE CLASSIFICATION | C73: Unit | D73: Rate
A74: microFIT
A75: microFIT
A76: microFIT
A77: microFIT
A78: microFIT
A79: microFIT
A80: microFIT
A81: microFIT
A82: microFIT
A83: microFIT
B87: PROPOSED MONTHLY RATES AND CHARGES - Regulatory Component
A89: Wholesale Market Service Rate | B89: Wholesale Market Service Rate | C89: $/kWh | D89: 0.0044
A90: Rural or Remote Electricity Rate Protection Charge (RRRP) | B90: Rural or Remote Electricity Rate Protection Charge (RRRP) | C90: $/kWh | D90: 0.0013
A91: Standard Supply Service - Administrative Charge (if applicable) | B91: Standard Supply Service - Administrative Charge (if applicable) | C91: $ | D91: 0.25

Sheet 27. Final Tariff Schedule
A1: hidden column | B1: ='1. Information Sheet'!F14 -> Hydro Hawkesbury Inc. | F1: hidden column | Z1: 3
A2: for rate classes | B2: TARIFF OF RATES AND CHARGES | F2: for proposed
B3: ="Effective and Implementation Date " & TEXT('1. Information Sheet'!F26, "mmmm dd, yyyy") -> Effective and Implementation Date January 01, 2015 | F3: labeliing
B5: This schedule supersedes and replaces all previously
B6: approved schedules of Rates, Charges and Loss Factors | L6: =ROUND(LEN(B6), -2) / 100 -> 1
B7: =IF(LEN('1. Information Sheet'!F18)=0, "Please enter your assigned EB# on Sheet 1", '1. Information Sheet'!F18) -> EB-2014-0082
B9: RESIDENTIAL SERVICE CLASSIFICATION
B11: This classification refers to the supply of electrical energy to customers residing in residential dwelling units. Energy is generally supplied as single phase, 3-wire, 60-Hertz, having nominal voltage of 120/240 Volts and up to 400 amps. There shall be only one delivery point to a dwelling. The Basic Connection for Residential consumers is defined as 100 amp 120/240 volt overhead service. A Residential building is supplied at one service voltage per land parcel. Further servicing details are available in the distributor’s Conditions of Service. This classification refers to the supply of electrical energy to customers residing in residential dwelling units. Energy is generally supplied as single phase, 3-wire, 60-Hertz, having nominal voltage of 120/240 Volts and up to 400 amps. There shall be only one delivery point to a dwelling. The Basic Connection for Residential consumers is defined as 100 amp 120/240 volt overhead service. A Residential building is supplied at one service voltage per land parcel. Further servicing details are available in the distributor’s Conditions of Service. | L11: =ROUND(LEN(B11), -2) / 100 -> 11
B13: APPLICATION
B15: The application of these rates and charges shall be in accordance with the Licence of the Distributor and any Code or Order of the Board, and amendments thereto as approved by the Board, which may be applicable to the administration of this schedule. | L15: =ROUND(LEN(B15), -2) / 100 -> 3
B17: No rates and charges for the distribution of electricity and charges to meet the costs of any work or service done or furnished for the purpose of the distribution of electricity shall be made except as permitted by this schedule, unless required by the Distributor’s Licence or a Code or Order of the Board, and amendments thereto as approved by the Board, or as specified herein | L17: =ROUND(LEN(B17), -2) / 100 -> 4
B19: Unless specifically noted, this schedule does not contain any charges for the electricity commodity, be it under the Regulated Price Plan, a contract with a retailer or the wholesale market price, as applicable. In addition, the charges in the MONTHLY RATES AND CHARGES – Regulatory Component of this schedule do not apply to a customer that is an embedded wholesale market participant. | L19: =ROUND(LEN(B19), -2) / 100 -> 4
B21: It should be noted that this schedule does not list any charges, assessments or credits that are required by law to be invoiced by a distributor and that are not subject to Board approval, such as the Debt Retirement Charge, the Global Adjustment, the Ontario Clean Energy Benefit and the HST. | L21: =ROUND(LEN(B21), -2) / 100 -> 3
B23: MONTHLY RATES AND CHARGES - Delivery Component
A25: RESIDENTIAL | B25: Service Charge | D25: $ | E25: 7.17 | K25: 1_P_MSC
A26: RESIDENTIAL | B26: Rate Rider for Smart Metering Entity Charge - effective until October 31, 2018 | D26: $ | E26: 0.79 | K26: 1_P_SMEC
A27: RESIDENTIAL | B27: Distribution Volumetric Rate | D27: $/kWh | E27: 0.0098 | K27: 1_P_VC_1
A28: RESIDENTIAL | B28: Low Voltage Service Rate | D28: $/kWh | E28: 0.0007 | K28: 1_P_LVrate
A29: RESIDENTIAL | B29: Rate Rider for Disposition of Deferral/Variance Accounts (2015) - effective until December 31, 2015 | D29: $/kWh | E29: -0.001 | K29: 1_P_VC_DEFVAR_kWh_1
A30: RESIDENTIAL | B30: Rate Rider for Disposition of Global Adjustment Account (2015) - effective until December 31, 2015 Applicable only for Non RPP Customers | D30: $/kWh | E30: 0.0071 | K30: 1_P_VC_GA_Rate_Rider_kWh_1
A31: RESIDENTIAL | B31: Retail Transmission Rate - Network Service Rate | D31: $/kWh | E31: 0.007208297599 | K31: 1_P_RTSR_Network
A32: RESIDENTIAL | B32: Retail Transmission Rate - Line and Transformation Connection Service Rate | D32: $/kWh | E32: 0.00310612734 | K32: 1_P_RTSR_Connection
A33: RESIDENTIAL
A34: RESIDENTIAL | B34: MONTHLY RATES AND CHARGES - Regulatory Component
A35: RESIDENTIAL
A36: RESIDENTIAL | B36: Wholesale Market Service Rate | D36: $/kWh | E36: 0.0044 | K36: 1_P_WMSR
A37: RESIDENTIAL | B37: Rural or Remote Electricity Rate Protection Charge (RRRP) | D37: $/kWh | E37: 0.0013 | K37: 1_P_RRPC
A38: RESIDENTIAL | B38: Standard Supply Service - Administrative Charge (if applicable) | D38: $ | E38: 0.25 | K38: 1_P_SSS
B40: GENERAL SERVICE LESS THAN 50 KW SERVICE CLASSIFICATION
B42: This classification refers to the supply of electrical energy to a non residential account whose average monthly maximum demand is less than, or is forecast to be less than, 50 kW, and Town Houses and Condominiums that require centralized bulk metering. Further servicing details are available in the distributor’s Conditions of Service | L42: =ROUND(LEN(B42), -2) / 100 -> 3
B44: APPLICATION
B46: The application of these rates and charges shall be in accordance with the Licence of the Distributor and any Code or Order of the Board, and amendments thereto as approved by the Board, which may be applicable to the administration of this schedule. | L46: =ROUND(LEN(B46), -2) / 100 -> 3
B48: No rates and charges for the distribution of electricity and charges to meet the costs of any work or service done or furnished for the purpose of the distribution of electricity shall be made except as permitted by this schedule, unless required by the Distributor’s Licence or a Code or Order of the Board, and amendments thereto as approved by the Board, or as specified herein. | L48: =ROUND(LEN(B48), -2) / 100 -> 4
B50: Unless specifically noted, this schedule does not contain any charges for the electricity commodity, be it under the Regulated Price Plan, a contract with a retailer or the wholesale market price, as applicable. In addition, the charges in the MONTHLY RATES AND CHARGES – Regulatory Component of this schedule do not apply to a customer that is an embedded wholesale market participant. | L50: =ROUND(LEN(B50), -2) / 100 -> 4
B52: It should be noted that this schedule does not list any charges, assessments or credits that are required by law to be invoiced by a distributor and that are not subject to Board approval, such as the Debt Retirement Charge, the Global Adjustment, the Ontario Clean Energy Benefit and the HST. | L52: =ROUND(LEN(B52), -2) / 100 -> 3
B54: MONTHLY RATES AND CHARGES - Delivery Component
A56: GENERAL SERVICE LESS THAN 50 KW | B56: Service Charge | D56: $ | E56: 15.15 | K56: 2_P_MSC
A57: GENERAL SERVICE LESS THAN 50 KW | B57: Rate Rider for Smart Metering Entity Charge - effective until October 31, 2018 | D57: $ | E57: 0.79 | K57: 2_P_SMEC
A58: GENERAL SERVICE LESS THAN 50 KW | B58: Distribution Volumetric Rate | D58: $/kWh | E58: 0.006 | K58: 2_P_VC_1
A59: GENERAL SERVICE LESS THAN 50 KW | B59: Low Voltage Service Rate | D59: $/kWh | E59: 0.0006 | K59: 2_P_LVrate
A60: GENERAL SERVICE LESS THAN 50 KW | B60: Rate Rider for Disposition of Deferral/Variance Accounts (2015) - effective until December 31, 2015 | D60: $/kWh | E60: -0.0011 | K60: 2_P_VC_DEFVAR_kWh_1
A61: GENERAL SERVICE LESS THAN 50 KW | B61: Rate Rider for Disposition of Global Adjustment Account (2015) - effective until December 31, 2015 Applicable only for Non RPP Customers | D61: $/kWh | E61: 0.0071 | K61: 2_P_VC_GA_Rate_Rider_kWh_1
A62: GENERAL SERVICE LESS THAN 50 KW | B62: Retail Transmission Rate - Network Service Rate | D62: $/kWh | E62: 0.006590443519 | K62: 2_P_RTSR_Network
A63: GENERAL SERVICE LESS THAN 50 KW | B63: Retail Transmission Rate - Line and Transformation Connection Service Rate | D63: $/kWh | E63: 0.002705336715 | K63: 2_P_RTSR_Connection
A64: GENERAL SERVICE LESS THAN 50 KW
A65: GENERAL SERVICE LESS THAN 50 KW | B65: MONTHLY RATES AND CHARGES - Regulatory Component
A66: GENERAL SERVICE LESS THAN 50 KW
A67: GENERAL SERVICE LESS THAN 50 KW | B67: Wholesale Market Service Rate | D67: $/kWh | E67: 0.0044 | K67: 2_P_WMSR
A68: GENERAL SERVICE LESS THAN 50 KW | B68: Rural or Remote Electricity Rate Protection Charge (RRRP) | D68: $/kWh | E68: 0.0013 | K68: 2_P_RRPC
A69: GENERAL SERVICE LESS THAN 50 KW | B69: Standard Supply Service - Administrative Charge (if applicable) | D69: $ | E69: 0.25 | K69: 2_P_SSS
B71: GENERAL SERVICE 50 TO 4,999 KW SERVICE CLASSIFICATION
B73: This classification applies to a non residential account whose average monthly maximum demand used for billing purposes is equal to or greater than, or is forecast to be equal to or greater than, 50 kW but less than 5,000 kW. Note that for the application of the Retail Transmission Rate – Network Service Rate and the Retail Transmission Rate – Line and Transformation Connection Service Rate the following sub-classifications apply: General Service 50 to 500 kW non-interval metered General Service 50 to 500 kW interval metered General Service greater than 500 to 5,000 kW interval metered. Further servicing details are available in the distributor’s Conditions of Service. | L73: =ROUND(LEN(B73), -2) / 100 -> 7
B75: APPLICATION
B77: The application of these rates and charges shall be in accordance with the Licence of the Distributor and any Code or Order of the Board, and amendments thereto as approved by the Board, which may be applicable to the administration of this schedule. | L77: =ROUND(LEN(B77), -2) / 100 -> 3
B79: No rates and charges for the distribution of electricity and charges to meet the costs of any work or service done or furnished for the purpose of the distribution of electricity shall be made except as permitted by this schedule, unless required by the Distributor’s Licence or a Code or Order of the Board, and amendments thereto as approved by the Board, or as specified herein. | L79: =ROUND(LEN(B79), -2) / 100 -> 4
B81: Unless specifically noted, this schedule does not contain any charges for the electricity commodity, be it under the Regulated Price Plan, a contract with a retailer or the wholesale market price, as applicable. In addition, the charges in the MONTHLY RATES AND CHARGES – Regulatory Component of this schedule do not apply to a customer that is an embedded wholesale market participant | L81: =ROUND(LEN(B81), -2) / 100 -> 4
B83: It should be noted that this schedule does not list any charges, assessments or credits that are required by law to be invoiced by a distributor and that are not subject to Board approval, such as the Debt Retirement Charge, the Global Adjustment, the Ontario Clean Energy Benefit and the HST. | L83: =ROUND(LEN(B83), -2) / 100 -> 3
B85: MONTHLY RATES AND CHARGES - Delivery Component
A87: GENERAL SERVICE 50 TO 4,999 KW | B87: Service Charge | D87: $ | E87: 98.91 | K87: 3_P_MSC
A88: GENERAL SERVICE 50 TO 4,999 KW | B88: Distribution Volumetric Rate | D88: $/kW | E88: 2.0049 | K88: 3_P_VC_1
A89: GENERAL SERVICE 50 TO 4,999 KW | B89: Low Voltage Service Rate | D89: $/kW | E89: 0.2419 | K89: 3_P_LVrate
A90: GENERAL SERVICE 50 TO 4,999 KW | B90: Rate Rider for Disposition of Deferral/Variance Accounts (2015) - effective until December 31, 2015 | D90: $/kWh | E90: -0.0013 | K90: 3_P_VC_DEFVAR_kWh_1
A91: GENERAL SERVICE 50 TO 4,999 KW | B91: Rate Rider for Disposition of Global Adjustment Account (2015) - effective until December 31, 2015 Applicable only for Non RPP Customers | D91: $/kWh | E91: 0.0071 | K91: 3_P_VC_GA_Rate_Rider_kWh_1
A92: GENERAL SERVICE 50 TO 4,999 KW | B92: Retail Transmission Rate - Network Service Rate | D92: $/kW | E92: 2.683855147 | K92: 3_P_RTSR_Network
A93: GENERAL SERVICE 50 TO 4,999 KW | B93: Retail Transmission Rate - Line and Transformation Connection Service Rate | D93: $/kW | E93: 1.125119481 | K93: 3_P_RTSR_Connection
A94: GENERAL SERVICE 50 TO 4,999 KW
A95: GENERAL SERVICE 50 TO 4,999 KW | B95: MONTHLY RATES AND CHARGES - Regulatory Component
A96: GENERAL SERVICE 50 TO 4,999 KW
A97: GENERAL SERVICE 50 TO 4,999 KW | B97: Wholesale Market Service Rate | D97: $/kWh | E97: 0.0044 | K97: 3_P_WMSR
A98: GENERAL SERVICE 50 TO 4,999 KW | B98: Rural or Remote Electricity Rate Protection Charge (RRRP) | D98: $/kWh | E98: 0.0013 | K98: 3_P_RRPC
A99: GENERAL SERVICE 50 TO 4,999 KW | B99: Standard Supply Service - Administrative Charge (if applicable) | D99: $ | E99: 0.25 | K99: 3_P_SSS
B101: UNMETERED SCATTERED LOAD SERVICE CLASSIFICATION
B103: This classification applies to an account taking electricity at 750 volts or less whose average monthly maximum demand is less than, or is forecast to be less than, 50 kW and the consumption is unmetered. Such connections include cable TV power packs, bus shelters, telephone booths, traffic lights, railway crossings, etc. The level of the consumption will be agreed to by the distributor and the customer, based on detailed manufacturer information/ documentation with regard to electrical consumption of the unmetered load or periodic monitoring of actual consumption. Further servicing details are available in the distributor’s Conditions of Service. | L103: =ROUND(LEN(B103), -2) / 100 -> 7
B105: APPLICATION
B107: The application of these rates and charges shall be in accordance with the Licence of the Distributor and any Code or Order of the Board, and amendments thereto as approved by the Board, which may be applicable to the administration of this schedule. | L107: =ROUND(LEN(B107), -2) / 100 -> 3
B109: No rates and charges for the distribution of electricity and charges to meet the costs of any work or service done or furnished for the purpose of the distribution of electricity shall be made except as permitted by this schedule, unless required by the Distributor’s Licence or a Code or Order of the Board, and amendments thereto as approved by the Board, or as specified herein. | L109: =ROUND(LEN(B109), -2) / 100 -> 4
B111: Unless specifically noted, this schedule does not contain any charges for the electricity commodity, be it under the Regulated Price Plan, a contract with a retailer or the wholesale market price, as applicable. In addition, the charges in the MONTHLY RATES AND CHARGES – Regulatory Component of this schedule do not apply to a customer that is an embedded wholesale market participant. | L111: =ROUND(LEN(B111), -2) / 100 -> 4
B113: It should be noted that this schedule does not list any charges, assessments or credits that are required by law to be invoiced by a distributor and that are not subject to Board approval, such as the Debt Retirement Charge, the Global Adjustment, the Ontario Clean Energy Benefit and the HST. | L113: =ROUND(LEN(B113), -2) / 100 -> 3
B115: MONTHLY RATES AND CHARGES - Delivery Component
A117: UNMETERED SCATTERED LOAD | B117: Service Charge (per customer) | D117: $ | E117: 6.49 | K117: 4_P_MSC
A118: UNMETERED SCATTERED LOAD | B118: Distribution Volumetric Rate | D118: $/kWh | E118: 0.0038 | K118: 4_P_VC_1
A119: UNMETERED SCATTERED LOAD | B119: Low Voltage Service Rate | D119: $/kWh | E119: 0.0006 | K119: 4_P_LVrate
A120: UNMETERED SCATTERED LOAD | B120: Rate Rider for Disposition of Deferral/Variance Accounts (2015) - effective until December 31, 2015 | D120: $/kWh | E120: -0.0012 | K120: 4_P_VC_DEFVAR_kWh_1
A121: UNMETERED SCATTERED LOAD | B121: Rate Rider for Disposition of Global Adjustment Account (2015) - effective until December 31, 2015 Applicable only for Non RPP Customers | D121: $/kWh | E121: 0.0071 | K121: 4_P_VC_GA_Rate_Rider_kWh_1
A122: UNMETERED SCATTERED LOAD | B122: Retail Transmission Rate - Network Service Rate | D122: $/kWh | E122: 0.006590443519 | K122: 4_P_RTSR_Network
A123: UNMETERED SCATTERED LOAD | B123: Retail Transmission Rate - Line and Transformation Connection Service Rate | D123: $/kWh | E123: 0.002705336715 | K123: 4_P_RTSR_Connection
A124: UNMETERED SCATTERED LOAD
A125: UNMETERED SCATTERED LOAD | B125: MONTHLY RATES AND CHARGES - Regulatory Component
A126: UNMETERED SCATTERED LOAD
A127: UNMETERED SCATTERED LOAD | B127: Wholesale Market Service Rate | D127: $/kWh | E127: 0.0044 | K127: 4_P_WMSR
A128: UNMETERED SCATTERED LOAD | B128: Rural or Remote Electricity Rate Protection Charge (RRRP) | D128: $/kWh | E128: 0.0013 | K128: 4_P_RRPC
A129: UNMETERED SCATTERED LOAD | B129: Standard Supply Service - Administrative Charge (if applicable) | D129: $ | E129: 0.25 | K129: 4_P_SSS
B131: SENTINEL LIGHTING SERVICE CLASSIFICATION
B133: This classification refers to privately owned roadway lighting controlled by photo cells. Consumption is based on calculated connected load times the required lighting hours. Further servicing details are available in the distributor’s Conditions of Service. | L133: =ROUND(LEN(B133), -2) / 100 -> 3
B135: APPLICATION
B137: The application of these rates and charges shall be in accordance with the Licence of the Distributor and any Code or Order of the Board, and amendments thereto as approved by the Board, which may be applicable to the administration of this schedule. | L137: =ROUND(LEN(B137), -2) / 100 -> 3
B139: No rates and charges for the distribution of electricity and charges to meet the costs of any work or service done or furnished for the purpose of the distribution of electricity shall be made except as permitted by this schedule, unless required by the Distributor’s Licence or a Code or Order of the Board, and amendments thereto as approved by the Board, or as specified herein. | L139: =ROUND(LEN(B139), -2) / 100 -> 4
B141: Unless specifically noted, this schedule does not contain any charges for the electricity commodity, be it under the Regulated Price Plan, a contract with a retailer or the wholesale market price, as applicable. In addition, the charges in the MONTHLY RATES AND CHARGES – Regulatory Component of this schedule do not apply to a customer that is an embedded wholesale market participant. | L141: =ROUND(LEN(B141), -2) / 100 -> 4
B143: It should be noted that this schedule does not list any charges, assessments or credits that are required by law to be invoiced by a distributor and that are not subject to Board approval, such as the Debt Retirement Charge, the Global Adjustment, the Ontario Clean Energy Benefit and the HST. | L143: =ROUND(LEN(B143), -2) / 100 -> 3
B145: MONTHLY RATES AND CHARGES - Delivery Component
A147: SENTINEL LIGHTING | B147: Service Charge (per connection) | D147: $ | E147: 1.63 | K147: 5_P_MSC
A148: SENTINEL LIGHTING | B148: Distribution Volumetric Rate | D148: $/kW | E148: 3.2262 | K148: 5_P_VC_1
A149: SENTINEL LIGHTING | B149: Low Voltage Service Rate | D149: $/kW | E149: 0.3818 | K149: 5_P_LVrate
A150: SENTINEL LIGHTING | B150: Rate Rider for Disposition of Deferral/Variance Accounts (2015) - effective until December 31, 2015 | D150: $/kWh | E150: 0.0073 | K150: 5_P_VC_DEFVAR_kWh_1
A151: SENTINEL LIGHTING | B151: Rate Rider for Disposition of Global Adjustment Account (2015) - effective until December 31, 2015 Applicable only for Non RPP Customers | D151: $/kWh | E151: 0.0071 | K151: 5_P_VC_GA_Rate_Rider_kWh_1
A152: SENTINEL LIGHTING | B152: Retail Transmission Rate - Network Service Rate | D152: $/kW | E152: 2.024913771 | K152: 5_P_RTSR_Network
A153: SENTINEL LIGHTING | B153: Retail Transmission Rate - Line and Transformation Connection Service Rate | D153: $/kW | E153: 1.775903257 | K153: 5_P_RTSR_Connection
A154: SENTINEL LIGHTING
A155: SENTINEL LIGHTING | B155: MONTHLY RATES AND CHARGES - Regulatory Component
A156: SENTINEL LIGHTING
A157: SENTINEL LIGHTING | B157: Wholesale Market Service Rate | D157: $/kWh | E157: 0.0044 | K157: 5_P_WMSR
A158: SENTINEL LIGHTING | B158: Rural or Remote Electricity Rate Protection Charge (RRRP) | D158: $/kWh | E158: 0.0013 | K158: 5_P_RRPC
A159: SENTINEL LIGHTING | B159: Standard Supply Service - Administrative Charge (if applicable) | D159: $ | E159: 0.25 | K159: 5_P_SSS
B161: STREET LIGHTING SERVICE CLASSIFICATION
B163: This classification refers to municipal lighting, Ministry of Transportation operation controlled by photo cells. Consumption is as per OEB street lighting load shape. Further servicing details are available in the distributor’s Conditions of Service. | L163: =ROUND(LEN(B163), -2) / 100 -> 3
B165: APPLICATION
B167: The application of these rates and charges shall be in accordance with the Licence of the Distributor and any Code or Order of the Board, and amendments thereto as approved by the Board, which may be applicable to the administration of this schedule | L167: =ROUND(LEN(B167), -2) / 100 -> 2
B169: No rates and charges for the distribution of electricity and charges to meet the costs of any work or service done or furnished for the purpose of the distribution of electricity shall be made except as permitted by this schedule, unless required by the Distributor’s Licence or a Code or Order of the Board, and amendments thereto as approved by the Board, or as specified herein. | L169: =ROUND(LEN(B169), -2) / 100 -> 4
B171: Unless specifically noted, this schedule does not contain any charges for the electricity commodity, be it under the Regulated Price Plan, a contract with a retailer or the wholesale market price, as applicable. In addition, the charges in the MONTHLY RATES AND CHARGES – Regulatory Component of this schedule do not apply to a customer that is an embedded wholesale market participant. | L171: =ROUND(LEN(B171), -2) / 100 -> 4
B173: It should be noted that this schedule does not list any charges, assessments or credits that are required by law to be invoiced by a distributor and that are not subject to Board approval, such as the Debt Retirement Charge, the Global Adjustment, the Ontario Clean Energy Benefit and the HST. | L173: =ROUND(LEN(B173), -2) / 100 -> 3
B175: MONTHLY RATES AND CHARGES - Delivery Component
A177: STREET LIGHTING | B177: Service Charge (per connection) | D177: $/kW | E177: 0.54 | K177: 6_P_MSC
A178: STREET LIGHTING | B178: Distribution Volumetric Rate | D178: $/kW | E178: 5.8424 | K178: 6_P_VC_1
A179: STREET LIGHTING | B179: Low Voltage Service Rate | D179: $/kW | E179: 0.187 | K179: 6_P_LVrate
A180: STREET LIGHTING | B180: Rate Rider for Disposition of Deferral/Variance Accounts (2015) - effective until December 31, 2015 | D180: $/kWh | E180: -0.0014 | K180: 6_P_VC_DEFVAR_kWh_1
A181: STREET LIGHTING | B181: Rate Rider for Disposition of Global Adjustment Account (2015) - effective until December 31, 2015 Applicable only for Non RPP Customers | D181: $/kWh | E181: 0.0071 | K181: 6_P_VC_GA_Rate_Rider_kWh_1
A182: STREET LIGHTING | B182: Retail Transmission Rate - Network Service Rate | D182: $/kW | E182: 2.024295917 | K182: 6_P_RTSR_Network
A183: STREET LIGHTING | B183: Retail Transmission Rate - Line and Transformation Connection Service Rate | D183: $/kW | E183: 0.8697156551 | K183: 6_P_RTSR_Connection
A184: STREET LIGHTING
A185: STREET LIGHTING | B185: MONTHLY RATES AND CHARGES - Regulatory Component
A186: STREET LIGHTING
A187: STREET LIGHTING | B187: Wholesale Market Service Rate | D187: $/kWh | E187: 0.0044 | K187: 6_P_WMSR
A188: STREET LIGHTING | B188: Rural or Remote Electricity Rate Protection Charge (RRRP) | D188: $/kWh | E188: 0.0013 | K188: 6_P_RRPC
A189: STREET LIGHTING | B189: Standard Supply Service - Administrative Charge (if applicable) | D189: $ | E189: 0.25 | K189: 6_P_SSS
B191: MICROFIT SERVICE CLASSIFICATION
B193: This classification applies to an electricity generation facility contracted under the Ontario Power Authority's microFIT program and connected to the distributor's distribution system. Further servicing details are available in the distributor's Conditions of Service. | L193: =ROUND(LEN(B193), -2) / 100 -> 3
B195: APPLICATION
B197: The application of these rates and charges shall be in accordance with the Licence of the Distributor and any Code or Order of the Board, and amendments thereto as approved by the Board, which may be applicable to the administration of this schedule. | L197: =ROUND(LEN(B197), -2) / 100 -> 3
B199: No rates and charges for the distribution of electricity and charges to meet the costs of any work or service done or furnished for the purpose of the distribution of electricity shall be made except as permitted by this schedule, unless required by the Distributor’s Licence or a Code or Order of the Board, and amendments thereto as approved by the Board, or as specified herein. | L199: =ROUND(LEN(B199), -2) / 100 -> 4
B201: Unless specifically noted, this schedule does not contain any charges for the electricity commodity, be it under the Regulated Price Plan, a contract with a retailer or the wholesale market price, as applicable. In addition, the charges in the MONTHLY RATES AND CHARGES – Regulatory Component of this schedule do not apply to a customer that is an embedded wholesale market participant. | L201: =ROUND(LEN(B201), -2) / 100 -> 4
B203: It should be noted that this schedule does not list any charges, assessments or credits that are required by law to be invoiced by a distributor and that are not subject to Board approval, such as the Debt Retirement Charge, the Global Adjustment, the Ontario Clean Energy Benefit and the HST. | L203: =ROUND(LEN(B203), -2) / 100 -> 3
B205: MONTHLY RATES AND CHARGES - Delivery Component
A207: MICROFIT | B207: Service Charge | D207: $ | E207: 5.4 | K207: 7_P_MSC
A208: MICROFIT
B209: ALLOWANCES
A210: MICROFIT
B211: Transformer Allowance for Ownership - per kW of billing demand/month | D211: $/kW | E211: -0.6
B212: Primary Metering Allowance for transformer losses – applied to measured demand and energy | D212: $ | E212: 1
B214: SPECIFIC SERVICE CHARGES
B216: The application of these rates and charges shall be in accordance with the Licence of the Distributor and any Code or Order of the Board, and amendments thereto as approved by the Board, which may be applicable to the administration of this schedule.
B218: No charges to meet the costs of any work or service done or furnished for the purpose of the distribution of electricity shall be made except as permitted by this schedule, unless required by the Distributor’s Licence or a Code or Order of the Board, and amendments thereto as approved by the Board, or as specified herein.
B220: It should be noted that this schedule does not list any charges, assessments, or credits that are required by law to be invoiced by a distributor and that are not subject to Board approval, such as the Debt Retirement Charge, the Global Adjustment, the Ontario Clean Energy Benefit and the HST.
B222: Customer Administration
B223: Arrears certificate | D223: $ | E223: 15
B224: Statement of Account | D224: $ | E224: 15
B225: Duplicate Invoices for previous billing | D225: $ | E225: 15
B226: Credit Reference/credit check (plus credit agency costs) | D226: $ | E226: 15
B227: Returned cheque charge (plus bank charges) | D227: $ | E227: 20
B228: Account set up charge/change of occupancy charge (plus credit agency costs if applicable) | D228: $ | E228: 40
B229: Meter dispute charge plus Measurement Canada fees (if meter found correct) | D229: $ | E229: 30
B232: Non-Payment of Account
B233: Late Payment – per month | D233: % | E233: 1.5
B234: Late Payment – per annum | D234: % | E234: 19.56
B235: Collection of account charge – no disconnection | D235: $ | E235: 15
B236: Disconnect/Reconnect at meter – during regular hours | D236: $ | E236: 30
B237: Disconnect/Reconnect at meter – after regular hours | D237: $ | E237: 165
B238: Disconnect/Reconnect at pole – during regular hours | D238: $ | E238: 100
B239: Disconnect/Reconnect at pole – after regular hours | D239: $ | E239: 300
B240: Install/Remove load control device – during regular hours | D240: $ | E240: 30
B241: Install/Remove load control device – after regular hours | D241: $ | E241: 165
B242: Service call – after regular hours | D242: $ | E242: 165
B243: Temporary Service – Install & remove – overhead – no transformer | D243: $ | E243: 500
B244: Temporary Service – Install & remove – overhead – with transformer | D244: $ | E244: 1000
B245: Specific Charge for Access to the Power Poles - $/pole/year | D245: $ | E245: 22.35
B248: RETAIL SERVICE CHARGES (if applicable)
B250: The application of these rates and charges shall be in accordance with the Licence of the Distributor and any Code or Order of the Board, and amendments thereto as approved by the Board, which may be applicable to the administration of this schedule.
B252: No rates and charges for the distribution of electricity and charges to meet the costs of any work or service done or furnished for the purpose of the distribution of electricity shall be made except as permitted by this schedule, unless required by the Distributor’s Licence or a Code or Order of the Board, and amendments thereto as approved by the Board, or as specified herein.
B254: Unless specifically noted, this schedule does not contain any charges for the electricity commodity, be it under the Regulated Price Plan, a contract with a retailer or the wholesale market price, as applicable.
B256: It should be noted that this schedule does not list any charges, assessments, or credits that are required by law to be invoiced by a distributor and that are not subject to Board approval, such as the Debt Retirement Charge, the Global Adjustment, the Ontario Clean Energy Benefit and the HST.
B258: Retail Service Charges refer to services provided by a distributor to retailers or customers related to the supply of competitive electricity.
B260: One-time charge, per retailer, to establish the service agreement between the distributor and the retailer | D260: $ | E260: 100
B261: Monthly Fixed Charge, per retailer | D261: $ | E261: 20
B262: Monthly Variable Charge, per customer, per retailer | D262: $/cust. | E262: 0.5
B263: Distributor-consolidated billing monthly charge, per customer, per retailer | D263: $/cust. | E263: 0.3
B264: Retailer-consolidated billing monthly credit, per customer, per retailer | D264: $/cust. | E264: -0.3
B265: Service Transaction Requests (STR)
B266: Request fee, per request, applied to the requesting party | D266: $ | E266: 0.25
B267: Processing fee, per request, applied to the requesting party | D267: $ | E267: 0.5
B268: Request for customer information as outlined in Section 10.6.3 and Chapter 11 of the Retail
B269: Settlement Code directly to retailers and customers, if not delivered electronically through the
B270: Electronic Business Transaction (EBT) system, applied to the requesting party
B271: Up to twice a year | D271: $ | E271: no charge
B272: More than twice a year, per request (plus incremental delivery costs) | D272: $ | E272: 2
B274: LOSS FACTORS
B276: If the distributor is not capable of prorating changed loss factors jointly with distribution rates, the revised loss factors will be implemented upon the first subsequent billing for each billing cycle.
B278: Total Loss Factor – Secondary Metered Customer < 5,000 kW | E278: 1.0541 | K278: TLF_Secondary_LT_5000kW
B279: Total Loss Factor – Primary Metered Customer < 5,000 kW | E279: 1.0436 | K279: TLF_Primary_LT_5000kW

Sheet 14. Bill Impacts (hidden)
Z1: =MATCH(A13, '3. Rate Class Selection'!B19:B40,0) -> 1 | AA1: =VLOOKUP(A13, lists!AO:AP,2,0) -> kWh
A11: Choose a Rate Class from the drop-down menu below and click UPDATE. For Street Lighting and USL classes, please ensure that the number of customers is manually entered into cells B30 and B31. Click the UPDATE button to refresh the sheet.
A13: RESIDENTIAL | F13: =IF(ISERROR(SEARCH("MicroFit",A13,1))=FALSE,"Bill impact presentation for this class does not exist.", "") -> 
A15: Consumption | B15: =730*D15*B17 -> 3650000 | C15: kWh | D15: 10000 | E15: =IF(AA1 = "kWh", "", "kW") -> 
A16: RPP Tier One | B16: 600 | C16: kWh | E16: 1
A17: Load Factor | B17: 0.5
A18: Loss Factor | B18: 1
B21: CURRENT ESTIMATED BILL | E21: PROPOSED ESTIMATED BILL
B22: Volume | C22: Current Rate ($) | D22: Current Charge ($) | E22: Volume | F22: Proposed Rate ($) | G22: Proposed Charge ($) | I22: Change ($) | J22: Change (%) | K22: % of Total RPP Bill | L22: % of Total TOU Bill
A23: Energy First Tier (kWh) | B23: 3650000 | C23: 0.075 | D23: =B23*C23 -> 273750 | E23: =B23 -> 3650000 | F23: =C23 -> 0.075 | G23: =E23*F23 -> 273750 | I23: =G23-D23 -> 0 | J23: =I23/D23 -> 0 | K23: =G23/G48 -> 0.8646078577
A24: Energy Second Tier (kWh) | B24: 0 | C24: 0.088 | D24: =B24*C24 -> 0 | E24: =B24 -> 0 | F24: =C24 -> 0.088 | G24: =E24*F24 -> 0 | I24: =G24-D24 -> 0 | J24: 0 | K24: =G24/G48 -> 0
A26: TOU - Off Peak | B26: =0.64*$B$15*$B$18 -> 2336000 | C26: 0.065 | D26: =C26*B26 -> 151840 | E26: =B26 -> 2336000 | F26: =C26 -> 0.065 | G26: =F26*E26 -> 151840 | I26: =G26-D26 -> 0 | J26: =I26/D26 -> 0 | L26: =G26/G54 -> 0.449726096
A27: TOU - Mid Peak | B27: =0.18*$B$15*$B$18 -> 657000 | C27: 0.1 | D27: =C27*B27 -> 65700 | E27: =B27 -> 657000 | F27: =C27 -> 0.1 | G27: =F27*E27 -> 65700 | H27: =G27*F27 -> 6570 | I27: =G27-D27 -> 0 | J27: =I27/D27 -> 0 | L27: =G27/G54 -> 0.1945930223
A28: TOU - On Peak | B28: =0.18*$B$15*$B$18 -> 657000 | C28: 0.117 | D28: 76869 | F28: =C28 -> 0.117 | G28: =F28*E28 -> 0 | H28: =G28*F28 -> 0 | J28: =I28/D28 -> 0 | L28: =G28/G54 -> 0
A30: Service Charge | B30: 1 | D30: 0 | G30: =F30*E30 -> 0 | H30: 0 | J30: 0 | K30: 0 | L30: 0
A31: Service Charge Rate Rider(s) | B31: 1 | C31: 0 | D31: 0 | F31: 0 | G31: 0 | H31: 0 | J31: 0 | K31: 0 | L31: 0
A32: Distribution Volumetric Rate | B32: 10000 | D32: 0 | E32: =B32 -> 10000 | G32: 0 | H32: 0 | I32: =G32-D32 -> 0 | J32: 0 | K32: 0 | L32: 0
A33: Low Voltage Volumetric Rate | B33: 10000 | D33: 0 | G33: 0 | H33: 0 | J33: 0 | K33: 0 | L33: 0
A34: Distribution Volumetric Rate Rider(s) | B34: 10000 | C34: 0 | D34: 0 | F34: 1.2025 | G34: 0 | H34: 0 | J34: 0 | K34: =G34/G48 -> 0 | L34: =G34/G54 -> 0
A35: Total: Distribution | D35: =ROUND(SUM(D30:D34),2) -> 0 | G35: =ROUND(SUM(G30:G34),2) -> 0 | J35: 0 | K35: =G35/G48 -> 0 | L35: =G35/G54 -> 0
A36: Total: Retail Transmission
A37: Sub-Total: Delivery (Distribution and Retail Transmission) | D37: =SUM(D36,D35) -> 0 | G37: =SUM(G36,G35) -> 0 | J37: 0 | K37: =G37/G48 -> 0 | L37: =G37/G54 -> 0
A38: Wholesale Market Service Rate | B38: 3650000 | C38: 0 | D38: =B38*C38 -> 0 | F38: =C38 -> 0 | G38: =E38*F38 -> 0 | J38: 0 | K38: 0 | L38: 0
A39: Rural Rate Protection Charge | B39: 3650000 | C39: 0 | D39: =B39*C39 -> 0 | E39: 3650000 | F39: 0 | G39: =E39*F39 -> 0 | I39: =G39-D39 -> 0 | J39: 0 | K39: 0 | L39: 0
A40: Standard Supply Service – Administration Charge (if applicable) | B40: 1 | C40: 0 | D40: =B40*C40 -> 0 | E40: 1 | F40: 0 | G40: =E40*F40 -> 0 | I40: =G40-D40 -> 0 | J40: 0 | K40: 0 | L40: 0
A41: Sub-Total: Regulatory | D41: =SUM(D38:D40) -> 0 | G41: =SUM(G38:H40) -> 0 | I41: =G41-D41 -> 0 | J41: 0 | K41: 0 | L41: 0
A42: Debt Retirement Charge (DRC) | B42: 3650000 | C42: 0.007 | D42: =B42*C42 -> 25550 | E42: =B42 -> 3650000 | F42: =C42 -> 0.007 | G42: =E42*F42 -> 25550 | I42: =G42-D42 -> 0 | J42: =I42/D42 -> 0 | K42: =G42/G48 -> 0.08069673339 | L42: =G42/G54 -> 0.07567506422
A44: Total Bill on RPP (before taxes) | D44: 299300 | G44: 311325 | I44: =G44-D44 -> 12025 | J44: =I44/D44 -> 0.04017707985 | K44: =G44/G48 -> 0.9832841691
A45: HST | C45: 0.13 | D45: =C45*D44 -> 38909 | F45: =C45 -> 0.13 | G45: =F45*G44 -> 40472.25 | I45: =G45-D45 -> 1563.25 | J45: =I45/D45 -> 0.04017707985 | K45: =G45/G48 -> 0.127826942
A46: Total Bill (including HST) | D46: =D45+D44 -> 338209 | G46: =G45+G44 -> 351797.25 | I46: =G46-D46 -> 13588.25 | J46: =I46/D46 -> 0.04017707985 | K46: =G46/G48 -> 1.111111111
A47: Ontario Clean Energy Benefit (OCEB) | C47: -0.1 | D47: =-0.1*D46 -> -33820.9 | F47: =C47 -> -0.1 | G47: =-0.1*G46 -> -35179.725 | I47: =G47-D47 -> -1358.825 | J47: =I47/D47 -> 0.04017707985 | K47: =G47/G48 -> -0.1111111111
A48: Total Bill on RPP (including OCEB) | D48: =D46+D47 -> 304388.1 | G48: =G46+G47 -> 316617.525 | I48: =G48-D48 -> 12229.425 | J48: =I48/D48 -> 0.04017707985 | K48: =G48/G48 -> 1
A50: Total Bill on TOU (before taxes) | D50: 319959 | G50: 331984 | I50: =G50-D50 -> 12025 | J50: =I50/D50 -> 0.03758294031 | L50: =G50/G54 -> 0.9832841691
A51: HST | C51: 0.13 | D51: =C51*D50 -> 41594.67 | F51: =C51 -> 0.13 | G51: =F51*G50 -> 43157.92 | I51: =G51-D51 -> 1563.25 | J51: =I51/D51 -> 0.03758294031 | L51: =G51/G54 -> 0.127826942
A52: Total Bill (including HST) | D52: =D51+D50 -> 361553.67 | G52: =G51+G50 -> 375141.92 | I52: =G52-D52 -> 13588.25 | J52: =I52/D52 -> 0.03758294031 | L52: =G52/G54 -> 1.111111111
A53: Ontario Clean Energy Benefit (OCEB) | C53: -0.1 | D53: =-0.1*D52 -> -36155.367 | F53: =C53 -> -0.1 | G53: =-0.1*G52 -> -37514.192 | I53: =G53-D53 -> -1358.825 | J53: =I53/D53 -> 0.03758294031 | L53: =G53/G54 -> -0.1111111111
A54: Total Bill on TOU (including OCEB) | D54: =D52+D53 -> 325398.303 | G54: =G52+G53 -> 337627.728 | I54: =G54-D54 -> 12229.425 | J54: =I54/D54 -> 0.03758294031 | L54: =G54/G54 -> 1
A57: Applicants must provide bill impacts for residential at 800 kWh and GS<50kW at 2000 kWh. In addition, their filing should cover the range that is relevant to their service territory, class by class. A general guideline of consumption levels follows: Residential (kWh) - 100, 250, 500, 800, 1000, 1500, 2000 GS<50kW (kWh) - 1000, 2000, 5000, 10000, 15000 GS>50kW (kW) 100, 500, 1000 Large User - range appropriate for utility Street/Sentinel Lighting Classes and USL - 150 kWh and 1 kW, range appropriate for utility.

Sheet 28. Bill Impacts
S1: 1 | Z1: =MATCH(C14, '3. Rate Class Selection'!B19:B40,0) -> 3 | AA1: =VLOOKUP(C14, lists!AO:AP,2,0) -> kW
A14: Rate Class | C14: GENERAL SERVICE 50 TO 4,999 KW
A16: Loss Factor | E16: 1.0541
A18: Consumption | C18: kWh | E18: 120960
A20: If Billed on a kW basis:
A21: Demand | C21: kW | E21: 240
E25: Current Board-Approved | I25: Proposed | M25: Impact
E26: Rate | F26: Volume | G26: Charge | I26: Rate | J26: Volume | K26: Charge | M26: $ Change | N26: % Change
E27: ($) | G27: ($) | I27: ($) | K27: ($)
A28: Monthly Service Charge | E28: 97.35 | F28: 1 | G28: =F28*E28 -> 97.35 | I28: 98.91 | J28: 1 | K28: =J28*I28 -> 98.91 | M28: =K28-G28 -> 1.56 | N28: =IF((G28)=0,"",(M28/G28)) -> 0.01602465331
A29: Distribution Volumetric Rate | E29: 1.9733 | F29: 240 | G29: =F29*E29 -> 473.592 | I29: 2.0049 | J29: =F29 -> 240 | K29: =J29*I29 -> 481.176 | M29: 7.584 | N29: 0.01601378402
A30: Fixed Rate Riders | E30: 0 | F30: 1 | G30: =F30*E30 -> 0 | I30: 0 | J30: 1 | K30: =J30*I30 -> 0 | M30: 0
A31: Volumetric Rate Riders | E31: -0.4932 | F31: 240 | G31: =F31*E31 -> -118.368 | I31: 0 | J31: =F31 -> 240 | K31: =J31*I31 -> 0 | M31: 118.368 | N31: -1
A32: Sub-Total A (excluding pass through) | G32: =SUM(G28:G31) -> 452.574 | K32: =SUM(K28:K31) -> 580.086 | M32: 127.512 | N32: 0.2817483992
A33: Line Losses on Cost of Power | E33: =E45*0.64+E46*0.18+E47*0.18 -> 0.08392 | F33: =E18*(E16-1) -> 6543.936 | G33: =E33*F33 -> 549.1671091 | I33: =I45*0.64+I46*0.18+I47*0.18 -> 0.08392 | J33: =F33 -> 6543.936 | K33: =I33*J33 -> 549.1671091 | M33: 0 | N33: 0
A34: Total Deferral/Variance Account Rate Riders | E34: 3.8579 | F34: 240 | G34: =F34*E34 -> 925.896 | I34: 0 | J34: =F34 -> 240 | K34: =J34*I34 -> 0 | M34: -925.896 | N34: -1
A35: Low Voltage Service Charge | E35: 0.2419 | F35: 240 | G35: =F35*E35 -> 58.056 | I35: 0.2419 | J35: =F35 -> 240 | K35: =J35*I35 -> 58.056 | M35: 0 | N35: 0
A36: Smart Meter Entity Charge | F36: 1 | G36: =F36*E36 -> 0 | J36: =F36 -> 1 | K36: =J36*I36 -> 0 | M36: 0
A37: Sub-Total B - Distribution (includes Sub-Total A) | G37: =SUM(G32:G36) -> 1985.693109 | K37: =SUM(K32:K36) -> 1187.309109 | M37: =K37-G37 -> -798.384 | N37: =IF((G37)=0,"",(M37/G37)) -> -0.4020681727
A38: RTSR - Network | E38: 2.6063 | F38: 240 | G38: =F38*E38 -> 625.512 | I38: 2.6839 | J38: =F38 -> 240 | K38: =J38*I38 -> 644.136 | M38: 18.624 | N38: 0.02977400913
A39: RTSR - Connection and/or Line and Transformation Connection | E39: 1.1229 | F39: 240 | G39: =F39*E39 -> 269.496 | I39: 1.1251 | J39: =F39 -> 240 | K39: =J39*I39 -> 270.024 | M39: 0.528 | N39: 0.001959212753
A40: Sub-Total C - Delivery (including Sub-Total B) | G40: =SUM(G37:G39) -> 2880.701109 | K40: =SUM(K37:K39) -> 2101.469109 | M40: -779.232 | N40: -0.2705008158
A41: Wholesale Market Service Charge (WMSC) | E41: 0.0044 | F41: =E18*E16 -> 127503.936 | G41: =F41*E41 -> 561.0173184 | I41: 0.0044 | J41: =E18*E16 -> 127503.936 | K41: =J41*I41 -> 561.0173184 | M41: 0 | N41: 0
A42: Rural and Remote Rate Protection (RRRP) | E42: 0.0013 | F42: =E18*E16 -> 127503.936 | G42: 165.7551168 | I42: 0.0013 | J42: =E18*E16 -> 127503.936 | K42: 165.7551168 | M42: 0 | N42: 0
A43: Standard Supply Service Charge | E43: 0.25 | F43: 1 | G43: 0.25 | I43: 0.25 | J43: 1 | K43: 0.25 | M43: 0 | N43: 0
A44: Debt Retirement Charge (DRC) | E44: 0.007 | F44: =E18 -> 120960 | G44: 846.72 | I44: 0.007 | J44: =E18 -> 120960 | K44: 846.72 | M44: 0 | N44: 0
A45: TOU - Off Peak | E45: 0.067 | F45: 77414.4 | G45: 5186.7648 | I45: 0.067 | J45: =F45 -> 77414.4 | K45: 5186.7648 | M45: 0 | N45: 0
A46: TOU - Mid Peak | E46: 0.104 | F46: 21772.8 | G46: 2264.3712 | I46: 0.104 | J46: =F46 -> 21772.8 | K46: 2264.3712 | M46: 0 | N46: 0
A47: TOU - On Peak | E47: 0.124 | F47: 21772.8 | G47: 2699.8272 | I47: 0.124 | J47: =F47 -> 21772.8 | K47: 2699.8272 | M47: 0 | N47: 0
A49: Total Bill on TOU (before Taxes) | G49: =SUM(G40:G44,G45:G47) -> 14605.40674 | K49: =SUM(K40:K44,K45:K47) -> 13826.17474 | M49: =K49-G49 -> -779.232 | N49: =IF((G49)=0,"",(M49/G49)) -> -0.05335229711
A50: HST | E50: 0.13 | G50: =G49*E50 -> 1898.702877 | I50: 0.13 | K50: =K49*I50 -> 1797.402717 | M50: -101.30016 | N50: -0.05335229711
A51: Total Bill (including HST) | G51: =G49+G50 -> 16504.10962 | K51: =K49+K50 -> 15623.57746 | M51: -880.53216 | N51: -0.05335229711
A52: Ontario Clean Energy Benefit 1 | G52: =ROUND(-G51*10%,2) -> -1650.41 | K52: =ROUND(-K51*10%,2) -> -1562.36 | M52: 88.05 | N52: -0.0533503796
A53: Total Bill on TOU (including OCEB) | G53: =G51+G52 -> 14853.69962 | K53: =K51+K52 -> 14061.21746 | M53: -792.48216 | N53: -0.05335251016
A58: Note: For distributors who have a majority of customers on Tiered pricing, please provide a separate bill impact for such customers.

Sheet lists (hidden)
A1: DISTRIBUTED GENERATION [DGEN] | B1: Embedded Distributor | C1: =COUNTA(B1:B17) -> 4 | I1: A Standby Service Charge will be applied for a month where standby power is not provided. The applicable rate is the approved Distribution Volumetric Rate of the applicable service class and is applied to gross metered demand or contracted amount, whichever is greater. A monthly administration charge of $200, for simple metering arrangements, or $500, for complex metering arrangements, will also be applied. | L1: Loss Factors | N1: Units | O1: Units1 | P1: Units2 | Z1: Account History | AA1: Account set up charge/change of occupancy charge (plus credit agency costs if applicable) | AB1: Total Loss Factor – Embedded Distributor – Hydro One Networks Inc. | AL1: Algoma Power Inc. | AM1: Algoma Power Inc. | AO1: DISTRIBUTED GENERATION [DGEN] | AP1: kW | AT1: Sub-Total: Delivery (Distribution and Retail Transmission)
A2: EMBEDDED DISTRIBUTOR | B2: General Service 3,000 to 4,999 kW | I2: Distribution Volumetric Rate | L2: Total Loss Factor – Primary Metered Customer | N2: $ | O2: $/kWh | P2: $ | Z2: Account set up charge/change of occupancy charge | AA2: Administrative Billing Charge | AB2: Total Loss Factor – Primary Metered Customer | AL2: Atikokan Hydro Inc. | AM2: Atikokan Hydro Inc. | AO2: EMBEDDED DISTRIBUTOR | AP2: kW | AT2: Wholesale Market Service Rate | AW2: =AU2*AV2 -> 0 | AX2: =AU2 -> 0 | AY2: 0 | AZ2: =AX2*AY2 -> 0 | BB2: =AZ2-AW2 -> 0 | BC2: =BB2/AW2 -> 
A3: EMBEDDED DISTRIBUTOR | B3: General Service 1,000 to 4,999 kW | I3: Distribution Volumetric Rate - $/kW of contracted amount | L3: Total Loss Factor – Primary Metered Customer < 5,000 kW | N3: $/kWh | O3: $/kW | P3: % | W3: MSC | Z3: Account set up charge/change of occupancy charge (plus credit agency costs if applicable – Residential) | AA3: Bell Canada Pole Rentals | AB3: Total Loss Factor – Primary Metered Customer < 5,000 kW | AL3: Bluewater Power Distribution Corporation | AM3: Bluewater Power Distribution Corporation | AO3: EMBEDDED DISTRIBUTOR | AP3: kW | AT3: Rural or Remote Electricity Rate Protection Charge (RRRP) | AW3: =AU3*AV3 -> 0 | AX3: 0 | AY3: 0 | AZ3: =AX3*AY3 -> 0 | BB3: =AZ3-AW3 -> 0 | BC3: =BB3/AW3 -> 
A4: FARMS - SINGLE PHASE ENERGY-BILLED [F1] | B4: General Service Equal To Or Greater Than 1,500 kW - Interval Metered | I4: Distribution Wheeling Service Rate | L4: Total Loss Factor – Primary Metered Customer > 5,000 kW | N4: $/kW | O4: $/kVA | W4: SM_Rate_Adder | Z4: Account set up charge/change of occupancy charge (plus credit agency costs if applicable) | AA4: Clearance Pole Attachment charge $/pole/year | AB4: Total Loss Factor – Primary Metered Customer > 5,000 kW | AL4: Brant County Power Inc. | AM4: Brant County Power Inc. | AO4: FARMS - SINGLE PHASE ENERGY-BILLED [F1] | AP4: kWh | AT4: Standard Supply Service – Administration Charge (if applicable) | AW4: =AU4*AV4 -> 0 | AX4: 0 | AY4: 0 | AZ4: =AX4*AY4 -> 0 | BB4: =AZ4-AW4 -> 0 | BC4: =BB4/AW4 -> 
A5: FARMS - THREE PHASE ENERGY-BILLED [F3] | I5: Electricity Rate | L5: Total Loss Factor – Secondary Metered Customer | N5: $/kVA | W5: MSC_Rate_Rider_ | Z5: Arrears certificate | AA5: Collection of account charge – no disconnection | AB5: Total Loss Factor – Secondary Metered Customer | AL5: Brantford Power Inc. | AM5: Brantford Power Inc. | AO5: FARMS - THREE PHASE ENERGY-BILLED [F3] | AP5: kWh | AT5: Sub-Total: Regulatory | AW5: =SUM(AW2:AW4) -> 0 | AZ5: =SUM(AZ2:BA4) -> 0 | BB5: =AZ5-AW5 -> 0 | BC5: =BB5/AW5 -> 
A6: GENERAL SERVICE - COMMERCIAL | I6: Electricity Rate - All Additional kWh | L6: Total Loss Factor – Secondary Metered Customer < 5,000 kW | W6: VC | Z6: Arrears certificate (credit reference) | AA6: Collection of account charge – no disconnection – after regular hours | AB6: Total Loss Factor – Secondary Metered Customer < 5,000 kW | AL6: Burlington Hydro Inc. | AM6: Burlington Hydro Inc. | AO6: GENERAL SERVICE - COMMERCIAL | AP6: kW | AT6: Debt Retirement Charge (DRC) | AW6: =AU6*AV6 -> 0 | AX6: =AU6 -> 0 | AY6: =AV6 -> 0 | AZ6: =AX6*AY6 -> 0 | BB6: =AZ6-AW6 -> 0 | BC6: =BB6/AW6 -> 
A7: GENERAL SERVICE - INSTITUTIONAL | I7: Electricity Rate - First 250 kWh | AL7: Cambridge and North Dumfries Hydro Inc. | AM7: Cambridge and North Dumfries Hydro Inc. | AO7: GENERAL SERVICE - INSTITUTIONAL | AP7: kW
A8: GENERAL SERVICE 1,000 TO 2,999 KW | I8: Electricity Rate -All Additional kWh | L8: Total Loss Factor – Secondary Metered Customer > 5,000 kW | W8: VC_Rate_Rider_ | Z8: Charge to certify cheque | AA8: Collection of account charge – no disconnection - during regular business hours | AB8: Total Loss Factor – Secondary Metered Customer > 5,000 kW | AL8: Canadian Niagara Power Inc. | AM8: Canadian Niagara Power Inc. | AO8: GENERAL SERVICE 1,000 TO 2,999 KW | AP8: kW | AT8: Total Bill on RPP (before taxes) | BB8: =AZ8-AW8 -> 0
A9: GENERAL SERVICE 1,000 TO 4,999 KW | I9: Electricity Rate First 1,000 kWh | L9: Distribution Loss Factor - Secondary Metered Customer < 5,000 kW | W9: VC_GA_Rate_Rider_kW_ | Z9: Collection of Account Charge – No Disconnection | AA9: Collection of account charge – no disconnection – during regular hours | AL9: Centre Wellington Hydro Ltd. | AM9: Centre Wellington Hydro Ltd. | AO9: GENERAL SERVICE 1,000 TO 4,999 KW | AP9: kW | AT9: HST | AW9: =AV9*AW8 -> 0 | AY9: =AV9 -> 0 | AZ9: =AY9*AZ8 -> 0 | BB9: =AZ9-AW9 -> 0 | BC9: =BB9/AW9 -> 
A10: GENERAL SERVICE 1,000 TO 4,999 KW - INTERVAL METERS | I10: Electricity Rate First 25,000 kWh | L10: Distribution Loss Factor - Secondary Metered Customer > 5,000 kW | W10: VC_LV_Rate | Z10: Credit Card Convenience Charge | AA10: Collection/Disconnection/Load Limiter/Reconnection – if in Community | AL10: Chapleau Public Utilities Corporation | AM10: Chapleau Public Utilities Corporation | AO10: GENERAL SERVICE 1,000 TO 4,999 KW - INTERVAL METERS | AP10: kW | AT10: Total Bill (including HST) | AW10: =AW9+AW8 -> 0 | AZ10: =AZ9+AZ8 -> 0 | BB10: =AZ10-AW10 -> 0 | BC10: =BB10/AW10 -> 
A11: GENERAL SERVICE 1,000 TO 4,999 KW (CO-GENERATION) | I11: Electricity Rate First 6,000 kWh | L11: Distribution Loss Factor - Primary Metered Customer < 5,000 kW | W11: RTSR_Network | Z11: Credit check (plus credit agency costs) | AA11: Credit Card Convenience Charge | AL11: Collus PowerStream Corporation | AM11: Collus PowerStream Corporation | AO11: GENERAL SERVICE 1,000 TO 4,999 KW (CO-GENERATION) | AP11: kW | AT11: Ontario Clean Energy Benefit (OCEB) | AW11: =-0.1*AW10 -> 0 | AY11: =AV11 -> 0 | AZ11: =-0.1*AZ10 -> 0 | BB11: =AZ11-AW11 -> 0 | BC11: =BB11/AW11 -> 
A12: GENERAL SERVICE 1,500 TO 4,999 KW | I12: Electricity Rate Next 1,500 kWh | L12: Distribution Loss Factor - Primary Metered Customer > 5,000 kW | W12: RTSR_Connection | Z12: Credit reference Letter | AA12: Disconnect/Reconnect at meter – after regular hours | AL12: Cooperative Hydro Embrun Inc. | AM12: Cooperative Hydro Embrun Inc. | AO12: GENERAL SERVICE 1,500 TO 4,999 KW | AP12: kW | AT12: Total Bill on RPP (including OCEB) | AW12: =AW10+AW11 -> 0 | AZ12: =AZ10+AZ11 -> 0 | BB12: =AZ12-AW12 -> 0 | BC12: =BB12/AW12 -> 
A13: GENERAL SERVICE 2,500 TO 4,999 KW | I13: General Service 1,500 to 4,999 kW customer | AL13: E.L.K. Energy Inc. | AM13: E.L.K. Energy Inc. | AO13: GENERAL SERVICE 2,500 TO 4,999 KW | AP13: kW
A14: GENERAL SERVICE 3,000 TO 4,999 KW | I14: General Service 50 to 1,499 kW customer | L14: Total Loss Factor - Embedded Distributor | W14: RTSR_Network_Interval | Z14: Credit reference/credit check (plus credit agency costs – General Service) | AA14: Disconnect/Reconnect at meter – during regular hours | AL14: Enersource Hydro Mississauga Inc. | AM14: Enersource Hydro Mississauga Inc. | AO14: GENERAL SERVICE 3,000 TO 4,999 KW | AP14: kW | AT14: Total Bill on TOU (before taxes) | BB14: =AZ14-AW14 -> 0
A15: GENERAL SERVICE 3,000 TO 4,999 KW - INTERMEDIATE USE | I15: General Service Large Use customer | L15: Total Loss Factor – Embedded Distributor – Hydro One Networks Inc. | W15: RTSR_Connection_Interval | Z15: Credit Reference/credit check (plus credit agency costs) | AA15: Disconnect/Reconnect at pole – after regular hours | AL15: Entegrus Powerlines Inc. | AM15: Entegrus Powerlines Inc. | AO15: GENERAL SERVICE 3,000 TO 4,999 KW - INTERMEDIATE USE | AP15: kW | AT15: HST | AW15: =AV15*AW14 -> 0 | AY15: =AV15 -> 0 | AZ15: =AY15*AZ14 -> 0 | BB15: =AZ15-AW15 -> 0 | BC15: =BB15/AW15 -> 
A16: GENERAL SERVICE 3,000 TO 4,999 KW - INTERVAL METERED | E16: 2.1082 | I16: Green Energy Act Initiatives Funding Adder - effective until the date of the next cost of service-based rate order | W16: RTSR_Network_Interval_GR1000kW | Z16: Dispute Test – Commercial self contained -- MC | AA16: Disconnect/Reconnect at pole – during regular hours | AL16: Entegrus Powerlines Inc. - Dutton Service Area | AM16: Entegrus Powerlines Inc. - Dutton Service Area | AO16: GENERAL SERVICE 3,000 TO 4,999 KW - INTERVAL METERED | AP16: kW | AT16: Total Bill (including HST) | AW16: =AW15+AW14 -> 0 | AZ16: =AZ15+AZ14 -> 0 | BB16: =AZ16-AW16 -> 0 | BC16: =BB16/AW16 -> 
A17: GENERAL SERVICE 3,000 TO 4,999 KW - TIME OF USE | I17: Green Energy Act Plan Funding Adder | W17: RTSR_Connection_Interval_GR1000kW | Z17: Dispute Test – Commercial TT -- MC | AA17: Disconnect/Reconnect Charge – At Meter – After Hours | AL17: Entegrus Powerlines Inc. - former Chatham-Kent Hydro Service Area | AM17: Entegrus Powerlines Inc. - former Chatham-Kent Hydro Service Area | AO17: GENERAL SERVICE 3,000 TO 4,999 KW - TIME OF USE | AP17: kW | AT17: Ontario Clean Energy Benefit (OCEB) | AW17: =-0.1*AW16 -> 0 | AY17: =AV17 -> 0 | AZ17: =-0.1*AZ16 -> 0 | BB17: =AZ17-AW17 -> 0 | BC17: =BB17/AW17 -> 
A18: GENERAL SERVICE 50 TO 1,000 KW | I18: Green Energy Act Plan Funding Adder - effective April 1, 2013 until March 31, 2014 | W18: RTSR_Line_Connection | Z18: Dispute Test – Residential | AA18: Disconnect/Reconnect Charge – At Meter – During Regular Hours | AL18: Entegrus Powerlines Inc. - Newbury Service Area | AM18: Entegrus Powerlines Inc. - Newbury Service Area | AO18: GENERAL SERVICE 50 TO 1,000 KW | AP18: kW | AT18: Total Bill on TOU (including OCEB) | AW18: =AW16+AW17 -> 0 | AZ18: =AZ16+AZ17 -> 0 | BB18: =AZ18-AW18 -> 0 | BC18: =BB18/AW18 -> 
A19: GENERAL SERVICE 50 TO 1,000 KW - INTERVAL METERS | I19: Green Energy Act Plan Funding Adder - effective April 1, 2014 until March 31, 2015 | W19: RTSR_Transformer_Connection | Z19: Duplicate Invoices for previous billing | AA19: Disconnect/Reconnect Charge – At Pole – After Hours | AL19: Entegrus Powerlines Inc. - Strathroy, Mount Brydges and Parkhill Service Areas | AM19: Entegrus Powerlines Inc. - Strathroy, Mount Brydges and Parkhill Service Areas | AO19: GENERAL SERVICE 50 TO 1,000 KW - INTERVAL METERS | AP19: kW
A20: GENERAL SERVICE 50 TO 1,000 KW - NON INTERVAL METERS | I20: ICM Rate Rider (2014) - in effect until the effective date of the next cost of service rates | W20: WMSR | Z20: Easement Letter | AA20: Disconnect/Reconnect Charge – At Pole – During Regular Hours | AL20: ENWIN Utilities Ltd. | AM20: ENWIN Utilities Ltd. | AO20: GENERAL SERVICE 50 TO 1,000 KW - NON INTERVAL METERS | AP20: kW
A21: GENERAL SERVICE 50 TO 1,499 KW | I21: Low Voltage Service Charge | W21: RRRP | Z21: Income Tax Letter | AA21: Disconnect/Reconnect Charges for non payment of account - At Meter After Hours | AL21: Erie Thames Powerlines Corporation | AM21: Erie Thames Powerlines Corporation | AO21: GENERAL SERVICE 50 TO 1,499 KW | AP21: kW
A22: GENERAL SERVICE 50 TO 1,499 KW - INTERVAL METERED | I22: Low Voltage Service Rate | W22: SPC | Z22: Interval Meter Interrogation | AA22: Disconnect/Reconnect charges for non payment of account – at meter after regular hours | AL22: Espanola Regional Hydro Distribution Corporation | AM22: Espanola Regional Hydro Distribution Corporation | AO22: GENERAL SERVICE 50 TO 1,499 KW - INTERVAL METERED | AP22: kW
A23: GENERAL SERVICE 50 TO 2,499 KW | I23: Low Voltage Volumetric Rate | W23: DRC | Z23: Interval meter request change | AA23: Disconnect/Reconnect Charges for non payment of account - At Meter During Regular Hours | AL23: Essex Powerlines Corporation | AM23: Essex Powerlines Corporation | AO23: GENERAL SERVICE 50 TO 2,499 KW | AP23: kW
A24: GENERAL SERVICE 50 TO 2,999 KW | I24: LRAM Rate Rider - Effective Until April 30, 2015 | W24: SSS | Z24: Legal letter | AA24: Disconnect/Reconnect charges for non payment of account – at meter during regular hours | AL24: Festival Hydro Inc. | AM24: Festival Hydro Inc. | AO24: GENERAL SERVICE 50 TO 2,999 KW | AP24: kW
A25: GENERAL SERVICE 50 TO 2,999 KW - INTERVAL METERED | I25: Minimum Distribution Charge - per KW of maximum billing demand in the previous 11 months | W25: SFLF | Z25: Legal letter charge | AA25: Disconnect/Reconnect charges for non payment of account – at pole after regular hours | AL25: Fort Frances Power Corporation | AM25: Fort Frances Power Corporation | AO25: GENERAL SERVICE 50 TO 2,999 KW - INTERVAL METERED | AP25: kW
A26: GENERAL SERVICE 50 TO 2,999 KW - TIME OF USE | B26: January | I26: Monthly Distribution Wheeling Service Rate - Dedicated LV Line | W26: DLF_Secondary_LT_5000kW | Z26: Meter dispute charge plus Measurement Canada fees (if meter found correct) | AA26: Disconnect/Reconnect charges for non payment of account – at pole during regular hours | AL26: Greater Sudbury Hydro Inc. | AM26: Greater Sudbury Hydro Inc. | AO26: GENERAL SERVICE 50 TO 2,999 KW - TIME OF USE | AP26: kW
A27: GENERAL SERVICE 50 TO 4,999 KW | B27: February | I27: Monthly Distribution Wheeling Service Rate - Hydro One Networks | W27: DLF_Secondary_GT_5000kW | Z27: Notification charge | AA27: Disconnect/Reconnection for >300 volts - after regular hours | AL27: Grimsby Power Inc. | AM27: Grimsby Power Inc. | AO27: GENERAL SERVICE 50 TO 4,999 KW | AP27: kW
A28: GENERAL SERVICE 50 TO 4,999 KW - INTERVAL METERED | B28: March | E28: 7.06 | F28: 1 | I28: 7.18 | W28: DLF_Primary_LT_5000kW | Z28: Pulling Post Dated Cheques | AA28: Disconnect/Reconnection for >300 volts - during regular hours | AL28: Guelph Hydro Electric Systems Inc. | AM28: Guelph Hydro Electric Systems Inc. | AO28: GENERAL SERVICE 50 TO 4,999 KW - INTERVAL METERED | AP28: kW
A29: GENERAL SERVICE 50 TO 4,999 KW - TIME OF USE | B29: April | E29: 0.0096 | I29: 0.0098 | W29: DLF_Primary_GT_5000kW | Z29: Request for other billing information | AA29: Disposal of Concrete Poles | AL29: Haldimand County Hydro Inc. | AM29: Haldimand County Hydro Inc. | AO29: GENERAL SERVICE 50 TO 4,999 KW - TIME OF USE | AP29: kW
A30: GENERAL SERVICE 50 TO 4,999 KW (COGENERATION) | B30: May | E30: -0.29 | F30: 1 | I30: 1.06 | W30: TLF_Secondary_LT_5000kW | Z30: Returned cheque (plus bank charges) | AA30: Dispute Test – Commercial TT -- MC | AL30: Halton Hills Hydro Inc. | AM30: Halton Hills Hydro Inc. | AO30: GENERAL SERVICE 50 TO 4,999 KW (COGENERATION) | AP30: kW
A31: GENERAL SERVICE 50 TO 4,999 KW (FORMERLY TIME OF USE) | B31: June | E31: 0 | I31: 0 | W31: TLF_Secondary_GT_5000kW | Z31: Returned cheque charge (plus bank charges) | AA31: Install/Remove load control device – after regular hours | AL31: Hearst Power Distribution Company Limited | AM31: Hearst Power Distribution Company Limited | AO31: GENERAL SERVICE 50 TO 4,999 KW (FORMERLY TIME OF USE) | AP31: kW
A32: GENERAL SERVICE 50 TO 499 KW | B32: July | I32: Rate Rider for Application of Tax Change (2014) - effective until April 30, 2015 | W32: TLF_Primary_LT_5000kW | Z32: Special Billing Service (aggregation) | AA32: Install/Remove load control device – during regular hours | AL32: Horizon Utilities Corporation | AM32: Horizon Utilities Corporation | AO32: GENERAL SERVICE 50 TO 499 KW | AP32: kW
A33: GENERAL SERVICE 50 TO 699 KW | B33: August | I33: Rate Rider for Application of Tax Change (per connection) - effective until April 30, 2015 | W33: TLF_Primary_GT_5000kW | Z33: Special Billing Service (sub-metering charge per meter) | AA33: Interval Meter Interrogation | AL33: Hydro 2000 Inc. | AM33: Hydro 2000 Inc. | AO33: GENERAL SERVICE 50 TO 699 KW | AP33: kW
A34: GENERAL SERVICE 50 TO 999 KW | B34: September | E34: 0.0093 | I34: 0 | W34: TLF_EmbeddedDistributor | Z34: Special meter reads | AA34: Interval Meter Load Management Tool Charge $/month | AL34: Hydro Hawkesbury Inc. | AM34: Hydro Hawkesbury Inc. | AO34: GENERAL SERVICE 50 TO 999 KW | AP34: kW
A35: GENERAL SERVICE 50 TO 999 KW - INTERVAL METERED | B35: October | E35: 0.0007 | I35: 0.0007 | Z35: Statement of Account | AA35: Interval meter request change | AL35: Hydro One Brampton Networks Inc. | AM35: Hydro One Brampton Networks Inc. | AO35: GENERAL SERVICE 50 TO 999 KW - INTERVAL METERED | AP35: kW
A36: GENERAL SERVICE 500 TO 4,999 KW | B36: November | E36: 0.79 | I36: 0.79 | Z36: Unprocessed Payment Charge (plus bank charges) | AA36: Late Payment – per annum | AL36: Hydro One Networks Inc. | AM36: Hydro One Networks Inc. | AO36: GENERAL SERVICE 500 TO 4,999 KW | AP36: kW
A37: GENERAL SERVICE 700 TO 4,999 KW | B37: December | I37: Rate Rider for Deferral/Variance Account Disposition (2012) - effective until April 30, 2016 | AA37: Late Payment – per month | AL37: Hydro Ottawa Limited | AM37: Hydro Ottawa Limited | AO37: GENERAL SERVICE 700 TO 4,999 KW | AP37: kW
A38: GENERAL SERVICE DEMAND BILLED (50 KW AND ABOVE) [GSD] | E38: 0.007 | F38: 0 | I38: 0.0073 | AA38: Layout fees | AL38: Innisfil Hydro Distribution Systems Limited | AM38: Innisfil Hydro Distribution Systems Limited | AO38: GENERAL SERVICE DEMAND BILLED (50 KW AND ABOVE) [GSD] | AP38: kW
A39: GENERAL SERVICE ENERGY BILLED (LESS THAN 50 KW) [GSE-METERED] | E39: 0.0031 | F39: 0 | I39: 0.0032 | AA39: Meter dispute charge plus Measurement Canada fees (if meter found correct) | AL39: Kenora Hydro Electric Corporation Ltd. | AM39: Kenora Hydro Electric Corporation Ltd. | AO39: GENERAL SERVICE ENERGY BILLED (LESS THAN 50 KW) [GSE-METERED] | AP39: kWh
A40: GENERAL SERVICE ENERGY BILLED (LESS THAN TO 50 KW) [GSE-UNMETERED] | I40: Rate Rider for Deferral/Variance Account Disposition (2014) - effective until April 30, 2015 | AA40: Meter Interrogation Charge | AL40: Kingston Hydro Corporation | AM40: Kingston Hydro Corporation | AO40: GENERAL SERVICE ENERGY BILLED (LESS THAN TO 50 KW) [GSE-UNMETERED] | AP40: kWh
A41: GENERAL SERVICE EQUAL TO OR GREATER THAN 1,500 KW | I41: Rate Rider for Deferral/Variance Account Disposition (2014) - effective until December 31, 2014 | AA41: Missed Service Appointment | AL41: Kitchener-Wilmot Hydro Inc. | AM41: Kitchener-Wilmot Hydro Inc. | AO41: GENERAL SERVICE EQUAL TO OR GREATER THAN 1,500 KW | AP41: kW
A42: GENERAL SERVICE EQUAL TO OR GREATER THAN 1,500 KW - INTERVAL METERED | I42: Rate Rider for Deferral/Variance Account Disposition (2014) - effective until December 31, 2015 | AA42: Norfolk Pole Rentals – Billed | AL42: Lakefront Utilities Inc. | AM42: Lakefront Utilities Inc. | AO42: GENERAL SERVICE EQUAL TO OR GREATER THAN 1,500 KW - INTERVAL METERED | AP42: kW
A43: GENERAL SERVICE GREATER THAN 1,000 KW | I43: Rate Rider for Deferral/Variance Account Dispositon (2012) - effective until April 30, 2016 | AA43: Optional Interval/TOU Meter charge $/month | AL43: Lakeland Power Distribution Ltd. | AM43: Lakeland Power Distribution Ltd. | AO43: GENERAL SERVICE GREATER THAN 1,000 KW | AP43: kW
A44: GENERAL SERVICE GREATER THAN 50 kW - WMP | I44: Rate Rider for Disposition of Accounting Changes Under CGAAP Account 1576 - effective until April 30, 2016 | AA44: Overtime Locate | AL44: London Hydro Inc. | AM44: London Hydro Inc. | AO44: GENERAL SERVICE GREATER THAN 50 kW - WMP | AP44: kW
A45: GENERAL SERVICE INTERMEDIATE 1,000 TO 4,999 KW | F45: 0 | I45: Rate Rider for Disposition of Deferral/Variance Accounts (2010) - effective until December 31, 2014 | AA45: Owner Requested Disconnection/Reconnection – after regular hours | AL45: Midland Power Utility Corporation | AM45: Midland Power Utility Corporation | AO45: GENERAL SERVICE INTERMEDIATE 1,000 TO 4,999 KW | AP45: kW
A46: GENERAL SERVICE INTERMEDIATE RATE CLASS 1,000 TO 4,999 KW (FORMERLY GENERAL SERVICE > 50 KW CUSTOMERS) | F46: 0 | I46: Rate Rider for Disposition of Deferral/Variance Accounts (2011) - effective until April 30, 2015 | AA46: Owner Requested Disconnection/Reconnection – during regular hours | AL46: Milton Hydro Distribution Inc. | AM46: Milton Hydro Distribution Inc. | AO46: GENERAL SERVICE INTERMEDIATE RATE CLASS 1,000 TO 4,999 KW (FORMERLY GENERAL SERVICE > 50 KW CUSTOMERS) | AP46: kW
A47: GENERAL SERVICE INTERMEDIATE RATE CLASS 1,000 TO 4,999 KW (FORMERLY LARGE USE CUSTOMERS) | F47: 0 | I47: Rate Rider for Disposition of Deferral/Variance Accounts (2011) - effective until April 30, 2016 | AA47: Returned cheque (plus bank charges) | AL47: Newmarket - Tay Power Distribution Ltd. | AM47: Newmarket - Tay Power Distribution Ltd. | AO47: GENERAL SERVICE INTERMEDIATE RATE CLASS 1,000 TO 4,999 KW (FORMERLY LARGE USE CUSTOMERS) | AP47: kW
A48: GENERAL SERVICE LESS THAN 50 KW | I48: Rate Rider for Disposition of Deferral/Variance Accounts (2012) - effective until April 30, 2014 | AA48: Rural system expansion / line connection fee | AL48: Niagara Peninsula Energy Inc. | AM48: Niagara Peninsula Energy Inc. | AO48: GENERAL SERVICE LESS THAN 50 KW | AP48: kWh
A49: GENERAL SERVICE LESS THAN 50 KW - SINGLE PHASE ENERGY-BILLED [G1] | I49: Rate Rider for Disposition of Deferral/Variance Accounts (2012) - effective until April 30, 2015 | AA49: Same Day Open Trench | AL49: Niagara-on-the-Lake Hydro Inc. | AM49: Niagara-on-the-Lake Hydro Inc. | AO49: GENERAL SERVICE LESS THAN 50 KW - SINGLE PHASE ENERGY-BILLED [G1] | AP49: kWh
A50: GENERAL SERVICE LESS THAN 50 KW - THREE PHASE ENERGY-BILLED [G3] | I50: Rate Rider for Disposition of Deferral/Variance Accounts (2012) - effective until April 30, 2016 | AA50: Scheduled Day Open Trench | AL50: Norfolk Power Distribution Inc. | AM50: Norfolk Power Distribution Inc. | AO50: GENERAL SERVICE LESS THAN 50 KW - THREE PHASE ENERGY-BILLED [G3] | AP50: kWh
A51: GENERAL SERVICE LESS THAN 50 KW - TRANSMISSION CLASS ENERGY-BILLED [T] | I51: Rate Rider for Disposition of Deferral/Variance Accounts (2012) - effective until August 31, 2014 | AA51: Service call – after regular hours | AL51: North Bay Hydro Distribution Limited | AM51: North Bay Hydro Distribution Limited | AO51: GENERAL SERVICE LESS THAN 50 KW - TRANSMISSION CLASS ENERGY-BILLED [T] | AP51: kWh
A52: GENERAL SERVICE LESS THAN 50 KW - URBAN ENERGY-BILLED [UG] | I52: Rate Rider for Disposition of Deferral/Variance Accounts (2012) - effective until December 31, 2015 | AA52: Service call – customer owned equipment | AL52: Northern Ontario Wires Inc. | AM52: Northern Ontario Wires Inc. | AO52: GENERAL SERVICE LESS THAN 50 KW - URBAN ENERGY-BILLED [UG] | AP52: kWh
A53: GENERAL SERVICE SINGLE PHASE - G1 | I53: Rate Rider for Disposition of Deferral/Variance Accounts (2012) - effective until December 31, 2016 Applicable only in the former service area of Clinton Power | AA53: Service Call – Customer-owned Equipment – After Regular Hours | AL53: Oakville Hydro Electricity Distribution Inc. | AM53: Oakville Hydro Electricity Distribution Inc. | AO53: GENERAL SERVICE SINGLE PHASE - G1 | AP53: kW
A54: GENERAL SERVICE THREE PHASE - G3 | I54: Rate Rider for Disposition of Deferral/Variance Accounts (2012) – effective until December 31, 2016 Applicable only in the former service area of Clinton Power | AA54: Service Call – Customer-owned Equipment – During Regular Hours | AL54: Orangeville Hydro Limited | AM54: Orangeville Hydro Limited | AO54: GENERAL SERVICE THREE PHASE - G3 | AP54: kW
A55: INTERMEDIATE USERS | I55: Rate Rider for Disposition of Deferral/Variance Accounts (2012) - effective until January 31, 2014 | AA55: Service Charge for onsite interrogation of interval meter due to customer phone line failure - required weekly until line repaired $ 6 | AL55: Orillia Power Distribution Corporation | AM55: Orillia Power Distribution Corporation | AO55: INTERMEDIATE USERS | AP55: kW
A56: INTERMEDIATE WITH SELF GENERATION | I56: Rate Rider for Disposition of Deferral/Variance Accounts (2012) - effective until June 30, 2014 | AA56: Service Layout - Commercial | AL56: Oshawa PUC Networks Inc. | AM56: Oshawa PUC Networks Inc. | AO56: INTERMEDIATE WITH SELF GENERATION | AP56: kW
A57: LARGE USE | I57: Rate Rider for Disposition of Deferral/Variance Accounts (2013) - Applicable only to Wholesale Market Participants - effective until April 30, 2015 | AA57: Service Layout - ResidentiaI | AL57: Ottawa River Power Corporation | AM57: Ottawa River Power Corporation | AO57: LARGE USE | AP57: kW
A58: LARGE USE - 3TS | I58: Rate Rider for Disposition of Deferral/Variance Accounts (2013) - effective until April 30, 2014 | AA58: Special Billing Service (sub-metering charge per meter) | AL58: Parry Sound Power Corporation | AM58: Parry Sound Power Corporation | AO58: LARGE USE - 3TS | AP58: kW
A59: LARGE USE - FORD ANNEX | I59: Rate Rider for Disposition of Deferral/Variance Accounts (2013) - effective until April 30, 2015 | AA59: Special meter reads | AL59: Peterborough Distribution Incorporated | AM59: Peterborough Distribution Incorporated | AO59: LARGE USE - FORD ANNEX | AP59: kW
A60: LARGE USE - REGULAR | I60: Rate Rider for Disposition of Deferral/Variance Accounts (2013) - effective until April 30, 2015 - not applicable to Wholesale Market Participants | AA60: Specific Charge for Access to the Power Poles - $/pole/year | AL60: PowerStream Inc. | AM60: PowerStream Inc. | AO60: LARGE USE - REGULAR | AP60: kW
A61: LARGE USE > 5000 KW | I61: Rate Rider for Disposition of Deferral/Variance Accounts (2013) - effective until April 30, 2017 | AA61: Specific Charge for Bell Canada Access to the Power Poles – per pole/year | AL61: PUC Distribution Inc. | AM61: PUC Distribution Inc. | AO61: LARGE USE > 5000 KW | AP61: kW
A62: microFIT | I62: Rate Rider for Disposition of Deferral/Variance Accounts (2013) - effective until August 31, 2014 | AA62: Switching for company maintenance – Charge based on Time and Materials | AL62: Renfrew Hydro Inc. | AM62: Renfrew Hydro Inc. | AO62: microFIT | AP62: $
A63: RESIDENTIAL | I63: Rate Rider for Disposition of Deferral/Variance Accounts (2013) - effective until December 31, 2014 | AA63: Temporary Service – Install & remove – overhead – no transformer | AL63: Rideau St. Lawrence Distribution Inc. | AM63: Rideau St. Lawrence Distribution Inc. | AO63: RESIDENTIAL | AP63: kWh
A64: RESIDENTIAL - HENSALL | I64: Rate Rider for Disposition of Deferral/Variance Accounts (2013) - effective until May 31, 2014 | AA64: Temporary Service – Install & remove – overhead – with transformer | AL64: Sioux Lookout Hydro Inc. | AM64: Sioux Lookout Hydro Inc. | AO64: RESIDENTIAL - HENSALL | AP64: kWh
A65: RESIDENTIAL - HIGH DENSITY [R1] | I65: Rate Rider for Disposition of Deferral/Variance Accounts (2014) - effective until December 31, 2015 | AA65: Temporary Service – Install & remove – underground – no transformer | AL65: St. Thomas Energy Inc. | AM65: St. Thomas Energy Inc. | AO65: RESIDENTIAL - HIGH DENSITY [R1] | AP65: kWh
A66: RESIDENTIAL - LOW DENSITY [R2] | I66: Rate Rider for Disposition of Deferred PILs Variance Account 1562 - effective until March 31, 2016 | AA66: Temporary service install & remove – overhead – no transformer | AL66: Thunder Bay Hydro Electricity Distribution Inc. | AM66: Thunder Bay Hydro Electricity Distribution Inc. | AO66: RESIDENTIAL - LOW DENSITY [R2] | AP66: kWh
A67: RESIDENTIAL - MEDIUM DENSITY [R1] | I67: Rate Rider for Disposition of Deferred PILs Variance Account 1562 (2012) - effective until April 30, 2015 | AA67: Temporary Service Install & Remove – Overhead – With Transformer | AL67: Tillsonburg Hydro Inc. | AM67: Tillsonburg Hydro Inc. | AO67: RESIDENTIAL - MEDIUM DENSITY [R1] | AP67: kWh
A68: RESIDENTIAL - NORMAL DENSITY [R2] | I68: Rate Rider for Disposition of Deferred PILs Variance Account 1562 (2012) - effective until April 30, 2016 | AA68: Temporary Service Install & Remove – Underground – No Transformer | AL68: Toronto Hydro-Electric System Limited | AM68: Toronto Hydro-Electric System Limited | AO68: RESIDENTIAL - NORMAL DENSITY [R2] | AP68: kWh
A69: RESIDENTIAL - TIME OF USE | I69: Rate Rider for Disposition of Deferred PILs Variance Account 1562 (2nd Installment - 2012) - effective until April 30, 2016 | AA69: Temporary service installation and removal – overhead – no transformer | AL69: Veridian Connections Inc. | AM69: Veridian Connections Inc. | AO69: RESIDENTIAL - TIME OF USE | AP69: kWh
A70: RESIDENTIAL - URBAN [UR] | I70: Rate Rider for Disposition of Deferred PILs Variance Account 1562 (per connection) (2012) - effective until April 30, 2015 | AA70: Temporary service installation and removal – overhead – with transformer | AL70: Wasaga Distribution Inc. | AM70: Wasaga Distribution Inc. | AO70: RESIDENTIAL - URBAN [UR] | AP70: kWh
A71: RESIDENTIAL REGULAR | I71: Rate Rider for Disposition of Deferred PILs Variance Account 1562 (per connection) (2012) - effective until April 30, 2016 | AA71: Temporary service installation and removal – underground – no transformer | AL71: Waterloo North Hydro Inc. | AM71: Waterloo North Hydro Inc. | AO71: RESIDENTIAL REGULAR | AP71: kWh
A72: RESIDENTIAL SUBURBAN | I72: Rate Rider for Disposition of Global Adjustment Sub-Account (2011) - effective until April 30, 2015 Applicable only for Non-RPP Customers | AL72: Welland Hydro-Electric System Corp. | AM72: Welland Hydro-Electric System Corp. | AO72: RESIDENTIAL SUBURBAN | AP72: kWh
A73: RESIDENTIAL SUBURBAN SEASONAL | I73: Rate Rider for Disposition of Global Adjustment Sub-Account (2011) - effective until April 30, 2016 Applicable only for Non-RPP Customers | AL73: Wellington North Power Inc. | AM73: Wellington North Power Inc. | AO73: RESIDENTIAL SUBURBAN SEASONAL | AP73: kWh
A74: RESIDENTIAL SUBURBAN YEAR ROUND | I74: Rate Rider for Disposition of Global Adjustment Sub-Account (2012) - effective until April 30, 2014 Applicable only for Non-RPP Customers | AL74: West Coast Huron Energy Inc. | AM74: West Coast Huron Energy Inc. | AO74: RESIDENTIAL SUBURBAN YEAR ROUND | AP74: kWh
A75: RESIDENTIAL URBAN | I75: Rate Rider for Disposition of Global Adjustment Sub-Account (2012) - effective until April 30, 2015 Applicable only for Non-RPP Customers | AL75: Westario Power Inc. | AM75: Westario Power Inc. | AO75: RESIDENTIAL URBAN | AP75: kWh
A76: RESIDENTIAL URBAN YEAR-ROUND | I76: Rate Rider for Disposition of Global Adjustment Sub-Account (2012) - effective until April 30, 2015 Applicatble only for Non-RPP Customers | AL76: Whitby Hydro Electric Corporation | AM76: Whitby Hydro Electric Corporation | AO76: RESIDENTIAL URBAN YEAR-ROUND | AP76: kWh
A77: SEASONAL RESIDENTIAL | I77: Rate Rider for Disposition of Global Adjustment Sub-Account (2012) - effective until April 30, 2016 Applicable only for Non-RPP Customers | AL77: Woodstock Hydro Services Inc. | AM77: Woodstock Hydro Services Inc. | AO77: SEASONAL RESIDENTIAL | AP77: kWh
A78: SEASONAL RESIDENTIAL - HIGH DENSITY [R3] | I78: Rate Rider for Disposition of Global Adjustment Sub-Account (2012) - effective until January 31, 2014. Applicable only for Non-RPP Customers | AO78: SEASONAL RESIDENTIAL - HIGH DENSITY [R3] | AP78: kWh
A79: SEASONAL RESIDENTIAL - NORMAL DENSITY [R4] | I79: Rate Rider for Disposition of Global Adjustment Sub-Account (2012) - effective until June 30, 2014 Applicable only for Non-RPP Customers | AO79: SEASONAL RESIDENTIAL - NORMAL DENSITY [R4] | AP79: kWh
A80: SENTINEL LIGHTING | I80: Rate Rider for Disposition of Global Adjustment Sub-Account (2012) Applicable only for Non-RPP Customers - effective until August 31, 2014 | AO80: SENTINEL LIGHTING | AP80: kW
A81: SMALL COMMERCIAL AND USL - PER CONNECTION | I81: Rate Rider for Disposition of Global Adjustment Sub-Account (2012) Applicable only to Non-RPP Customers - effective until August 31, 2014 | AO81: SMALL COMMERCIAL AND USL - PER CONNECTION | AP81: kWh
A82: SMALL COMMERCIAL AND USL - PER METER | I82: Rate Rider for Disposition of Global Adjustment Sub-Account (2013) - effective until April 30, 2014 Applicable only for Non-RPP Customers | AO82: SMALL COMMERCIAL AND USL - PER METER | AP82: kWh
A83: STANDARD A GENERAL SERVICE AIR ACCESS | I83: Rate Rider for Disposition of Global Adjustment Sub-Account (2013) - effective until April 30, 2015 Applicable only for Non-RPP Customers | AO83: STANDARD A GENERAL SERVICE AIR ACCESS | AP83: kWh
A84: STANDARD A GENERAL SERVICE ROAD/RAIL | I84: Rate Rider for Disposition of Global Adjustment Sub-Account (2013) - effective until April 30, 2015 Applicable only for Non-RPP Customers and excluding Wholesale Market Participants | AO84: STANDARD A GENERAL SERVICE ROAD/RAIL | AP84: kWh
A85: STANDARD A GRID CONNECTED | I85: Rate Rider for Disposition of Global Adjustment Sub-Account (2013) - effective until April 30, 2017 Applicable only for Non-RPP Customers | AO85: STANDARD A GRID CONNECTED | AP85: kWh
A86: STANDARD A RESIDENTIAL AIR ACCESS | I86: Rate Rider For Disposition of Global Adjustment Sub-Account (2013) - effective until August 31, 2014 Applicable only for Non-RPP Customers | AO86: STANDARD A RESIDENTIAL AIR ACCESS | AP86: kWh
A87: STANDARD A RESIDENTIAL ROAD/RAIL | I87: Rate Rider for Disposition of Global Adjustment Sub-Account (2013) - effective until December 31, 2014 Applicable only for Non-RPP Customers | AO87: STANDARD A RESIDENTIAL ROAD/RAIL | AP87: kWh
A88: STANDBY - GENERAL SERVICE 1,000 - 5,000 KW | I88: Rate Rider for Disposition of Global Adjustment Sub-Account (2013) - effective until May 31, 2014 Applicable only for Non-RPP Customers | AO88: STANDBY - GENERAL SERVICE 1,000 - 5,000 KW | AP88: kW
A89: STANDBY - GENERAL SERVICE 50 - 1,000 KW | I89: Rate Rider for Disposition of Global Adjustment Sub-Account (2014) - effective until December 31, 2014. Applicable only for Non-RPP - Class B Customers | AO89: STANDBY - GENERAL SERVICE 50 - 1,000 KW | AP89: kW
A90: STANDBY - LARGE USE | I90: Rate Rider for Disposition of Global Adjustment Sub-Account (2014) - effective until December 31, 2014. Applicable only for Non-RPP Customers | AO90: STANDBY - LARGE USE | AP90: kW
A91: STANDBY DISTRIBUTION SERVICE | I91: Rate Rider for Disposition of Global Adjustment Sub-Account (2014) - effective until December 31, 2014. Applicable only for Non-RPP Customers - Class A Customers | AO91: STANDBY DISTRIBUTION SERVICE | AP91: kW
A92: STANDBY POWER | I92: Rate Rider for Disposition of Global Adjustment Sub-Account (2014) - effective until December 31, 2014. Applicable only for Non-RPP Customers - Interval Metered | AO92: STANDBY POWER | AP92: kW
A93: STANDBY POWER - APPROVED ON AN INTERIM BASIS | I93: Rate Rider for Disposition of Global Adjustment Sub-Account (2014) - effective until December 31, 2014. Applicable only for Non-RPP Customers - Non Interval Metered | AO93: STANDBY POWER - APPROVED ON AN INTERIM BASIS | AP93: kW
A94: STANDBY POWER GENERAL SERVICE 1,500 TO 4,999 KW | I94: Rate Rider for Disposition of Global Adjustment Sub-Account (2014) - effective until December 31, 2015. Applicable only for Non-RPP Customers. | AO94: STANDBY POWER GENERAL SERVICE 1,500 TO 4,999 KW | AP94: kW
A95: STANDBY POWER GENERAL SERVICE 50 TO 1,499 KW | I95: Rate Rider for Disposition of Post Retirement Actuarial Gain - effective until March 31, 2025 | AO95: STANDBY POWER GENERAL SERVICE 50 TO 1,499 KW | AP95: kW
A96: STANDBY POWER GENERAL SERVICE LARGE USE | I96: Rate Rider for Disposition of Residual Hisotrical Smart Meter Costs - effective until April 30, 2015 | AO96: STANDBY POWER GENERAL SERVICE LARGE USE | AP96: kW
A97: STREET LIGHTING | I97: Rate Rider for Disposition of Residual Hisotrical Smart Meter Costs - effective until April 30, 2017 | AO97: STREET LIGHTING | AP97: kW
A98: SUB TRANSMISSION [ST] | I98: Rate Rider for Disposition of Residual Historical Smart Meter Costs - effective until April 30, 2014 | AO98: SUB TRANSMISSION [ST] | AP98: kW
A99: UNMETERED SCATTERED LOAD | I99: Rate Rider for Disposition of Residual Historical Smart Meter Costs - effective until April 30, 2016 | AO99: UNMETERED SCATTERED LOAD | AP99: kWh
A100: URBAN GENERAL SERVICE DEMAND BILLED (50 KW AND ABOVE) [UGD] | I100: Rate Rider for Disposition of Residual Historical Smart Meter Costs - effective until August 31, 2014 | AO100: URBAN GENERAL SERVICE DEMAND BILLED (50 KW AND ABOVE) [UGD] | AP100: kW
A101: URBAN GENERAL SERVICE ENERGY BILLED (LESS THAN 50 KW) [UGE] | I101: Rate Rider for Disposition of Residual Historical Smart Meter Costs - effective until August 31, 2015 | AO101: URBAN GENERAL SERVICE ENERGY BILLED (LESS THAN 50 KW) [UGE] | AP101: kWh
A102: WESTPORT SEWAGE TREATMENT PLANT | I102: Rate Rider for Disposition of Residual Historical Smart Meter Costs - effective until December 31, 2014 | AO102: WESTPORT SEWAGE TREATMENT PLANT | AP102: kW
A103: YEAR-ROUND RESIDENTIAL - R2 | I103: Rate Rider for Disposition of Residual Historical Smart Meter Costs – effective until December 31, 2014 | AO103: YEAR-ROUND RESIDENTIAL - R2 | AP103: kWh
I104: Rate Rider for Disposition of Residual Historical Smart Meter Costs - effective until December 31, 2015
I105: Rate Rider for Disposition of Residual Historical Smart Meter Costs - effective until December 31, 2016
I106: Rate Rider for Disposition of Residual Historical Smart Meter Costs - effective until October 31, 2014
I107: Rate Rider for Disposition of Residual Historical Smart Meter Costs - effective until September 30, 2014
I108: Rate Rider for Disposition of Residual Historical Smart Meter Costs - Non-Interval Metered - effective until April 30, 2014
I109: Rate Rider for Disposition of Residual Historical Smart Meter Costs 2 - in effect until the effective date of the next cost of service-based rate order
I110: Rate Rider for Disposition of Residual Historical Smart Meter Costs 3 - in effect until the effective date of the next cost of service-based rate order
I111: Rate Rider for Disposition of Residual Incremental Historical Smart Meter Costs - effective until August 31, 2015
I112: Rate Rider for Disposition of Stranded Meter costs - effective until April 30, 2015
I113: Rate Rider for Disposition of Stranded Meter Costs - effective until April 30, 2016
I114: Rate Rider for Disposition of Stranded Meter Costs - effective until April 30, 2017
I115: Rate Rider for Global Adjustment Sub Account Disposition - effective until April 30, 2016 Applicable only for Non RPP Customers
I116: Rate Rider for Global Adjustment Sub-Account Disposition (2014) - effective until April 28, 2016 Applicable only for Non-RPP Customers
I117: Rate Rider for Global Adjustment Sub-Account Disposition (2014) - effective until April 30, 2015 Applicable only for Non-RPP Customers
I118: Rate Rider for Global Adjustment Sub-Account Disposition (2014) - effective until December 30, 2015 Applicable only for Non-RPP Customers
I119: Rate Rider for Global Adjustment Sub-Account Disposition (2014) - effective until December 31, 2014 Applicable only for Non-RPP Customers
I120: Rate Rider for Global Adjustment Sub-Account Disposition (2014) - effective until December 31, 2015 Applicable only for Non-RPP Customers
I121: Rate Rider for Global Adjustment Sub-Account Disposition Applicable only for Non-RPP Customers - effective until April 30, 2015
I122: Rate Rider for Incremental Capital - Distribution Volumetric - effective until April 30, 2016
I123: Rate Rider for Incremental Capital - Service Charge - effective until April 30, 2016
I124: Rate Rider for Incremental Capital (2012) - effective until April 30, 2015
I125: Rate Rider for Lost Revenue Adjustment Mechanism Variance Account (LRAMVA) Recovery (2012 CDM Activities) - effective until April 30, 2015
I126: Rate Rider for Recover of Residual Historical Smart meter Costs - effective until June 30, 2014
I127: Rate Rider for Recovery of CGAAP/CWIP Differential - in effect until December 31, 2016
I128: Rate Rider for Recovery of Foregone Revenue - effective until April 30, 2015
I129: Rate Rider for Recovery of Forgone Revenue - effective until April 30, 2015
I130: Rate Rider for Recovery of Forgone Revenue - effective until December 31, 2014
I131: Rate Rider for Recovery of Green Energy Act related costs - effective until December 31, 2014
I132: Rate Rider for Recovery of Incremental Capital (2013) - in effect until the effective date of the next cost of service-based rate order
I133: Rate Rider for Recovery of Incremental Capital (2013) - in effect until the effective date of the next cost of service-based rate order
I134: Rate Rider for Recovery of Incremental Capital (2013) (per connection) - in effect until the effective date of the next cost of service-based rate order
I135: Rate Rider for Recovery of Incremental Capital (2013) (per connection)- in effect until the effective date of the next cost of service-based rate order
I136: Rate Rider for Recovery of Incremental Capital Costs
I137: Rate Rider for Recovery of Incremental Capital Costs - effective until April 30, 2015
I138: Rate Rider for Recovery of Incremental Capital Module Costs (2014) - in effect until the effective date of the next cost of service-based rate order
I139: Rate Rider for Recovery of Incremental Capital Module Costs (2014) - in effect until the effective date of the next cost of service-based rate order
I140: Rate Rider for Recovery of Lost Revenue Adjustment Mechanism ( LRAM)/Shared Savings Mechanism (SSM) (2012) - effective until August 31, 2014
I141: Rate Rider for Recovery of Lost Revenue Adjustment Mechanism (2013) - effective until December 31, 2014
I142: Rate Rider for Recovery of Lost Revenue Adjustment Mechanism (LRAM) - effective until April 30, 2016
I143: Rate Rider for Recovery of Lost Revenue Adjustment Mechanism (LRAM) (pre-2011 CDM Activities) - effective until April 30, 2015
I144: Rate Rider for Recovery of Lost Revenue Adjustment Mechanism (LRAM) (pre-2011 CDM Activities) (2013) - effective until April 30, 2015
I145: Rate Rider for Recovery of Lost Revenue Adjustment Mechanism (LRAM)/Shared Savings
I146: Rate Rider for Recovery of Lost Revenue Adjustment Mechanism (LRAM)/Shared Savings Mechanism (SSM) - effective until December 31, 2018 and applicable in the service area excluding the former service areas of Clinton Power and West Perth Power
I147: Rate Rider for Recovery of Lost Revenue Adjustment Mechanism (LRAM)/Shared Savings Mechanism (SSM) - effective until December 31, 2014 and applicable in the service area excluding the former service areas of Clinton Power and West Perth Power
I148: Rate Rider for Recovery of Lost Revenue Adjustment Mechanism (LRAM)/Shared Savings Mechanism (SSM) - effective until December 31, 2014 and applicable only in the former service area of Clinton Power
I149: Rate Rider for Recovery of Lost Revenue Adjustment Mechanism (LRAM)/Shared Savings Mechanism (SSM) - effective until December 31, 2014 and applicable only in the former service area of West Perth Power
I150: Rate Rider for Recovery of Lost Revenue Adjustment Mechanism (LRAM)/Shared Savings Mechanism (SSM) - effective until December 31, 2014 and applicable in the service area excluding the former service area of Clinton Power
I151: Rate Rider for Recovery of Lost Revenue Adjustment Mechanism (LRAM)/Shared Savings Mechanism (SSM) - effective until March 31, 2016
I152: Rate Rider for Recovery of Lost Revenue Adjustment Mechanism (LRAM)/Shared Savings Mechanism (SSM) (2012) - effective until August 31, 2014
I153: Rate Rider for Recovery of Lost Revenue Adjustment Mechanism (LRAM)/Shared Savings Mechanism (SSM) Recovery - effective until April 30, 2015
I154: Rate Rider for Recovery of Lost Revenue Adjustment Mechanism Variance Account (LRAMVA) (2014) - effective until April 30, 2015
I155: Rate Rider for Recovery of Residual Historical Smart Meter Costs - effective July 1, 2012 - April 30, 2016
I156: Rate Rider for Recovery of Smart Meter Incremental Revenue Requirement - effective until the date of the next cost of service-based rate order
I157: Rate Rider for Recovery of Smart Meter Incremental Revenue Requirement - effective until the effective date of the next cost of service-based rate order, or October 31, 2017, whichever occurs earlier
I158: Rate Rider for Recovery of Smart Meter Incremental Revenue Requirement - in effect until the effective date of the next cost of service-based rate order
I159: Rate Rider for Recovery of Smart Meter Incremental Revenue Requirement - Non-Interval Metered - in effect until the effective date of the next cost of service-based rate order
I160: Rate Rider for Recovery of Smart Meter Incremental Revenue Requirements - in effect until the effective date of the next cost of service application
I161: Rate Rider for Recovery of Smart Meter Stranded Assets - effective until April 30, 2016
I162: Rate Rider for Recovery of Storm Damage Costs - effective until August 31, 2017
I163: Rate Rider for Recovery of Stranded Assets - effective until April 30, 2016
I164: Rate Rider for Recovery of Stranded Meter Assets - effective July 1, 2012 - April 30, 2016
I165: Rate Rider for Recovery of Stranded Meter Assets – effective until April 30, 2015
I166: Rate Rider for Recovery of Stranded Meter Assets - effective until April 30, 2016
I167: Rate Rider for Recovery of Stranded Meter Assets - effective until April 30, 2017
I168: Rate Rider for Recovery of Stranded Meter Assets - effective until August 31, 2015
I169: Rate Rider for Recovery of Stranded Meter Assets - effective until August 31, 2017
I170: Rate Rider for Recovery of Stranded Meter Assets - effective until December 31, 2014
I171: Rate Rider for Recovery of Stranded Meter Assets - effective until December 31, 2015
I172: Rate Rider for Recovery of Stranded Meter Assets - effective until June 30, 2016
I173: Rate Rider for Recovery of Stranded Meter Assets - effective until March 31, 2016
I174: Rate Rider for Recovery of Stranded Meter Assets - effective until May 31, 2014
I175: Rate Rider for Reversal of Deferral/Variance Account Disposition (2011) - effective until April 30, 2015
I176: Rate Rider for Smart Meter Disposition - effective until April 30, 2016
I177: Rate Rider for Smart Meter Incremental Revenue Requirement - in effect until the effective date of the next cost of service-based rate order
I178: Rate Rider for Smart Metering Entity Charge - effective until October 31, 2018
I179: Rate Rider for Stranded Meter Cost Recovery - effective until April 30, 2017
I180: Rate Rider for Tax Change
I181: Rate Rider for Tax Change - effective until April 30, 2015
I182: Rate Rider for Tax Change (2014) - effective until April 30, 2015
I183: Retail Transmission Rate - Line and Transformation Connection Service Rate
I184: Retail Transmission Rate - Line and Transformation Connection Service Rate - (less than 1,000 kW)
I185: Retail Transmission Rate - Line and Transformation Connection Service Rate - Interval Metered
I186: Retail Transmission Rate - Line and Transformation Connection Service Rate - Interval Metered (1,000 to 4,999 kW)
I187: Retail Transmission Rate - Line and Transformation Connection Service Rate - Interval Metered (less than 1,000 kW)
I188: Retail Transmission Rate - Line and Transformation Connection Service Rate - Interval Metered < 1,000 kW
I189: Retail Transmission Rate - Line and Transformation Connection Service Rate FOR ALL SERVICE AREAS EXCEPT HENSALL
I190: Retail Transmission Rate - Line and Transformation Connection Service Rate - Interval Metered > 1,000 kW
I191: Retail Transmission Rate - Line Connection Service Rate
I192: Retail Transmission Rate - Network Service Rate
I193: Retail Transmission Rate - Network Service Rate - (less than 1,000 kW)
I194: Retail Transmission Rate - Network Service Rate - Interval Metered
I195: Retail Transmission Rate - Network Service Rate - Interval Metered (1,000 to 4,999 kW)
I196: Retail Transmission Rate - Network Service Rate - Interval Metered (less than 1,000 kW)
I197: Retail Transmission Rate - Network Service Rate - Interval Metered > 1,000 kW
I198: Retail Transmission Rate - Transformation Connection Service Rate
I199: Rider for Global Adjustment Sub-Account Disposition (2012) - effective until April 30, 2016 Applicable only for Non-RPP Customers
I200: Rural or Remote Electricity Rate Protection Charge (RRRP)
... 14 more rows

Sheet Sheet1 (hidden)
